{"text_format":"1","workbook":"xlsx","n_sheets":4,"sheets":["Sverigeranking","Regler","Miniorranking","Seriespelsranking"],"not_rendered":{"charts":0,"images":0,"macros":1,"external_links":0,"defined_names":5,"comments":0,"pivot_tables":0},"unopened":[],"bounds":{"document_bytes":16777216,"sheet_cells":100000,"rows_first":2000,"rows_last":500,"rows_between":2000,"halvings":0,"cell_chars":16384,"cell_head_chars":4096},"cells_cut":0,"cells_raw":0,"read":"whole","date_system":"1900"}

{"sheet":"Sverigeranking","index":0,"n_rows":220,"n_cols":145,"rows_kept":220,"cut":false,"hidden":false,"merged":[]}
[null,"Svenska Hästskokastarförbundets Sverigeranking",null,null,null,null,null,null,null,null,null,null,null,null,null,null,null,null,null,null,null,null,null,"Antal kastare som deltagit i samtliga tävlingar senaste 12 månaderna:",{"$f":"COUNTIF(F5:F199,15)","v":7}]
[]
[null,"SLUTSTÄLLNING 2015/2016",null,null,null,null,null,null,{"$f":"IF(SUM(I5:I400)>100,1,\"\")","v":1},1,1,1,1,1,1,1,1,1,1,1,1,1,1,1,1,1,1]
["Plac.","Kastare ","Klubb","Rankingpoäng",null,"Antal tävlingar","Snitt per serie",null,"Växjö Open","Björkenäs Open","Utomhus-SM Dag 1","Utomhus-SM Dag 2","Utomhus Smålandsmästaren","Gotlands-DM","Gotland Open","Septemberskon","Dynapac Open","Blekinge-DM Ute","Åseda Open","Höstskon Nybro","Novemberkampen","Inomhus-SM","Gotlands-DM Inomhus","Inomhus Smålandsmästaren ","Blekinge DM inne","Värendspokalen","Tingsryds Open","Antal arrangerade tävlingar","Ej medräknat resultat","Ej medräknat resultat",null,null,null,null,null,null,null,null,null,null,null,null,null,null,null,null,null,null,null,null,null,null,null,null,null,null,null,null,null,1,2,3,4,5,6,7,8,9,10,11,12,13,14,15,"ej medräknad",null,"missade tävlingar"]
[{"$f":"IF(BE5>1,AF5&\" (\"&AE5&\")\",AF5&\" (\"&AG5&\")\")","v":"1 (1)"},"Sandor Bodi","Växjö",{"$f":"SUM(BH5:BT5)","v":4836},null,{"$f":"COUNT(I5:AA5)","v":13},{"$f":"SUM((CA5)/(F5*2))","v":186},null,350,null,449,369,325,null,null,354,267,null,479,439,414,336,null,422,null,244,388,{"$f":"SUM($I$3:$AA$3)","v":19},{"$f":"BW5","v":"-"},{"$f":"BX5","v":"-"},1,1,{"$f":"IF(F5>1,ROW(1:1),\"-\")","v":1},1,null,null,{"$f":"COUNT($I$3,I5,H5)","v":2},{"$f":"COUNT($J$3,J5,I5)","v":2},{"$f":"COUNT($K$3,K5,J5)","v":2},{"$f":"COUNT($L$3,L5,K5)","v":3},{"$f":"COUNT($M$3,M5,L5)","v":3},{"$f":"COUNT($N$3,N5,M5)","v":2},{"$f":"COUNT($O$3,O5,N5)","v":1},{"$f":"COUNT($P$3,P5,O5)","v":2},{"$f":"COUNT($Q$3,Q5,P5)","v":3},{"$f":"COUNT($R$3,R5,Q5)","v":2},{"$f":"COUNT($S$3,S5,R5)","v":2},{"$f":"COUNT($T$3,T5,S5)","v":3},{"$f":"COUNT($U$3,U5,T5)","v":3},{"$f":"COUNT($V$3,V5,U5)","v":3},{"$f":"COUNT($W$3,W5,V5)","v":2},{"$f":"COUNT($X$3,X5,W5)","v":2},{"$f":"COUNT($Y$3,Y5,X5)","v":2},{"$f":"COUNT($Z$3,Z5,Y5)","v":2},{"$f":"COUNT($AA$3,AA5,Z5)","v":3},null,{"$f":"IF(H5=\"x\",1,2)","v":2},null,null,{"$f":"IF($F5>0,LARGE($I5:$AA5,1),\"\")","v":479},{"$f":"IF($F5>1,LARGE($I5:$AA5,2),\"\")","v":449},{"$f":"IF($F5>2,LARGE($I5:$AA5,3),\"\")","v":439},{"$f":"IF($F5>3,LARGE($I5:$AA5,4),\"\")","v":422},{"$f":"IF($F5>4,LARGE($I5:$AA5,5),\"\")","v":414},{"$f":"IF($F5>5,LARGE($I5:$AA5,6),\"\")","v":388},{"$f":"IF($F5>6,LARGE($I5:$AA5,7),\"\")","v":369},{"$f":"IF($F5>7,LARGE($I5:$AA5,8),\"\")","v":354},{"$f":"IF($F5>8,LARGE($I5:$AA5,9),\"\")","v":350},{"$f":"IF($F5>9,LARGE($I5:$AA5,10),\"\")","v":336},{"$f":"IF($F5>10,LARGE($I5:$AA5,11),\"\")","v":325},{"$f":"IF($F5>11,LARGE($I5:$AA5,12),\"\")","v":267},{"$f":"IF($F5>12,LARGE($I5:$AA5,13),\"\")","v":244},{"$f":"IF($F5>13,LARGE($I5:$AA5,14),\"\")","v":""},{"$f":"IF($F5>14,LARGE($I5:$AA5,15),\"\")","v":""},{"$f":"IF($F5>13,LARGE($I5:$AA5,14),\"-\")","v":"-"},{"$f":"IF($F5>14,LARGE($I5:$AA5,15),\"-\")","v":"-"},{"$f":"SUM(AB5-F5)-3","v":3},null,{"$f":"SUM(BH5:BV5)","v":4836},null,null,null,null,null,null,null,null,null,null,null,null,null,null,null,null,null,null,null,null,null,null,null,null,null,null,null,null,null,null,null,null,null,null,null,null,null,null,null,null,null,null,null,null,null,null,null,null,null,null,null,null,null,null,null,null,null,null,null,null,null,null,1,null,{"$f":"IF(BE5>=1,AF5,\"\")","v":1},{"$f":"IF(BE5>1,\"(\"&AE5&\")\",\"(\"&AG5&\")\")","v":"(1)"}]
["2 (2)","Tobias Gneupel","Sibbamåla",4231,null,13,162.73076923076923,null,null,null,307,364,null,null,209,410,287,297,328,231,446,335,null,null,361,357,299,19,"-","-",2,{"$f":"IF(D6<D5,AH6,AF5)","v":2},2,2,null,null,{"$f":"COUNT($I$3,I6,H6)","v":1},{"$f":"COUNT($J$3,J6,I6)","v":1},{"$f":"COUNT($K$3,K6,J6)","v":2},{"$f":"COUNT($L$3,L6,K6)","v":3},{"$f":"COUNT($M$3,M6,L6)","v":2},{"$f":"COUNT($N$3,N6,M6)","v":1},{"$f":"COUNT($O$3,O6,N6)","v":2},{"$f":"COUNT($P$3,P6,O6)","v":3},{"$f":"COUNT($Q$3,Q6,P6)","v":3},{"$f":"COUNT($R$3,R6,Q6)","v":3},{"$f":"COUNT($S$3,S6,R6)","v":3},{"$f":"COUNT($T$3,T6,S6)","v":3},{"$f":"COUNT($U$3,U6,T6)","v":3},{"$f":"COUNT($V$3,V6,U6)","v":3},{"$f":"COUNT($W$3,W6,V6)","v":2},{"$f":"COUNT($X$3,X6,W6)","v":1},{"$f":"COUNT($Y$3,Y6,X6)","v":2},{"$f":"COUNT($Z$3,Z6,Y6)","v":3},{"$f":"COUNT($AA$3,AA6,Z6)","v":3},null,2,null,null,{"$f":"IF($F6>0,LARGE($I6:$AA6,1),\"\")","v":446},{"$f":"IF($F6>1,LARGE($I6:$AA6,2),\"\")","v":410},{"$f":"IF($F6>2,LARGE($I6:$AA6,3),\"\")","v":364},{"$f":"IF($F6>3,LARGE($I6:$AA6,4),\"\")","v":361},{"$f":"IF($F6>4,LARGE($I6:$AA6,5),\"\")","v":357},{"$f":"IF($F6>5,LARGE($I6:$AA6,6),\"\")","v":335},{"$f":"IF($F6>6,LARGE($I6:$AA6,7),\"\")","v":328},{"$f":"IF($F6>7,LARGE($I6:$AA6,8),\"\")","v":307},{"$f":"IF($F6>8,LARGE($I6:$AA6,9),\"\")","v":299},{"$f":"IF($F6>9,LARGE($I6:$AA6,10),\"\")","v":297},{"$f":"IF($F6>10,LARGE($I6:$AA6,11),\"\")","v":287},{"$f":"IF($F6>11,LARGE($I6:$AA6,12),\"\")","v":231},{"$f":"IF($F6>12,LARGE($I6:$AA6,13),\"\")","v":209},{"$f":"IF($F6>13,LARGE($I6:$AA6,14),\"\")","v":""},{"$f":"IF($F6>14,LARGE($I6:$AA6,15),\"\")","v":""},{"$f":"IF($F6>13,LARGE($I6:$AA6,14),\"-\")","v":"-"},{"$f":"IF($F6>14,LARGE($I6:$AA6,15),\"-\")","v":"-"},{"$f":"SUM(AB6-F6)-3","v":3},null,{"$f":"SUM(BH6:BV6)","v":4231},null,null,null,null,null,null,null,null,null,null,null,null,null,null,null,null,null,null,null,null,null,null,null,null,null,null,null,null,null,null,null,null,null,null,null,null,null,null,null,null,null,null,null,null,null,null,null,null,null,null,null,null,null,null,null,null,null,null,null,null,null,null,2,null,{"$f":"IF(BE6>=1,AF6,\"\")","v":2},{"$f":"IF(BE6>1,\"(\"&AE6&\")\",\"(\"&AG6&\")\")","v":"(2)"}]
["3 (3)","Ingvar Eriksson","Carlskrona",3828,null,13,147.23076923076923,null,305,341,null,215,null,null,229,348,272,258,null,321,266,291,null,null,368,273,341,19,"-","-",3,{"$f":"IF(D7<D6,AH7,AF6)","v":3},3,3,null,null,2,3,2,2,2,1,2,3,3,3,2,2,3,3,2,1,2,3,3,null,2,null,null,{"$f":"IF($F7>0,LARGE($I7:$AA7,1),\"\")","v":368},{"$f":"IF($F7>1,LARGE($I7:$AA7,2),\"\")","v":348},{"$f":"IF($F7>2,LARGE($I7:$AA7,3),\"\")","v":341},{"$f":"IF($F7>3,LARGE($I7:$AA7,4),\"\")","v":341},{"$f":"IF($F7>4,LARGE($I7:$AA7,5),\"\")","v":321},{"$f":"IF($F7>5,LARGE($I7:$AA7,6),\"\")","v":305},{"$f":"IF($F7>6,LARGE($I7:$AA7,7),\"\")","v":291},{"$f":"IF($F7>7,LARGE($I7:$AA7,8),\"\")","v":273},{"$f":"IF($F7>8,LARGE($I7:$AA7,9),\"\")","v":272},{"$f":"IF($F7>9,LARGE($I7:$AA7,10),\"\")","v":266},{"$f":"IF($F7>10,LARGE($I7:$AA7,11),\"\")","v":258},{"$f":"IF($F7>11,LARGE($I7:$AA7,12),\"\")","v":229},{"$f":"IF($F7>12,LARGE($I7:$AA7,13),\"\")","v":215},"","","-","-",3,null,3828,null,null,null,null,null,null,null,null,null,null,null,null,null,null,null,null,null,null,null,null,null,null,null,null,null,null,null,null,null,null,null,null,null,null,null,null,null,null,null,null,null,null,null,null,null,null,null,null,null,null,null,null,null,null,null,null,null,null,null,null,null,null,3,null,{"$f":"IF(BE7>=1,AF7,\"\")","v":3},{"$f":"IF(BE7>1,\"(\"&AE7&\")\",\"(\"&AG7&\")\")","v":"(3)"}]
["4 (4)","Olle Ottosson","Dynapac ",3736,null,13,143.69230769230768,null,314,331,294,null,null,null,null,236,310,315,303,286,329,244,null,null,298,180,296,19,"-","-",4,4,{"$f":"IF(F8>1,ROW(4:4),\"-\")","v":4},4,null,null,{"$f":"COUNT($I$3,I8,H8)","v":2},{"$f":"COUNT($J$3,J8,I8)","v":3},{"$f":"COUNT($K$3,K8,J8)","v":3},{"$f":"COUNT($L$3,L8,K8)","v":2},{"$f":"COUNT($M$3,M8,L8)","v":1},{"$f":"COUNT($N$3,N8,M8)","v":1},{"$f":"COUNT($O$3,O8,N8)","v":1},{"$f":"COUNT($P$3,P8,O8)","v":2},{"$f":"COUNT($Q$3,Q8,P8)","v":3},{"$f":"COUNT($R$3,R8,Q8)","v":3},{"$f":"COUNT($S$3,S8,R8)","v":3},{"$f":"COUNT($T$3,T8,S8)","v":3},{"$f":"COUNT($U$3,U8,T8)","v":3},{"$f":"COUNT($V$3,V8,U8)","v":3},{"$f":"COUNT($W$3,W8,V8)","v":2},{"$f":"COUNT($X$3,X8,W8)","v":1},{"$f":"COUNT($Y$3,Y8,X8)","v":2},{"$f":"COUNT($Z$3,Z8,Y8)","v":3},{"$f":"COUNT($AA$3,AA8,Z8)","v":3},null,2,null,null,{"$f":"IF($F8>0,LARGE($I8:$AA8,1),\"\")","v":331},{"$f":"IF($F8>1,LARGE($I8:$AA8,2),\"\")","v":329},{"$f":"IF($F8>2,LARGE($I8:$AA8,3),\"\")","v":315},{"$f":"IF($F8>3,LARGE($I8:$AA8,4),\"\")","v":314},{"$f":"IF($F8>4,LARGE($I8:$AA8,5),\"\")","v":310},{"$f":"IF($F8>5,LARGE($I8:$AA8,6),\"\")","v":303},{"$f":"IF($F8>6,LARGE($I8:$AA8,7),\"\")","v":298},{"$f":"IF($F8>7,LARGE($I8:$AA8,8),\"\")","v":296},{"$f":"IF($F8>8,LARGE($I8:$AA8,9),\"\")","v":294},{"$f":"IF($F8>9,LARGE($I8:$AA8,10),\"\")","v":286},{"$f":"IF($F8>10,LARGE($I8:$AA8,11),\"\")","v":244},{"$f":"IF($F8>11,LARGE($I8:$AA8,12),\"\")","v":236},{"$f":"IF($F8>12,LARGE($I8:$AA8,13),\"\")","v":180},{"$f":"IF($F8>13,LARGE($I8:$AA8,14),\"\")","v":""},{"$f":"IF($F8>14,LARGE($I8:$AA8,15),\"\")","v":""},{"$f":"IF($F8>13,LARGE($I8:$AA8,14),\"-\")","v":"-"},{"$f":"IF($F8>14,LARGE($I8:$AA8,15),\"-\")","v":"-"},{"$f":"SUM(AB8-F8)-3","v":3},null,{"$f":"SUM(BH8:BV8)","v":3736},null,null,null,null,null,null,null,null,null,null,null,null,null,null,null,null,null,null,null,null,null,null,null,null,null,null,null,null,null,null,null,null,null,null,null,null,null,null,null,null,null,null,null,null,null,null,null,null,null,null,null,null,null,null,null,null,null,null,null,null,null,null,4,null,{"$f":"IF(BE8>=1,AF8,\"\")","v":4},{"$f":"IF(BE8>1,\"(\"&AE8&\")\",\"(\"&AG8&\")\")","v":"(4)"}]
["5 (5)","Gert Karlsson","Korpen Åseda",3598,null,15,133.23333333333332,null,362,237,248,268,229,null,213,275,186,null,285,288,248,246,null,353,null,241,318,19,213,186,5,5,{"$f":"IF(F9>1,ROW(5:5),\"-\")","v":5},5,null,null,{"$f":"COUNT($I$3,I9,H9)","v":2},{"$f":"COUNT($J$3,J9,I9)","v":3},{"$f":"COUNT($K$3,K9,J9)","v":3},{"$f":"COUNT($L$3,L9,K9)","v":3},{"$f":"COUNT($M$3,M9,L9)","v":3},{"$f":"COUNT($N$3,N9,M9)","v":2},{"$f":"COUNT($O$3,O9,N9)","v":2},{"$f":"COUNT($P$3,P9,O9)","v":3},{"$f":"COUNT($Q$3,Q9,P9)","v":3},{"$f":"COUNT($R$3,R9,Q9)","v":2},{"$f":"COUNT($S$3,S9,R9)","v":2},{"$f":"COUNT($T$3,T9,S9)","v":3},{"$f":"COUNT($U$3,U9,T9)","v":3},{"$f":"COUNT($V$3,V9,U9)","v":3},{"$f":"COUNT($W$3,W9,V9)","v":2},{"$f":"COUNT($X$3,X9,W9)","v":2},{"$f":"COUNT($Y$3,Y9,X9)","v":2},{"$f":"COUNT($Z$3,Z9,Y9)","v":2},{"$f":"COUNT($AA$3,AA9,Z9)","v":3},null,2,null,null,{"$f":"IF($F9>0,LARGE($I9:$AA9,1),\"\")","v":362},{"$f":"IF($F9>1,LARGE($I9:$AA9,2),\"\")","v":353},{"$f":"IF($F9>2,LARGE($I9:$AA9,3),\"\")","v":318},{"$f":"IF($F9>3,LARGE($I9:$AA9,4),\"\")","v":288},{"$f":"IF($F9>4,LARGE($I9:$AA9,5),\"\")","v":285},{"$f":"IF($F9>5,LARGE($I9:$AA9,6),\"\")","v":275},{"$f":"IF($F9>6,LARGE($I9:$AA9,7),\"\")","v":268},{"$f":"IF($F9>7,LARGE($I9:$AA9,8),\"\")","v":248},{"$f":"IF($F9>8,LARGE($I9:$AA9,9),\"\")","v":248},{"$f":"IF($F9>9,LARGE($I9:$AA9,10),\"\")","v":246},{"$f":"IF($F9>10,LARGE($I9:$AA9,11),\"\")","v":241},{"$f":"IF($F9>11,LARGE($I9:$AA9,12),\"\")","v":237},{"$f":"IF($F9>12,LARGE($I9:$AA9,13),\"\")","v":229},{"$f":"IF($F9>13,LARGE($I9:$AA9,14),\"\")","v":213},{"$f":"IF($F9>14,LARGE($I9:$AA9,15),\"\")","v":186},{"$f":"IF($F9>13,LARGE($I9:$AA9,14),\"-\")","v":213},{"$f":"IF($F9>14,LARGE($I9:$AA9,15),\"-\")","v":186},{"$f":"SUM(AB9-F9)-3","v":1},null,{"$f":"SUM(BH9:BV9)","v":3997},null,null,null,null,null,null,null,null,null,null,null,null,null,null,null,null,null,null,null,null,null,null,null,null,null,null,null,null,null,null,null,null,null,null,null,null,null,null,null,null,null,null,null,null,null,null,null,null,null,null,null,null,null,null,null,null,null,null,null,null,null,null,5,null,{"$f":"IF(BE9>=1,AF9,\"\")","v":5},{"$f":"IF(BE9>1,\"(\"&AE9&\")\",\"(\"&AG9&\")\")","v":"(5)"}]
["6 (7)","Matz Karlsson","Korpen Åseda",3548,null,15,130.73333333333332,null,281,306,280,209,165,null,213,235,214,null,324,289,311,282,null,237,null,301,275,19,209,165,7,6,{"$f":"IF(F10>1,ROW(6:6),\"-\")","v":6},6,null,null,{"$f":"COUNT($I$3,I10,H10)","v":2},{"$f":"COUNT($J$3,J10,I10)","v":3},{"$f":"COUNT($K$3,K10,J10)","v":3},{"$f":"COUNT($L$3,L10,K10)","v":3},{"$f":"COUNT($M$3,M10,L10)","v":3},{"$f":"COUNT($N$3,N10,M10)","v":2},{"$f":"COUNT($O$3,O10,N10)","v":2},{"$f":"COUNT($P$3,P10,O10)","v":3},{"$f":"COUNT($Q$3,Q10,P10)","v":3},{"$f":"COUNT($R$3,R10,Q10)","v":2},{"$f":"COUNT($S$3,S10,R10)","v":2},{"$f":"COUNT($T$3,T10,S10)","v":3},{"$f":"COUNT($U$3,U10,T10)","v":3},{"$f":"COUNT($V$3,V10,U10)","v":3},{"$f":"COUNT($W$3,W10,V10)","v":2},{"$f":"COUNT($X$3,X10,W10)","v":2},{"$f":"COUNT($Y$3,Y10,X10)","v":2},{"$f":"COUNT($Z$3,Z10,Y10)","v":2},{"$f":"COUNT($AA$3,AA10,Z10)","v":3},null,2,null,null,{"$f":"IF($F10>0,LARGE($I10:$AA10,1),\"\")","v":324},{"$f":"IF($F10>1,LARGE($I10:$AA10,2),\"\")","v":311},{"$f":"IF($F10>2,LARGE($I10:$AA10,3),\"\")","v":306},{"$f":"IF($F10>3,LARGE($I10:$AA10,4),\"\")","v":301},{"$f":"IF($F10>4,LARGE($I10:$AA10,5),\"\")","v":289},{"$f":"IF($F10>5,LARGE($I10:$AA10,6),\"\")","v":282},{"$f":"IF($F10>6,LARGE($I10:$AA10,7),\"\")","v":281},{"$f":"IF($F10>7,LARGE($I10:$AA10,8),\"\")","v":280},{"$f":"IF($F10>8,LARGE($I10:$AA10,9),\"\")","v":275},{"$f":"IF($F10>9,LARGE($I10:$AA10,10),\"\")","v":237},{"$f":"IF($F10>10,LARGE($I10:$AA10,11),\"\")","v":235},{"$f":"IF($F10>11,LARGE($I10:$AA10,12),\"\")","v":214},{"$f":"IF($F10>12,LARGE($I10:$AA10,13),\"\")","v":213},{"$f":"IF($F10>13,LARGE($I10:$AA10,14),\"\")","v":209},{"$f":"IF($F10>14,LARGE($I10:$AA10,15),\"\")","v":165},{"$f":"IF($F10>13,LARGE($I10:$AA10,14),\"-\")","v":209},{"$f":"IF($F10>14,LARGE($I10:$AA10,15),\"-\")","v":165},{"$f":"SUM(AB10-F10)-3","v":1},null,{"$f":"SUM(BH10:BV10)","v":3922},null,null,null,null,null,null,null,null,null,null,null,null,null,null,null,null,null,null,null,null,null,null,null,null,null,null,null,null,null,null,null,null,null,null,null,null,null,null,null,null,null,null,null,null,null,null,null,null,null,null,null,null,null,null,null,null,null,null,null,null,null,null,6,null,{"$f":"IF(BE10>=1,AF10,\"\")","v":6},{"$f":"IF(BE10>1,\"(\"&AE10&\")\",\"(\"&AG10&\")\")","v":"(7)"}]
["7 (5)","Tomas Lindahl","Korpen Åseda",3507,null,13,134.88461538461539,null,null,353,252,350,166,null,307,347,null,null,334,220,244,261,null,233,null,238,202,19,"-","-",5,7,7,7,null,null,1,2,3,3,3,2,2,3,2,1,2,3,3,3,2,2,2,2,3,null,2,null,null,353,350,347,334,307,261,252,244,238,233,220,202,166,"","","-","-",3,null,3507,null,null,null,null,null,null,null,null,null,null,null,null,null,null,null,null,null,null,null,null,null,null,null,null,null,null,null,null,null,null,null,null,null,null,null,null,null,null,null,null,null,null,null,null,null,null,null,null,null,null,null,null,null,null,null,null,null,null,null,null,null,null,7,null,7,"(5)"]
["8 (8)","Peter Olsson","Dynapac ",3356,null,15,123.1,null,271,246,276,237,null,null,260,270,182,155,216,240,275,286,null,null,293,299,187,19,182,155,8,8,8,8,null,null,2,3,3,3,2,1,2,3,3,3,3,3,3,3,2,1,2,3,3,null,2,null,null,299,293,286,276,275,271,270,260,246,240,237,216,187,182,155,182,155,1,null,3693,null,null,null,null,null,null,null,null,null,null,null,null,null,null,null,null,null,null,null,null,null,null,null,null,null,null,null,null,null,null,null,null,null,null,null,null,null,null,null,null,null,null,null,null,null,null,null,null,null,null,null,null,null,null,null,null,null,null,null,null,null,null,8,null,8,"(8)"]
["9 (9)","Maj-Britt Jarl","Växjö",3238,null,14,121,null,291,321,150,245,239,null,null,216,152,null,267,237,180,204,null,279,null,289,318,19,150,"-",9,9,9,9,null,null,2,3,3,3,3,2,1,2,3,2,2,3,3,3,2,2,2,2,3,null,2,null,null,321,318,291,289,279,267,245,239,237,216,204,180,152,150,"",150,"-",2,null,3388,null,null,null,null,null,null,null,null,null,null,null,null,null,null,null,null,null,null,null,null,null,null,null,null,null,null,null,null,null,null,null,null,null,null,null,null,null,null,null,null,null,null,null,null,null,null,null,null,null,null,null,null,null,null,null,null,null,null,null,null,null,null,9,null,9,"(9)"]
[{"$f":"IF(BE14>1,AF14&\" (\"&AE14&\")\",AF14&\" (\"&AG14&\")\")","v":"10 (9)"},"Leo Andersson","Carlskrona",3214,null,11,146.09090909090909,null,313,319,319,361,null,null,null,null,248,null,null,244,201,270,null,null,339,350,250,19,"-","-",9,10,10,10,null,null,2,3,3,3,2,1,1,1,2,2,1,2,3,3,2,1,2,3,3,null,2,null,null,361,350,339,319,319,313,270,250,248,244,201,"","","","","-","-",5,null,3214,null,null,null,null,null,null,null,null,null,null,null,null,null,null,null,null,null,null,null,null,null,null,null,null,null,null,null,null,null,null,null,null,null,null,null,null,null,null,null,null,null,null,null,null,null,null,null,null,null,null,null,null,null,null,null,null,null,null,null,null,null,null,10,null,10,"(9)"]
["11 (11)","Mattias Gneupel","Sibbamåla",3115,null,15,114.16666666666667,null,251,255,232,193,null,null,205,259,193,182,229,214,173,216,null,null,405,281,137,19,173,137,11,11,11,11,null,null,2,3,3,3,2,1,2,3,3,3,3,3,3,3,2,1,2,3,3,null,2,null,null,405,281,259,255,251,232,229,216,214,205,193,193,182,173,137,173,137,1,null,3425,null,null,null,null,null,null,null,null,null,null,null,null,null,null,null,null,null,null,null,null,null,null,null,null,null,null,null,null,null,null,null,null,null,null,null,null,null,null,null,null,null,null,null,null,null,null,null,null,null,null,null,null,null,null,null,null,null,null,null,null,null,null,11,null,11,"(11)"]
["12 (12)","Lasse Brincner","Värends Hsk",3106,null,15,115.8,null,271,275,223,201,236,null,234,266,200,null,203,193,229,334,null,187,null,241,181,19,187,181,12,12,12,12,null,null,2,3,3,3,3,2,2,3,3,2,2,3,3,3,2,2,2,2,3,null,2,null,null,334,275,271,266,241,236,234,229,223,203,201,200,193,187,181,187,181,1,null,3474,null,null,null,null,null,null,null,null,null,null,null,null,null,null,null,null,null,null,null,null,null,null,null,null,null,null,null,null,null,null,null,null,null,null,null,null,null,null,null,null,null,null,null,null,null,null,null,null,null,null,null,null,null,null,null,null,null,null,null,null,null,null,12,null,12,"(12)"]
["13 (13)","Anders Johansson","Dynapac ",3039,null,15,109.5,null,268,281,179,223,null,null,212,168,78,184,212,218,299,217,null,null,303,209,234,19,168,78,13,13,13,13,null,null,2,3,3,3,2,1,2,3,3,3,3,3,3,3,2,1,2,3,3,null,2,null,null,303,299,281,268,234,223,218,217,212,212,209,184,179,168,78,168,78,1,null,3285,null,null,null,null,null,null,null,null,null,null,null,null,null,null,null,null,null,null,null,null,null,null,null,null,null,null,null,null,null,null,null,null,null,null,null,null,null,null,null,null,null,null,null,null,null,null,null,null,null,null,null,null,null,null,null,null,null,null,null,null,null,null,13,null,13,"(13)"]
["14 (19)","Bo Petersson","Korpen Nybro",3003,null,13,115.5,null,284,303,159,196,208,null,null,null,195,null,291,299,171,201,null,196,null,246,254,19,"-","-",19,14,14,14,null,null,2,3,3,3,3,2,1,1,2,2,2,3,3,3,2,2,2,2,3,null,2,null,null,303,299,291,284,254,246,208,201,196,196,195,171,159,"","","-","-",3,null,3003,null,null,null,null,null,null,null,null,null,null,null,null,null,null,null,null,null,null,null,null,null,null,null,null,null,null,null,null,null,null,null,null,null,null,null,null,null,null,null,null,null,null,null,null,null,null,null,null,null,null,null,null,null,null,null,null,null,null,null,null,null,null,14,null,14,"(19)"]
["15 (14)","Hans Lundqvist","Alvesta",2967,null,14,110.64285714285714,null,247,307,null,209,131,null,189,201,134,null,305,208,247,194,null,286,null,252,188,19,131,"-",14,15,15,15,null,null,2,3,2,2,3,2,2,3,3,2,2,3,3,3,2,2,2,2,3,null,2,null,null,307,305,286,252,247,247,209,208,201,194,189,188,134,131,"",131,"-",2,null,3098,null,null,null,null,null,null,null,null,null,null,null,null,null,null,null,null,null,null,null,null,null,null,null,null,null,null,null,null,null,null,null,null,null,null,null,null,null,null,null,null,null,null,null,null,null,null,null,null,null,null,null,null,null,null,null,null,null,null,null,null,null,null,15,null,15,"(14)"]
["16 (15)","Kent Sundahl","Carlskrona",2940,null,10,147,null,null,null,358,292,null,null,null,282,153,null,null,292,307,268,null,null,406,268,314,19,"-","-",15,16,16,16,null,null,1,1,2,3,2,1,1,2,3,2,1,2,3,3,2,1,2,3,3,null,2,null,null,406,358,314,307,292,292,282,268,268,153,"","","","","","-","-",6,null,2940,null,null,null,null,null,null,null,null,null,null,null,null,null,null,null,null,null,null,null,null,null,null,null,null,null,null,null,null,null,null,null,null,null,null,null,null,null,null,null,null,null,null,null,null,null,null,null,null,null,null,null,null,null,null,null,null,null,null,null,null,null,null,16,null,16,"(15)"]
["17 (18)","Christian Balsiger","Värends Hsk",2876,null,12,119.83333333333333,null,273,298,null,null,197,null,null,342,211,null,265,178,297,196,null,225,null,201,193,19,"-","-",18,17,17,17,null,null,2,3,2,1,2,2,1,2,3,2,2,3,3,3,2,2,2,2,3,null,2,null,null,342,298,297,273,265,225,211,201,197,196,193,178,"","","","-","-",4,null,2876,null,null,null,null,null,null,null,null,null,null,null,null,null,null,null,null,null,null,null,null,null,null,null,null,null,null,null,null,null,null,null,null,null,null,null,null,null,null,null,null,null,null,null,null,null,null,null,null,null,null,null,null,null,null,null,null,null,null,null,null,null,null,17,null,17,"(18)"]
["18 (15)","Christer Blomgren","Lanternan",2831,null,13,108.88461538461539,null,261,317,136,224,null,null,null,251,133,226,231,217,126,121,null,null,287,301,null,19,"-","-",15,18,18,18,null,null,2,3,3,3,2,1,1,2,3,3,3,3,3,3,2,1,2,3,2,null,2,null,null,317,301,287,261,251,231,226,224,217,136,133,126,121,"","","-","-",3,null,2831,null,null,null,null,null,null,null,null,null,null,null,null,null,null,null,null,null,null,null,null,null,null,null,null,null,null,null,null,null,null,null,null,null,null,null,null,null,null,null,null,null,null,null,null,null,null,null,null,null,null,null,null,null,null,null,null,null,null,null,null,null,null,18,null,18,"(15)"]
["19 (19)","Dan Hallstan","Växjö",2735,null,15,101.33333333333333,null,248,246,211,179,159,null,212,287,146,null,176,176,184,182,null,227,null,221,186,19,159,146,19,19,19,19,null,null,2,3,3,3,3,2,2,3,3,2,2,3,3,3,2,2,2,2,3,null,2,null,null,287,248,246,227,221,212,211,186,184,182,179,176,176,159,146,159,146,1,null,3040,null,null,null,null,null,null,null,null,null,null,null,null,null,null,null,null,null,null,null,null,null,null,null,null,null,null,null,null,null,null,null,null,null,null,null,null,null,null,null,null,null,null,null,null,null,null,null,null,null,null,null,null,null,null,null,null,null,null,null,null,null,null,19,null,19,"(19)"]
["20 (21)","Gebriela Kostantinos","Korpen Åseda",2711,null,12,112.95833333333333,null,220,283,175,232,null,null,null,258,null,null,276,161,286,162,null,202,null,269,187,19,"-","-",21,20,20,20,null,null,2,3,3,3,2,1,1,2,2,1,2,3,3,3,2,2,2,2,3,null,2,null,null,286,283,276,269,258,232,220,202,187,175,162,161,"","","","-","-",4,null,2711,null,null,null,null,null,null,null,null,null,null,null,null,null,null,null,null,null,null,null,null,null,null,null,null,null,null,null,null,null,null,null,null,null,null,null,null,null,null,null,null,null,null,null,null,null,null,null,null,null,null,null,null,null,null,null,null,null,null,null,null,null,null,20,null,20,"(21)"]
["21 (15)","Leif Ahlex","Lessebo",2684,null,8,167.75,null,377,null,268,366,226,null,null,332,null,null,null,null,337,null,null,356,null,422,null,19,"-","-",15,21,21,21,null,null,2,2,2,3,3,2,1,2,2,1,1,1,2,2,1,2,2,2,2,null,2,null,null,422,377,366,356,337,332,268,226,"","","","","","","","-","-",8,null,2684,null,null,null,null,null,null,null,null,null,null,null,null,null,null,null,null,null,null,null,null,null,null,null,null,null,null,null,null,null,null,null,null,null,null,null,null,null,null,null,null,null,null,null,null,null,null,null,null,null,null,null,null,null,null,null,null,null,null,null,null,null,null,21,null,21,"(15)"]
["22 (22)","Göran Persson","Dynapac ",2675,null,14,100.67857142857143,null,245,219,182,199,null,null,null,229,144,185,227,178,197,170,null,null,219,217,208,19,144,"-",22,22,22,22,null,null,2,3,3,3,2,1,1,2,3,3,3,3,3,3,2,1,2,3,3,null,2,null,null,245,229,227,219,219,217,208,199,197,185,182,178,170,144,"",144,"-",2,null,2819,null,null,null,null,null,null,null,null,null,null,null,null,null,null,null,null,null,null,null,null,null,null,null,null,null,null,null,null,null,null,null,null,null,null,null,null,null,null,null,null,null,null,null,null,null,null,null,null,null,null,null,null,null,null,null,null,null,null,null,null,null,null,22,null,22,"(22)"]
["23 (22)","Inga-Lill Stühr","Lessebo",2656,null,11,120.72727272727273,null,270,null,202,261,180,null,null,246,null,null,363,null,289,168,null,181,null,257,239,19,"-","-",22,23,23,23,null,null,2,2,2,3,3,2,1,2,2,1,2,2,2,3,2,2,2,2,3,null,2,null,null,363,289,270,261,257,246,239,202,181,180,168,"","","","","-","-",5,null,2656,null,null,null,null,null,null,null,null,null,null,null,null,null,null,null,null,null,null,null,null,null,null,null,null,null,null,null,null,null,null,null,null,null,null,null,null,null,null,null,null,null,null,null,null,null,null,null,null,null,null,null,null,null,null,null,null,null,null,null,null,null,null,23,null,23,"(22)"]
["24 (25)","Kasper Sjöberg","Sketnabäck",2578,null,13,99.15384615384616,null,165,213,141,167,null,null,150,296,136,215,286,231,225,166,null,null,null,null,187,19,"-","-",25,24,24,24,null,null,2,3,3,3,2,1,2,3,3,3,3,3,3,3,2,1,1,1,2,null,2,null,null,296,286,231,225,215,213,187,167,166,165,150,141,136,"","","-","-",3,null,2578,null,null,null,null,null,null,null,null,null,null,null,null,null,null,null,null,null,null,null,null,null,null,null,null,null,null,null,null,null,null,null,null,null,null,null,null,null,null,null,null,null,null,null,null,null,null,null,null,null,null,null,null,null,null,null,null,null,null,null,null,null,null,24,null,24,"(25)"]
["25 (24)","Bela Bodi","Växjö",2576,null,13,99.07692307692308,null,211,null,193,153,247,null,null,193,155,null,232,173,228,181,null,221,null,249,140,19,"-","-",24,25,25,25,null,null,2,2,2,3,3,2,1,2,3,2,2,3,3,3,2,2,2,2,3,null,2,null,null,249,247,232,228,221,211,193,193,181,173,155,153,140,"","","-","-",3,null,2576,null,null,null,null,null,null,null,null,null,null,null,null,null,null,null,null,null,null,null,null,null,null,null,null,null,null,null,null,null,null,null,null,null,null,null,null,null,null,null,null,null,null,null,null,null,null,null,null,null,null,null,null,null,null,null,null,null,null,null,null,null,null,25,null,25,"(24)"]
["26 (27)","Thomas Dahl","Växjö",2457,null,13,94.5,null,296,204,142,177,112,null,null,196,194,null,214,288,173,123,null,157,null,181,null,19,"-","-",27,26,26,26,null,null,2,3,3,3,3,2,1,2,3,2,2,3,3,3,2,2,2,2,2,null,2,null,null,296,288,214,204,196,194,181,177,173,157,142,123,112,"","","-","-",3,null,2457,null,null,null,null,null,null,null,null,null,null,null,null,null,null,null,null,null,null,null,null,null,null,null,null,null,null,null,null,null,null,null,null,null,null,null,null,null,null,null,null,null,null,null,null,null,null,null,null,null,null,null,null,null,null,null,null,null,null,null,null,null,null,26,null,26,"(27)"]
["27 (25)","Berndt Pettersson","Lanternan",2410,null,13,92.692307692307693,null,210,174,179,182,null,null,null,177,179,140,278,234,195,186,null,null,77,199,null,19,"-","-",25,27,27,27,null,null,2,3,3,3,2,1,1,2,3,3,3,3,3,3,2,1,2,3,2,null,2,null,null,278,234,210,199,195,186,182,179,179,177,174,140,77,"","","-","-",3,null,2410,null,null,null,null,null,null,null,null,null,null,null,null,null,null,null,null,null,null,null,null,null,null,null,null,null,null,null,null,null,null,null,null,null,null,null,null,null,null,null,null,null,null,null,null,null,null,null,null,null,null,null,null,null,null,null,null,null,null,null,null,null,null,27,null,27,"(25)"]
["28 (28)","Leif Sundahl","Carlskrona",2390,null,11,108.63636363636364,null,null,166,195,null,null,null,null,275,184,199,null,126,227,230,null,null,377,190,221,19,"-","-",28,28,28,28,null,null,1,2,3,2,1,1,1,2,3,3,2,2,3,3,2,1,2,3,3,null,2,null,null,377,275,230,227,221,199,195,190,184,166,126,"","","","","-","-",5,null,2390,null,null,null,null,null,null,null,null,null,null,null,null,null,null,null,null,null,null,null,null,null,null,null,null,null,null,null,null,null,null,null,null,null,null,null,null,null,null,null,null,null,null,null,null,null,null,null,null,null,null,null,null,null,null,null,null,null,null,null,null,null,null,28,null,28,"(28)"]
["29 (30)","Clara Larsson","Värends Hsk",2327,null,14,86.25,null,167,242,88,164,172,null,null,197,156,null,211,153,168,145,null,152,null,235,165,19,88,"-",30,29,29,29,null,null,2,3,3,3,3,2,1,2,3,2,2,3,3,3,2,2,2,2,3,null,2,null,null,242,235,211,197,172,168,167,165,164,156,153,152,145,88,"",88,"-",2,null,2415,null,null,null,null,null,null,null,null,null,null,null,null,null,null,null,null,null,null,null,null,null,null,null,null,null,null,null,null,null,null,null,null,null,null,null,null,null,null,null,null,null,null,null,null,null,null,null,null,null,null,null,null,null,null,null,null,null,null,null,null,null,null,29,null,29,"(30)"]
["30 (28)","Jan Petersson","Lanternan",2300,null,13,88.461538461538467,null,167,227,316,189,null,null,null,189,95,132,null,132,191,132,null,null,223,167,140,19,"-","-",28,30,30,30,null,null,2,3,3,3,2,1,1,2,3,3,2,2,3,3,2,1,2,3,3,null,2,null,null,316,227,223,191,189,189,167,167,140,132,132,132,95,"","","-","-",3,null,2300,null,null,null,null,null,null,null,null,null,null,null,null,null,null,null,null,null,null,null,null,null,null,null,null,null,null,null,null,null,null,null,null,null,null,null,null,null,null,null,null,null,null,null,null,null,null,null,null,null,null,null,null,null,null,null,null,null,null,null,null,null,null,30,null,30,"(28)"]
["31 (31)","Stefan Tollstam","Dynapac ",2292,null,14,84.071428571428569,null,164,171,154,161,null,null,132,null,162,145,202,62,275,254,null,null,138,147,187,19,62,"-",31,31,31,31,null,null,2,3,3,3,2,1,2,2,2,3,3,3,3,3,2,1,2,3,3,null,2,null,null,275,254,202,187,171,164,162,161,154,147,145,138,132,62,"",62,"-",2,null,2354,null,null,null,null,null,null,null,null,null,null,null,null,null,null,null,null,null,null,null,null,null,null,null,null,null,null,null,null,null,null,null,null,null,null,null,null,null,null,null,null,null,null,null,null,null,null,null,null,null,null,null,null,null,null,null,null,null,null,null,null,null,null,31,null,31,"(31)"]
["32 (32)","Alf Svensson","Korpen Åseda",2283,null,12,95.125,null,198,282,194,217,null,null,null,193,null,null,198,149,193,225,null,144,null,123,167,19,"-","-",32,32,32,32,null,null,2,3,3,3,2,1,1,2,2,1,2,3,3,3,2,2,2,2,3,null,2,null,null,282,225,217,198,198,194,193,193,167,149,144,123,"","","","-","-",4,null,2283,null,null,null,null,null,null,null,null,null,null,null,null,null,null,null,null,null,null,null,null,null,null,null,null,null,null,null,null,null,null,null,null,null,null,null,null,null,null,null,null,null,null,null,null,null,null,null,null,null,null,null,null,null,null,null,null,null,null,null,null,null,null,32,null,32,"(32)"]
["33 (33)","Ingegerd Pettersson","Lanternan",2254,null,13,86.692307692307693,null,174,178,103,174,null,null,null,186,144,134,null,188,169,180,null,null,207,222,195,19,"-","-",33,33,{"$f":"IF(F37>1,ROW(33:33),\"-\")","v":33},33,null,null,2,3,3,3,2,1,1,2,3,3,2,2,3,3,2,1,2,3,3,null,2,null,null,222,207,195,188,186,180,178,174,174,169,144,134,103,"","","-","-",3,null,2254,null,null,null,null,null,null,null,null,null,null,null,null,null,null,null,null,null,null,null,null,null,null,null,null,null,null,null,null,null,null,null,null,null,null,null,null,null,null,null,null,null,null,null,null,null,null,null,null,null,null,null,null,null,null,null,null,null,null,null,null,null,null,33,null,33,"(33)"]
["34 (34)","Malin Lundqvist","Alvesta",2219,null,11,100.86363636363636,null,261,284,null,192,211,null,207,174,159,null,null,null,222,164,null,177,null,168,null,19,"-","-",34,34,34,34,null,null,2,3,2,2,3,2,2,3,3,2,1,1,2,3,2,2,2,2,2,null,2,null,null,284,261,222,211,207,192,177,174,168,164,159,"","","","","-","-",5,null,2219,null,null,null,null,null,null,null,null,null,null,null,null,null,null,null,null,null,null,null,null,null,null,null,null,null,null,null,null,null,null,null,null,null,null,null,null,null,null,null,null,null,null,null,null,null,null,null,null,null,null,null,null,null,null,null,null,null,null,null,null,null,null,34,null,34,"(34)"]
["35 (38)","Kerstin Johansson","Lessebo",2201,null,11,100.04545454545455,null,212,null,212,183,146,null,null,225,null,null,201,null,228,188,null,250,null,147,209,19,"-","-",38,35,35,35,null,null,2,2,2,3,3,2,1,2,2,1,2,2,2,3,2,2,2,2,3,null,2,null,null,250,228,225,212,212,209,201,188,183,147,146,"","","","","-","-",5,null,2201,null,null,null,null,null,null,null,null,null,null,null,null,null,null,null,null,null,null,null,null,null,null,null,null,null,null,null,null,null,null,null,null,null,null,null,null,null,null,null,null,null,null,null,null,null,null,null,null,null,null,null,null,null,null,null,null,null,null,null,null,null,null,35,null,35,"(38)"]
["36 (35)","Lukas Bern","Dynapac ",2163,null,11,98.318181818181813,null,300,199,188,null,null,null,null,189,185,185,null,148,232,166,null,null,172,199,null,19,"-","-",35,36,36,36,null,null,2,3,3,2,1,1,1,2,3,3,2,2,3,3,2,1,2,3,2,null,2,null,null,300,232,199,199,189,188,185,185,172,166,148,"","","","","-","-",5,null,2163,null,null,null,null,null,null,null,null,null,null,null,null,null,null,null,null,null,null,null,null,null,null,null,null,null,null,null,null,null,null,null,null,null,null,null,null,null,null,null,null,null,null,null,null,null,null,null,null,null,null,null,null,null,null,null,null,null,null,null,null,null,null,36,null,36,"(35)"]
["37 (42)","Maire Johansson","Växjö",2138,null,13,82.230769230769226,null,177,179,142,225,170,null,null,137,183,null,210,200,null,150,null,107,null,161,97,19,"-","-",42,37,37,37,null,null,2,3,3,3,3,2,1,2,3,2,2,3,2,2,2,2,2,2,3,null,2,null,null,225,210,200,183,179,177,170,161,150,142,137,107,97,"","","-","-",3,null,2138,null,null,null,null,null,null,null,null,null,null,null,null,null,null,null,null,null,null,null,null,null,null,null,null,null,null,null,null,null,null,null,null,null,null,null,null,null,null,null,null,null,null,null,null,null,null,null,null,null,null,null,null,null,null,null,null,null,null,null,null,null,null,37,null,37,"(42)"]
["38 (40)","Fredrik Lundin","Lanternan",2077,null,8,129.8125,null,null,236,245,null,null,null,null,null,196,276,null,261,344,197,null,null,322,null,null,19,"-","-",40,38,38,38,null,null,1,2,3,2,1,1,1,1,2,3,2,2,3,3,2,1,2,2,1,null,2,null,null,344,322,276,261,245,236,197,196,"","","","","","","","-","-",8,null,2077,null,null,null,null,null,null,null,null,null,null,null,null,null,null,null,null,null,null,null,null,null,null,null,null,null,null,null,null,null,null,null,null,null,null,null,null,null,null,null,null,null,null,null,null,null,null,null,null,null,null,null,null,null,null,null,null,null,null,null,null,null,null,38,null,38,"(40)"]
["39 (37)","Solveig Axelsson","Alvesta",2074,null,14,77,null,143,231,null,179,175,null,120,153,106,null,216,155,132,109,null,142,null,213,82,19,82,"-",37,39,39,39,null,null,2,3,2,2,3,2,2,3,3,2,2,3,3,3,2,2,2,2,3,null,2,null,null,231,216,213,179,175,155,153,143,142,132,120,109,106,82,"",82,"-",2,null,2156,null,null,null,null,null,null,null,null,null,null,null,null,null,null,null,null,null,null,null,null,null,null,null,null,null,null,null,null,null,null,null,null,null,null,null,null,null,null,null,null,null,null,null,null,null,null,null,null,null,null,null,null,null,null,null,null,null,null,null,null,null,null,39,null,39,"(37)"]
["40 (35)","Ronny Lundberg","Lanternan",2058,null,10,102.9,null,180,296,204,191,null,null,null,null,null,210,165,163,null,178,null,null,213,258,null,19,"-","-",35,40,40,40,null,null,2,3,3,3,2,1,1,1,1,2,3,3,2,2,2,1,2,3,2,null,2,null,null,296,258,213,210,204,191,180,178,165,163,"","","","","","-","-",6,null,2058,null,null,null,null,null,null,null,null,null,null,null,null,null,null,null,null,null,null,null,null,null,null,null,null,null,null,null,null,null,null,null,null,null,null,null,null,null,null,null,null,null,null,null,null,null,null,null,null,null,null,null,null,null,null,null,null,null,null,null,null,null,null,40,null,40,"(35)"]
["41 (41)","Peter Edlund","Dynapac ",1999,null,13,76.884615384615387,null,null,175,259,71,null,null,209,227,172,151,181,null,70,95,null,null,140,134,115,19,"-","-",41,41,41,41,null,null,1,2,3,3,2,1,2,3,3,3,3,2,2,3,2,1,2,3,3,null,2,null,null,259,227,209,181,175,172,151,140,134,115,95,71,70,"","","-","-",3,null,1999,null,null,null,null,null,null,null,null,null,null,null,null,null,null,null,null,null,null,null,null,null,null,null,null,null,null,null,null,null,null,null,null,null,null,null,null,null,null,null,null,null,null,null,null,null,null,null,null,null,null,null,null,null,null,null,null,null,null,null,null,null,null,41,null,41,"(41)"]
["42 (48)","Anita Fabbeke","Dynapac ",1998,null,10,99.9,null,null,223,null,null,null,null,null,171,152,100,258,149,null,164,null,null,274,299,208,19,"-","-",48,42,42,42,null,null,1,2,2,1,1,1,1,2,3,3,3,3,2,2,2,1,2,3,3,null,2,null,null,299,274,258,223,208,171,164,152,149,100,"","","","","","-","-",6,null,1998,null,null,null,null,null,null,null,null,null,null,null,null,null,null,null,null,null,null,null,null,null,null,null,null,null,null,null,null,null,null,null,null,null,null,null,null,null,null,null,null,null,null,null,null,null,null,null,null,null,null,null,null,null,null,null,null,null,null,null,null,null,null,42,null,42,"(48)"]
["43 (44)","Carina Gneupel","Sibbamåla",1996,null,11,90.727272727272734,null,242,225,164,128,null,null,null,null,87,156,null,202,198,205,null,null,242,147,null,19,"-","-",44,43,43,43,null,null,2,3,3,3,2,1,1,1,2,3,2,2,3,3,2,1,2,3,2,null,2,null,null,242,242,225,205,202,198,164,156,147,128,87,"","","","","-","-",5,null,1996,null,null,null,null,null,null,null,null,null,null,null,null,null,null,null,null,null,null,null,null,null,null,null,null,null,null,null,null,null,null,null,null,null,null,null,null,null,null,null,null,null,null,null,null,null,null,null,null,null,null,null,null,null,null,null,null,null,null,null,null,null,null,43,null,43,"(44)"]
["44 (45)","Johan Johansson","Tingsryd",1985,null,8,124.0625,null,null,null,250,null,null,null,227,313,176,null,null,null,273,227,null,308,null,null,211,19,"-","-",45,44,44,44,null,null,1,1,2,2,1,1,2,3,3,2,1,1,2,3,2,2,2,1,2,null,2,null,null,313,308,273,250,227,227,211,176,"","","","","","","","-","-",8,null,1985,null,null,null,null,null,null,null,null,null,null,null,null,null,null,null,null,null,null,null,null,null,null,null,null,null,null,null,null,null,null,null,null,null,null,null,null,null,null,null,null,null,null,null,null,null,null,null,null,null,null,null,null,null,null,null,null,null,null,null,null,null,null,44,null,44,"(45)"]
["45 (42)","Olle Nilsson","Tingsryd",1979,null,12,82.458333333333329,null,208,null,152,210,180,null,156,168,75,null,186,null,186,178,null,154,null,null,126,19,"-","-",42,45,45,45,null,null,2,2,2,3,3,2,2,3,3,2,2,2,2,3,2,2,2,1,2,null,2,null,null,210,208,186,186,180,178,168,156,154,152,126,75,"","","","-","-",4,null,1979,null,null,null,null,null,null,null,null,null,null,null,null,null,null,null,null,null,null,null,null,null,null,null,null,null,null,null,null,null,null,null,null,null,null,null,null,null,null,null,null,null,null,null,null,null,null,null,null,null,null,null,null,null,null,null,null,null,null,null,null,null,null,45,null,45,"(42)"]
["46 (50)","Bengt Fabbeke","Dynapac ",1931,null,10,96.55,null,null,228,null,null,null,null,null,243,61,170,261,168,null,158,null,null,228,219,195,19,"-","-",50,46,46,46,null,null,1,2,2,1,1,1,1,2,3,3,3,3,2,2,2,1,2,3,3,null,2,null,null,261,243,228,228,219,195,170,168,158,61,"","","","","","-","-",6,null,1931,null,null,null,null,null,null,null,null,null,null,null,null,null,null,null,null,null,null,null,null,null,null,null,null,null,null,null,null,null,null,null,null,null,null,null,null,null,null,null,null,null,null,null,null,null,null,null,null,null,null,null,null,null,null,null,null,null,null,null,null,null,null,46,null,46,"(50)"]
["47 (50)","Inger Andersson","Korpen Nybro",1917,null,10,95.85,null,159,155,135,295,262,null,null,null,null,null,262,159,137,218,null,null,null,null,135,19,"-","-",50,47,47,47,null,null,2,3,3,3,3,2,1,1,1,1,2,3,3,3,2,1,1,1,2,null,2,null,null,295,262,262,218,159,159,155,137,135,135,"","","","","","-","-",6,null,1917,null,null,null,null,null,null,null,null,null,null,null,null,null,null,null,null,null,null,null,null,null,null,null,null,null,null,null,null,null,null,null,null,null,null,null,null,null,null,null,null,null,null,null,null,null,null,null,null,null,null,null,null,null,null,null,null,null,null,null,null,null,null,47,null,47,"(50)"]
["48 (38)","Kennarth Axelsson","Alvesta",1874,null,8,117.125,null,null,301,null,null,null,null,190,297,180,null,null,null,224,209,null,228,null,245,null,19,"-","-",38,48,48,48,null,null,1,2,2,1,1,1,2,3,3,2,1,1,2,3,2,2,2,2,2,null,2,null,null,301,297,245,228,224,209,190,180,"","","","","","","","-","-",8,null,1874,null,null,null,null,null,null,null,null,null,null,null,null,null,null,null,null,null,null,null,null,null,null,null,null,null,null,null,null,null,null,null,null,null,null,null,null,null,null,null,null,null,null,null,null,null,null,null,null,null,null,null,null,null,null,null,null,null,null,null,null,null,null,48,null,48,"(38)"]
["49 (46)","Christina Holmberg","Tingsryd",1849,null,10,92.45,null,178,223,167,230,148,null,null,280,126,null,null,null,null,154,null,211,null,null,132,19,"-","-",46,49,49,49,null,null,2,3,3,3,3,2,1,2,3,2,1,1,1,2,2,2,2,1,2,null,2,null,null,280,230,223,211,178,167,154,148,132,126,"","","","","","-","-",6,null,1849,null,null,null,null,null,null,null,null,null,null,null,null,null,null,null,null,null,null,null,null,null,null,null,null,null,null,null,null,null,null,null,null,null,null,null,null,null,null,null,null,null,null,null,null,null,null,null,null,null,null,null,null,null,null,null,null,null,null,null,null,null,null,49,null,49,"(46)"]
["50 (53)","Bo Andersson","Hsk Tingzås",1786,null,9,99.222222222222229,null,247,163,null,null,null,null,null,null,200,null,185,199,200,168,null,null,null,168,256,19,"-","-",53,50,50,50,null,null,2,3,2,1,1,1,1,1,2,2,2,3,3,3,2,1,1,2,3,null,2,null,null,256,247,200,200,199,185,168,168,163,"","","","","","","-","-",7,null,1786,null,null,null,null,null,null,null,null,null,null,null,null,null,null,null,null,null,null,null,null,null,null,null,null,null,null,null,null,null,null,null,null,null,null,null,null,null,null,null,null,null,null,null,null,null,null,null,null,null,null,null,null,null,null,null,null,null,null,null,null,null,null,50,null,50,"(53)"]
["51 (47)","Ulrika Rydell","Värends Hsk",1747,null,13,67.192307692307693,null,186,126,91,132,142,null,null,95,83,null,219,175,52,146,null,107,null,193,null,19,"-","-",47,51,51,51,null,null,2,3,3,3,3,2,1,2,3,2,2,3,3,3,2,2,2,2,2,null,2,null,null,219,193,186,175,146,142,132,126,107,95,91,83,52,"","","-","-",3,null,1747,null,null,null,null,null,null,null,null,null,null,null,null,null,null,null,null,null,null,null,null,null,null,null,null,null,null,null,null,null,null,null,null,null,null,null,null,null,null,null,null,null,null,null,null,null,null,null,null,null,null,null,null,null,null,null,null,null,null,null,null,null,null,51,null,51,"(47)"]
["52 (55)","Göran Olofsson","Korpen Nybro",1671,null,8,104.4375,null,null,null,227,154,null,null,null,null,null,null,null,211,291,156,null,249,null,199,184,19,"-","-",55,52,52,52,null,null,1,1,2,3,2,1,1,1,1,1,1,2,3,3,2,2,2,2,3,null,2,null,null,291,249,227,211,199,184,156,154,"","","","","","","","-","-",8,null,1671,null,null,null,null,null,null,null,null,null,null,null,null,null,null,null,null,null,null,null,null,null,null,null,null,null,null,null,null,null,null,null,null,null,null,null,null,null,null,null,null,null,null,null,null,null,null,null,null,null,null,null,null,null,null,null,null,null,null,null,null,null,null,52,null,52,"(55)"]
["53 (52)","Robert Sjöberg","Sketnabäck",1623,null,12,67.625,null,109,163,142,165,null,null,108,165,112,122,null,120,156,130,null,null,null,null,131,19,"-","-",52,53,53,53,null,null,2,3,3,3,2,1,2,3,3,3,2,2,3,3,2,1,1,1,2,null,2,null,null,165,165,163,156,142,131,130,122,120,112,109,108,"","","","-","-",4,null,1623,null,null,null,null,null,null,null,null,null,null,null,null,null,null,null,null,null,null,null,null,null,null,null,null,null,null,null,null,null,null,null,null,null,null,null,null,null,null,null,null,null,null,null,null,null,null,null,null,null,null,null,null,null,null,null,null,null,null,null,null,null,null,53,null,53,"(52)"]
["54 (53)","Mikael Karlsson","Hsk Tingzås",1566,null,10,78.3,null,147,174,null,150,null,null,null,216,121,null,216,151,130,122,null,null,null,139,null,19,"-","-",53,54,54,54,null,null,2,3,2,2,2,1,1,2,3,2,2,3,3,3,2,1,1,2,2,null,2,null,null,216,216,174,151,150,147,139,130,122,121,"","","","","","-","-",6,null,1566,null,null,null,null,null,null,null,null,null,null,null,null,null,null,null,null,null,null,null,null,null,null,null,null,null,null,null,null,null,null,null,null,null,null,null,null,null,null,null,null,null,null,null,null,null,null,null,null,null,null,null,null,null,null,null,null,null,null,null,null,null,null,54,null,54,"(53)"]
["55 (57)","Kerstin Svensson","Växjö Hsk",1552,null,13,59.692307692307693,null,107,92,59,172,null,null,93,152,95,null,null,79,166,98,null,148,null,133,158,19,"-","-",57,55,55,55,null,null,2,3,3,3,2,1,2,3,3,2,1,2,3,3,2,2,2,2,3,null,2,null,null,172,166,158,152,148,133,107,98,95,93,92,79,59,"","","-","-",3,null,1552,null,null,null,null,null,null,null,null,null,null,null,null,null,null,null,null,null,null,null,null,null,null,null,null,null,null,null,null,null,null,null,null,null,null,null,null,null,null,null,null,null,null,null,null,null,null,null,null,null,null,null,null,null,null,null,null,null,null,null,null,null,null,55,null,55,"(57)"]
["56 (59)","Roland Sjöstrand","Hsk Tingzås",1549,null,12,64.541666666666671,null,78,176,null,182,null,null,150,122,158,null,58,81,151,91,null,null,null,132,170,19,"-","-",59,56,56,56,null,null,2,3,2,2,2,1,2,3,3,2,2,3,3,3,2,1,1,2,3,null,2,null,null,182,176,170,158,151,150,132,122,91,81,78,58,"","","","-","-",4,null,1549,null,null,null,null,null,null,null,null,null,null,null,null,null,null,null,null,null,null,null,null,null,null,null,null,null,null,null,null,null,null,null,null,null,null,null,null,null,null,null,null,null,null,null,null,null,null,null,null,null,null,null,null,null,null,null,null,null,null,null,null,null,null,56,null,56,"(59)"]
["57 (48)","Lennart Karlsson","Lanternan",1537,null,9,85.388888888888886,null,174,148,139,132,null,null,null,null,null,168,null,192,203,188,null,null,193,null,null,19,"-","-",48,57,57,57,null,null,2,3,3,3,2,1,1,1,1,2,2,2,3,3,2,1,2,2,1,null,2,null,null,203,193,192,188,174,168,148,139,132,"","","","","","","-","-",7,null,1537,null,null,null,null,null,null,null,null,null,null,null,null,null,null,null,null,null,null,null,null,null,null,null,null,null,null,null,null,null,null,null,null,null,null,null,null,null,null,null,null,null,null,null,null,null,null,null,null,null,null,null,null,null,null,null,null,null,null,null,null,null,null,57,null,57,"(48)"]
["58 (62)","Bo Fransson","Lessebo",1514,null,6,126.16666666666667,null,324,null,221,null,241,null,null,null,null,null,null,null,230,null,null,184,null,null,314,19,"-","-",62,58,58,58,null,null,2,2,2,2,2,2,1,1,1,1,1,1,2,2,1,2,2,1,2,null,2,null,null,324,314,241,230,221,184,"","","","","","","","","","-","-",10,null,1514,null,null,null,null,null,null,null,null,null,null,null,null,null,null,null,null,null,null,null,null,null,null,null,null,null,null,null,null,null,null,null,null,null,null,null,null,null,null,null,null,null,null,null,null,null,null,null,null,null,null,null,null,null,null,null,null,null,null,null,null,null,null,58,null,58,"(62)"]
["59 (56)","Lasse Nilsson","Värends Hsk",1513,null,8,94.5625,null,214,null,null,162,null,null,null,165,null,null,209,null,null,201,null,219,null,153,190,19,"-","-",56,59,59,59,null,null,2,2,1,2,2,1,1,2,2,1,2,2,1,2,2,2,2,2,3,null,2,null,null,219,214,209,201,190,165,162,153,"","","","","","","","-","-",8,null,1513,null,null,null,null,null,null,null,null,null,null,null,null,null,null,null,null,null,null,null,null,null,null,null,null,null,null,null,null,null,null,null,null,null,null,null,null,null,null,null,null,null,null,null,null,null,null,null,null,null,null,null,null,null,null,null,null,null,null,null,null,null,null,59,null,59,"(56)"]
["60 (57)","Gilbert Pettersson","Lanternan",1470,null,8,91.875,null,209,236,184,null,null,null,null,271,122,null,150,null,null,135,null,null,null,null,163,19,"-","-",57,60,60,60,null,null,2,3,3,2,1,1,1,2,3,2,2,2,1,2,2,1,1,1,2,null,2,null,null,271,236,209,184,163,150,135,122,"","","","","","","","-","-",8,null,1470,null,null,null,null,null,null,null,null,null,null,null,null,null,null,null,null,null,null,null,null,null,null,null,null,null,null,null,null,null,null,null,null,null,null,null,null,null,null,null,null,null,null,null,null,null,null,null,null,null,null,null,null,null,null,null,null,null,null,null,null,null,null,60,null,60,"(57)"]
["61 (60)","Christer Brincner","Värends Hsk",1438,null,8,89.875,null,222,null,null,208,null,null,null,202,164,null,165,null,null,85,null,null,null,238,154,19,"-","-",60,61,61,61,null,null,2,2,1,2,2,1,1,2,3,2,2,2,1,2,2,1,1,2,3,null,2,null,null,238,222,208,202,165,164,154,85,"","","","","","","","-","-",8,null,1438,null,null,null,null,null,null,null,null,null,null,null,null,null,null,null,null,null,null,null,null,null,null,null,null,null,null,null,null,null,null,null,null,null,null,null,null,null,null,null,null,null,null,null,null,null,null,null,null,null,null,null,null,null,null,null,null,null,null,null,null,null,null,61,null,61,"(60)"]
["62 (66)","Jörgen Holmqvist","Lessebo Hsk",1387,null,5,138.69999999999999,null,307,null,null,null,250,null,null,null,null,null,null,null,309,null,null,296,null,null,225,19,"-","-",66,62,62,62,null,null,2,2,1,1,2,2,1,1,1,1,1,1,2,2,1,2,2,1,2,null,2,null,null,309,307,296,250,225,"","","","","","","","","","","-","-",11,null,1387,null,null,null,null,null,null,null,null,null,null,null,null,null,null,null,null,null,null,null,null,null,null,null,null,null,null,null,null,null,null,null,null,null,null,null,null,null,null,null,null,null,null,null,null,null,null,null,null,null,null,null,null,null,null,null,null,null,null,null,null,null,null,62,null,62,"(66)"]
["63 (68)","Magnus Israelsson","Sibbamåla",1379,null,5,137.9,null,null,null,null,null,null,null,null,null,null,null,null,null,281,246,null,null,297,331,224,19,"-","-",68,63,63,63,null,null,1,1,1,1,1,1,1,1,1,1,1,1,2,3,2,1,2,3,3,null,2,null,null,331,297,281,246,224,"","","","","","","","","","","-","-",11,null,1379,null,null,null,null,null,null,null,null,null,null,null,null,null,null,null,null,null,null,null,null,null,null,null,null,null,null,null,null,null,null,null,null,null,null,null,null,null,null,null,null,null,null,null,null,null,null,null,null,null,null,null,null,null,null,null,null,null,null,null,null,null,null,63,null,63,"(68)"]
["64 (62)","Alf Johansson","Värends Hsk",1338,null,11,60.81818181818182,null,149,null,null,67,112,null,null,133,64,null,136,143,null,195,null,123,null,138,78,19,"-","-",62,64,64,64,null,null,2,2,1,2,3,2,1,2,3,2,2,3,2,2,2,2,2,2,3,null,2,null,null,195,149,143,138,136,133,123,112,78,67,64,"","","","","-","-",5,null,1338,null,null,null,null,null,null,null,null,null,null,null,null,null,null,null,null,null,null,null,null,null,null,null,null,null,null,null,null,null,null,null,null,null,null,null,null,null,null,null,null,null,null,null,null,null,null,null,null,null,null,null,null,null,null,null,null,null,null,null,null,null,null,64,null,64,"(62)"]
["65 (65)","Rolf Johannesson","Värends Hsk",{"$f":"SUM(BH69:BT69)","v":1313},null,{"$f":"COUNT(I69:AA69)","v":8},{"$f":"SUM((CA69)/(F69*2))","v":82.0625},null,214,null,null,null,null,null,null,148,null,null,159,179,112,212,null,null,null,168,121,{"$f":"SUM($I$3:$AA$3)","v":19},{"$f":"BW69","v":"-"},{"$f":"BX69","v":"-"},65,65,{"$f":"IF(F69>1,ROW(65:65),\"-\")","v":65},65,null,null,2,2,1,1,1,1,1,2,2,1,2,3,3,3,2,1,1,2,3,null,{"$f":"IF(H69=\"x\",1,2)","v":2},null,null,214,212,179,168,159,148,121,112,"","","","","","","","-","-",8,null,1313,null,null,null,null,null,null,null,null,null,null,null,null,null,null,null,null,null,null,null,null,null,null,null,null,null,null,null,null,null,null,null,null,null,null,null,null,null,null,null,null,null,null,null,null,null,null,null,null,null,null,null,null,null,null,null,null,null,null,null,null,null,null,65,null,65,"(65)"]
["66 (70)","Maria Andersson","Värends Hsk",1295,null,9,71.944444444444443,null,null,null,91,121,155,null,null,127,null,null,null,203,null,163,null,112,null,160,163,19,"-","-",70,66,66,66,null,null,{"$f":"COUNT($I$3,I70,H70)","v":1},{"$f":"COUNT($J$3,J70,I70)","v":1},{"$f":"COUNT($K$3,K70,J70)","v":2},{"$f":"COUNT($L$3,L70,K70)","v":3},{"$f":"COUNT($M$3,M70,L70)","v":3},{"$f":"COUNT($N$3,N70,M70)","v":2},{"$f":"COUNT($O$3,O70,N70)","v":1},{"$f":"COUNT($P$3,P70,O70)","v":2},{"$f":"COUNT($Q$3,Q70,P70)","v":2},{"$f":"COUNT($R$3,R70,Q70)","v":1},{"$f":"COUNT($S$3,S70,R70)","v":1},{"$f":"COUNT($T$3,T70,S70)","v":2},{"$f":"COUNT($U$3,U70,T70)","v":2},{"$f":"COUNT($V$3,V70,U70)","v":2},{"$f":"COUNT($W$3,W70,V70)","v":2},{"$f":"COUNT($X$3,X70,W70)","v":2},{"$f":"COUNT($Y$3,Y70,X70)","v":2},{"$f":"COUNT($Z$3,Z70,Y70)","v":2},{"$f":"COUNT($AA$3,AA70,Z70)","v":3},null,2,null,null,{"$f":"IF($F70>0,LARGE($I70:$AA70,1),\"\")","v":203},{"$f":"IF($F70>1,LARGE($I70:$AA70,2),\"\")","v":163},{"$f":"IF($F70>2,LARGE($I70:$AA70,3),\"\")","v":163},{"$f":"IF($F70>3,LARGE($I70:$AA70,4),\"\")","v":160},{"$f":"IF($F70>4,LARGE($I70:$AA70,5),\"\")","v":155},{"$f":"IF($F70>5,LARGE($I70:$AA70,6),\"\")","v":127},{"$f":"IF($F70>6,LARGE($I70:$AA70,7),\"\")","v":121},{"$f":"IF($F70>7,LARGE($I70:$AA70,8),\"\")","v":112},{"$f":"IF($F70>8,LARGE($I70:$AA70,9),\"\")","v":91},{"$f":"IF($F70>9,LARGE($I70:$AA70,10),\"\")","v":""},{"$f":"IF($F70>10,LARGE($I70:$AA70,11),\"\")","v":""},{"$f":"IF($F70>11,LARGE($I70:$AA70,12),\"\")","v":""},{"$f":"IF($F70>12,LARGE($I70:$AA70,13),\"\")","v":""},{"$f":"IF($F70>13,LARGE($I70:$AA70,14),\"\")","v":""},{"$f":"IF($F70>14,LARGE($I70:$AA70,15),\"\")","v":""},{"$f":"IF($F70>13,LARGE($I70:$AA70,14),\"-\")","v":"-"},{"$f":"IF($F70>14,LARGE($I70:$AA70,15),\"-\")","v":"-"},{"$f":"SUM(AB70-F70)-3","v":7},null,{"$f":"SUM(BH70:BV70)","v":1295},null,null,null,null,null,null,null,null,null,null,null,null,null,null,null,null,null,null,null,null,null,null,null,null,null,null,null,null,null,null,null,null,null,null,null,null,null,null,null,null,null,null,null,null,null,null,null,null,null,null,null,null,null,null,null,null,null,null,null,null,null,null,66,null,{"$f":"IF(BE70>=1,AF70,\"\")","v":66},{"$f":"IF(BE70>1,\"(\"&AE70&\")\",\"(\"&AG70&\")\")","v":"(70)"}]
["67 (60)","Roy Dahlén","Dynapac ",1279,null,6,106.58333333333333,null,227,300,null,null,null,null,null,null,177,166,null,null,null,null,null,null,238,null,171,19,"-","-",60,{"$f":"IF(D71<D70,AH71,AF70)","v":67},67,67,null,null,2,3,2,1,1,1,1,1,2,3,2,1,1,1,1,1,2,2,2,null,2,null,null,300,238,227,177,171,166,"","","","","","","","","","-","-",10,null,1279,null,null,null,null,null,null,null,null,null,null,null,null,null,null,null,null,null,null,null,null,null,null,null,null,null,null,null,null,null,null,null,null,null,null,null,null,null,null,null,null,null,null,null,null,null,null,null,null,null,null,null,null,null,null,null,null,null,null,null,null,null,null,67,null,67,"(60)"]
["68 (62)","Martin Antic","Värends Hsk",1261,null,10,63.05,null,195,null,113,150,null,null,null,119,115,null,null,136,83,53,null,134,null,163,null,19,"-","-",62,68,68,68,null,null,2,2,2,3,2,1,1,2,3,2,1,2,3,3,2,2,2,2,2,null,2,null,null,195,163,150,136,134,119,115,113,83,53,"","","","","","-","-",6,null,1261,null,null,null,null,null,null,null,null,null,null,null,null,null,null,null,null,null,null,null,null,null,null,null,null,null,null,null,null,null,null,null,null,null,null,null,null,null,null,null,null,null,null,null,null,null,null,null,null,null,null,null,null,null,null,null,null,null,null,null,null,null,null,68,null,68,"(62)"]
["69 (66)","Bengt-Erik Holmberg","Tingsryd",1174,null,6,97.833333333333329,null,null,null,205,255,null,null,187,null,null,null,null,null,null,190,null,133,null,null,204,19,"-","-",66,69,69,69,null,null,1,1,2,3,2,1,2,2,1,1,1,1,1,2,2,2,2,1,2,null,2,null,null,255,205,204,190,187,133,"","","","","","","","","","-","-",10,null,1174,null,null,null,null,null,null,null,null,null,null,null,null,null,null,null,null,null,null,null,null,null,null,null,null,null,null,null,null,null,null,null,null,null,null,null,null,null,null,null,null,null,null,null,null,null,null,null,null,null,null,null,null,null,null,null,null,null,null,null,null,null,null,69,null,69,"(66)"]
["70 (68)","Sune Olsson","Korpen Nybro",1155,null,6,96.25,null,null,null,217,205,null,null,null,null,null,null,null,184,173,166,null,null,null,210,null,19,"-","-",68,70,70,70,null,null,1,1,2,3,2,1,1,1,1,1,1,2,3,3,2,1,1,2,2,null,2,null,null,217,210,205,184,173,166,"","","","","","","","","","-","-",10,null,1155,null,null,null,null,null,null,null,null,null,null,null,null,null,null,null,null,null,null,null,null,null,null,null,null,null,null,null,null,null,null,null,null,null,null,null,null,null,null,null,null,null,null,null,null,null,null,null,null,null,null,null,null,null,null,null,null,null,null,null,null,null,null,70,null,70,"(68)"]
["71 (75)","Rune Karlsson","Korpen Nybro",1115,null,5,111.5,null,null,null,226,216,null,null,null,null,null,null,328,188,null,null,null,null,null,null,157,19,"-","-",75,71,71,71,null,null,1,1,2,3,2,1,1,1,1,1,2,3,2,1,1,1,1,1,2,null,2,null,null,328,226,216,188,157,"","","","","","","","","","","-","-",11,null,1115,null,null,null,null,null,null,null,null,null,null,null,null,null,null,null,null,null,null,null,null,null,null,null,null,null,null,null,null,null,null,null,null,null,null,null,null,null,null,null,null,null,null,null,null,null,null,null,null,null,null,null,null,null,null,null,null,null,null,null,null,null,null,71,null,71,"(75)"]
["72 (71)","Rickard Holgersson","Sketnabäck",1093,null,9,60.722222222222221,null,null,145,151,114,null,null,null,null,81,94,null,100,152,117,null,null,null,null,139,19,"-","-",71,72,72,72,null,null,1,2,3,3,2,1,1,1,2,3,2,2,3,3,2,1,1,1,2,null,2,null,null,152,151,145,139,117,114,100,94,81,"","","","","","","-","-",7,null,1093,null,null,null,null,null,null,null,null,null,null,null,null,null,null,null,null,null,null,null,null,null,null,null,null,null,null,null,null,null,null,null,null,null,null,null,null,null,null,null,null,null,null,null,null,null,null,null,null,null,null,null,null,null,null,null,null,null,null,null,null,null,null,72,null,72,"(71)"]
["73 (71)","Ulf Seyer","Alvesta",1079,null,12,44.958333333333336,null,null,56,null,111,82,null,102,85,94,null,119,104,88,86,null,null,null,91,61,19,"-","-",71,73,73,73,null,null,1,2,2,2,3,2,2,3,3,2,2,3,3,3,2,1,1,2,3,null,2,null,null,119,111,104,102,94,91,88,86,85,82,61,56,"","","","-","-",4,null,1079,null,null,null,null,null,null,null,null,null,null,null,null,null,null,null,null,null,null,null,null,null,null,null,null,null,null,null,null,null,null,null,null,null,null,null,null,null,null,null,null,null,null,null,null,null,null,null,null,null,null,null,null,null,null,null,null,null,null,null,null,null,null,73,null,73,"(71)"]
[{"$f":"IF(BE78>1,AF78&\" (\"&AE78&\")\",AF78&\" (\"&AG78&\")\")","v":"74 (73)"},"Elin Olsson","Dynapac ",1060,null,8,66.25,null,null,206,123,113,null,null,null,null,106,80,null,177,158,97,null,null,null,null,null,19,"-","-",73,74,74,74,null,null,1,2,3,3,2,1,1,1,2,3,2,2,3,3,2,1,1,1,1,null,2,null,null,206,177,158,123,113,106,97,80,"","","","","","","","-","-",8,null,1060,null,null,null,null,null,null,null,null,null,null,null,null,null,null,null,null,null,null,null,null,null,null,null,null,null,null,null,null,null,null,null,null,null,null,null,null,null,null,null,null,null,null,null,null,null,null,null,null,null,null,null,null,null,null,null,null,null,null,null,null,null,null,74,null,74,"(73)"]
["75 (74)","Mattias Olsson","Dynapac ",1059,null,5,105.9,null,308,206,null,null,null,null,null,null,185,147,null,null,null,213,null,null,null,null,null,19,"-","-",74,75,75,75,null,null,2,3,2,1,1,1,1,1,2,3,2,1,1,2,2,1,1,1,1,null,2,null,null,308,213,206,185,147,"","","","","","","","","","","-","-",11,null,1059,null,null,null,null,null,null,null,null,null,null,null,null,null,null,null,null,null,null,null,null,null,null,null,null,null,null,null,null,null,null,null,null,null,null,null,null,null,null,null,null,null,null,null,null,null,null,null,null,null,null,null,null,null,null,null,null,null,null,null,null,null,null,75,null,75,"(74)"]
["76 (82)","Joel Sundahl","Carlskrona",1012,null,6,84.333333333333329,null,null,null,null,null,null,null,null,191,null,null,null,null,131,163,null,null,239,163,125,19,"-","-",82,76,76,76,null,null,1,1,1,1,1,1,1,2,2,1,1,1,2,3,2,1,2,3,3,null,2,null,null,239,191,163,163,131,125,"","","","","","","","","","-","-",10,null,1012,null,null,null,null,null,null,null,null,null,null,null,null,null,null,null,null,null,null,null,null,null,null,null,null,null,null,null,null,null,null,null,null,null,null,null,null,null,null,null,null,null,null,null,null,null,null,null,null,null,null,null,null,null,null,null,null,null,null,null,null,null,null,76,null,76,"(82)"]
["77 (75)","Louise Tollstam","Dynapac ",969,null,7,69.214285714285708,null,153,166,135,166,null,null,null,null,100,98,null,null,null,null,null,null,151,null,null,19,"-","-",75,77,77,77,null,null,2,3,3,3,2,1,1,1,2,3,2,1,1,1,1,1,2,2,1,null,2,null,null,166,166,153,151,135,100,98,"","","","","","","","","-","-",9,null,969,null,null,null,null,null,null,null,null,null,null,null,null,null,null,null,null,null,null,null,null,null,null,null,null,null,null,null,null,null,null,null,null,null,null,null,null,null,null,null,null,null,null,null,null,null,null,null,null,null,null,null,null,null,null,null,null,null,null,null,null,null,null,77,null,77,"(75)"]
["78 (79)","Gunnar Lundbeck","Tingsryd",968,null,8,60.5,null,177,122,null,null,null,null,null,76,71,null,114,null,null,142,null,175,null,null,91,19,"-","-",79,78,78,78,null,null,2,3,2,1,1,1,1,2,3,2,2,2,1,2,2,2,2,1,2,null,2,null,null,177,175,142,122,114,91,76,71,"","","","","","","","-","-",8,null,968,null,null,null,null,null,null,null,null,null,null,null,null,null,null,null,null,null,null,null,null,null,null,null,null,null,null,null,null,null,null,null,null,null,null,null,null,null,null,null,null,null,null,null,null,null,null,null,null,null,null,null,null,null,null,null,null,null,null,null,null,null,null,78,null,78,"(79)"]
["79 (78)","Roger Frost","Sibbamåla",948,null,7,67.714285714285708,null,203,138,null,null,null,null,null,null,76,78,null,null,140,152,null,null,161,null,null,19,"-","-",78,79,79,79,null,null,2,3,2,1,1,1,1,1,2,3,2,1,2,3,2,1,2,2,1,null,2,null,null,203,161,152,140,138,78,76,"","","","","","","","","-","-",9,null,948,null,null,null,null,null,null,null,null,null,null,null,null,null,null,null,null,null,null,null,null,null,null,null,null,null,null,null,null,null,null,null,null,null,null,null,null,null,null,null,null,null,null,null,null,null,null,null,null,null,null,null,null,null,null,null,null,null,null,null,null,null,null,79,null,79,"(78)"]
["80 (79)","Ingegerd Sjöstrand","Hsk Tingzås",941,null,8,58.8125,null,173,175,null,106,null,null,120,null,116,null,99,null,69,null,null,null,null,83,null,19,"-","-",79,80,80,80,null,null,2,3,2,2,2,1,2,2,2,2,2,2,2,2,1,1,1,2,2,null,2,null,null,175,173,120,116,106,99,83,69,"","","","","","","","-","-",8,null,941,null,null,null,null,null,null,null,null,null,null,null,null,null,null,null,null,null,null,null,null,null,null,null,null,null,null,null,null,null,null,null,null,null,null,null,null,null,null,null,null,null,null,null,null,null,null,null,null,null,null,null,null,null,null,null,null,null,null,null,null,null,null,80,null,80,"(79)"]
["81 (81)","Markus Johansson","Dynapac ",920,null,7,65.714285714285708,null,null,95,60,138,null,null,null,null,84,139,null,175,229,null,null,null,null,null,null,19,"-","-",81,81,81,81,null,null,1,2,3,3,2,1,1,1,2,3,2,2,3,2,1,1,1,1,1,null,2,null,null,229,175,139,138,95,84,60,"","","","","","","","","-","-",9,null,920,null,null,null,null,null,null,null,null,null,null,null,null,null,null,null,null,null,null,null,null,null,null,null,null,null,null,null,null,null,null,null,null,null,null,null,null,null,null,null,null,null,null,null,null,null,null,null,null,null,null,null,null,null,null,null,null,null,null,null,null,null,null,81,null,81,"(81)"]
["82 (87)","Sebastian Israelsson","Sibbamåla",912,null,7,65.142857142857139,null,null,null,108,183,null,null,null,177,115,null,null,null,null,59,null,null,null,164,106,19,"-","-",87,82,82,82,null,null,1,1,2,3,2,1,1,2,3,2,1,1,1,2,2,1,1,2,3,null,2,null,null,183,177,164,115,108,106,59,"","","","","","","","","-","-",9,null,912,null,null,null,null,null,null,null,null,null,null,null,null,null,null,null,null,null,null,null,null,null,null,null,null,null,null,null,null,null,null,null,null,null,null,null,null,null,null,null,null,null,null,null,null,null,null,null,null,null,null,null,null,null,null,null,null,null,null,null,null,null,null,82,null,82,"(87)"]
["83 (87)","Mikael Bodi","Växjö Hsk",903,null,6,75.25,null,null,null,null,null,null,null,null,191,null,null,193,null,null,172,null,111,null,139,97,19,"-","-",87,83,83,83,null,null,1,1,1,1,1,1,1,2,2,1,2,2,1,2,2,2,2,2,3,null,2,null,null,193,191,172,139,111,97,"","","","","","","","","","-","-",10,null,903,null,null,null,null,null,null,null,null,null,null,null,null,null,null,null,null,null,null,null,null,null,null,null,null,null,null,null,null,null,null,null,null,null,null,null,null,null,null,null,null,null,null,null,null,null,null,null,null,null,null,null,null,null,null,null,null,null,null,null,null,null,null,83,null,83,"(87)"]
["84 (85)","Jonas Klarström","Värends Hsk",876,null,10,43.8,null,null,null,162,116,67,null,null,48,88,null,null,122,null,72,null,98,null,48,55,19,"-","-",85,84,84,84,null,null,1,1,2,3,3,2,1,2,3,2,1,2,2,2,2,2,2,2,3,null,2,null,null,162,122,116,98,88,72,67,55,48,48,"","","","","","-","-",6,null,876,null,null,null,null,null,null,null,null,null,null,null,null,null,null,null,null,null,null,null,null,null,null,null,null,null,null,null,null,null,null,null,null,null,null,null,null,null,null,null,null,null,null,null,null,null,null,null,null,null,null,null,null,null,null,null,null,null,null,null,null,null,null,84,null,84,"(85)"]
["85 (84)","Kent Vikström","Växjö",852,null,4,106.5,null,247,163,null,null,214,null,null,null,null,null,null,228,null,null,null,null,null,null,null,19,"-","-",84,85,85,85,null,null,2,3,2,1,2,2,1,1,1,1,1,2,2,1,1,1,1,1,1,null,2,null,null,247,228,214,163,"","","","","","","","","","","","-","-",12,null,852,null,null,null,null,null,null,null,null,null,null,null,null,null,null,null,null,null,null,null,null,null,null,null,null,null,null,null,null,null,null,null,null,null,null,null,null,null,null,null,null,null,null,null,null,null,null,null,null,null,null,null,null,null,null,null,null,null,null,null,null,null,null,85,null,85,"(84)"]
["86 (85)","Niclas Gunnarsson","Sibbamåla",846,null,5,84.6,null,202,209,null,null,null,null,null,null,170,null,null,null,144,121,null,null,null,null,null,19,"-","-",85,86,86,86,null,null,2,3,2,1,1,1,1,1,2,2,1,1,2,3,2,1,1,1,1,null,2,null,null,209,202,170,144,121,"","","","","","","","","","","-","-",11,null,846,null,null,null,null,null,null,null,null,null,null,null,null,null,null,null,null,null,null,null,null,null,null,null,null,null,null,null,null,null,null,null,null,null,null,null,null,null,null,null,null,null,null,null,null,null,null,null,null,null,null,null,null,null,null,null,null,null,null,null,null,null,null,86,null,86,"(85)"]
["87 (96)","Viktor Holgersson","Sketnabäck",826,null,7,59,null,null,null,158,86,null,null,null,110,71,131,null,null,157,null,null,null,null,null,113,19,"-","-",96,87,87,87,null,null,1,1,2,3,2,1,1,2,3,3,2,1,2,2,1,1,1,1,2,null,2,null,null,158,157,131,113,110,86,71,"","","","","","","","","-","-",9,null,826,null,null,null,null,null,null,null,null,null,null,null,null,null,null,null,null,null,null,null,null,null,null,null,null,null,null,null,null,null,null,null,null,null,null,null,null,null,null,null,null,null,null,null,null,null,null,null,null,null,null,null,null,null,null,null,null,null,null,null,null,null,null,87,null,87,"(96)"]
["88 (100)","Nils-Åke Hansson","Korpen Nybro",817,null,5,81.7,null,null,null,null,null,null,null,null,null,null,null,null,123,213,178,null,164,null,null,139,19,"-","-",100,88,88,88,null,null,1,1,1,1,1,1,1,1,1,1,1,2,3,3,2,2,2,1,2,null,2,null,null,213,178,164,139,123,"","","","","","","","","","","-","-",11,null,817,null,null,null,null,null,null,null,null,null,null,null,null,null,null,null,null,null,null,null,null,null,null,null,null,null,null,null,null,null,null,null,null,null,null,null,null,null,null,null,null,null,null,null,null,null,null,null,null,null,null,null,null,null,null,null,null,null,null,null,null,null,null,88,null,88,"(100)"]
[{"$f":"IF(BE93>1,AF93&\" (\"&AE93&\")\",AF93&\" (\"&AG93&\")\")","v":"89 (90)"},"Martin Björklund","Sketnabäck",805,null,5,80.5,null,null,null,134,193,null,null,205,null,null,null,null,157,null,116,null,null,null,null,null,19,"-","-",90,{"$f":"IF(D93<D92,AH93,AF92)","v":89},{"$f":"IF(F93>1,ROW(89:89),\"-\")","v":89},89,null,null,{"$f":"COUNT($I$3,I93,H93)","v":1},{"$f":"COUNT($J$3,J93,I93)","v":1},{"$f":"COUNT($K$3,K93,J93)","v":2},{"$f":"COUNT($L$3,L93,K93)","v":3},{"$f":"COUNT($M$3,M93,L93)","v":2},{"$f":"COUNT($N$3,N93,M93)","v":1},{"$f":"COUNT($O$3,O93,N93)","v":2},{"$f":"COUNT($P$3,P93,O93)","v":2},{"$f":"COUNT($Q$3,Q93,P93)","v":1},{"$f":"COUNT($R$3,R93,Q93)","v":1},{"$f":"COUNT($S$3,S93,R93)","v":1},{"$f":"COUNT($T$3,T93,S93)","v":2},{"$f":"COUNT($U$3,U93,T93)","v":2},{"$f":"COUNT($V$3,V93,U93)","v":2},{"$f":"COUNT($W$3,W93,V93)","v":2},{"$f":"COUNT($X$3,X93,W93)","v":1},{"$f":"COUNT($Y$3,Y93,X93)","v":1},{"$f":"COUNT($Z$3,Z93,Y93)","v":1},{"$f":"COUNT($AA$3,AA93,Z93)","v":1},null,{"$f":"IF(H93=\"x\",1,2)","v":2},null,null,{"$f":"IF($F93>0,LARGE($I93:$AA93,1),\"\")","v":205},{"$f":"IF($F93>1,LARGE($I93:$AA93,2),\"\")","v":193},{"$f":"IF($F93>2,LARGE($I93:$AA93,3),\"\")","v":157},{"$f":"IF($F93>3,LARGE($I93:$AA93,4),\"\")","v":134},{"$f":"IF($F93>4,LARGE($I93:$AA93,5),\"\")","v":116},{"$f":"IF($F93>5,LARGE($I93:$AA93,6),\"\")","v":""},{"$f":"IF($F93>6,LARGE($I93:$AA93,7),\"\")","v":""},{"$f":"IF($F93>7,LARGE($I93:$AA93,8),\"\")","v":""},{"$f":"IF($F93>8,LARGE($I93:$AA93,9),\"\")","v":""},{"$f":"IF($F93>9,LARGE($I93:$AA93,10),\"\")","v":""},{"$f":"IF($F93>10,LARGE($I93:$AA93,11),\"\")","v":""},{"$f":"IF($F93>11,LARGE($I93:$AA93,12),\"\")","v":""},{"$f":"IF($F93>12,LARGE($I93:$AA93,13),\"\")","v":""},{"$f":"IF($F93>13,LARGE($I93:$AA93,14),\"\")","v":""},{"$f":"IF($F93>14,LARGE($I93:$AA93,15),\"\")","v":""},{"$f":"IF($F93>13,LARGE($I93:$AA93,14),\"-\")","v":"-"},{"$f":"IF($F93>14,LARGE($I93:$AA93,15),\"-\")","v":"-"},{"$f":"SUM(AB93-F93)-3","v":11},null,{"$f":"SUM(BH93:BV93)","v":805},null,null,null,null,null,null,null,null,null,null,null,null,null,null,null,null,null,null,null,null,null,null,null,null,null,null,null,null,null,null,null,null,null,null,null,null,null,null,null,null,null,null,null,null,null,null,null,null,null,null,null,null,null,null,null,null,null,null,null,null,null,null,90,null,{"$f":"IF(BE93>=1,AF93,\"\")","v":89},{"$f":"IF(BE93>1,\"(\"&AE93&\")\",\"(\"&AG93&\")\")","v":"(90)"}]
["90 (75)","Patrick Axelsson","Alvesta",803,null,4,100.375,null,null,null,null,null,null,null,165,269,167,null,null,null,null,null,null,null,null,202,null,19,"-","-",75,90,90,90,null,null,1,1,1,1,1,1,2,3,3,2,1,1,1,1,1,1,1,2,2,null,2,null,null,269,202,167,165,"","","","","","","","","","","","-","-",12,null,803,null,null,null,null,null,null,null,null,null,null,null,null,null,null,null,null,null,null,null,null,null,null,null,null,null,null,null,null,null,null,null,null,null,null,null,null,null,null,null,null,null,null,null,null,null,null,null,null,null,null,null,null,null,null,null,null,null,null,null,null,null,null,91,null,90,"(75)"]
["90 (91)","Gunnel Karlsson","Hsk Tingzås",803,null,5,80.3,null,110,163,null,175,null,null,null,null,null,null,202,null,153,null,null,null,null,null,null,19,"-","-",91,90,91,91,null,null,2,3,2,2,2,1,1,1,1,1,2,2,2,2,1,1,1,1,1,null,2,null,null,202,175,163,153,110,"","","","","","","","","","","-","-",11,null,803,null,null,null,null,null,null,null,null,null,null,null,null,null,null,null,null,null,null,null,null,null,null,null,null,null,null,null,null,null,null,null,null,null,null,null,null,null,null,null,null,null,null,null,null,null,null,null,null,null,null,null,null,null,null,null,null,null,null,null,null,null,null,92,null,90,"(91)"]
["92 (87)","Hans Johansson","Tingsryd",802,null,4,100.25,null,null,null,null,null,231,null,null,null,null,null,null,null,null,140,null,252,null,null,179,19,"-","-",87,92,92,92,null,null,1,1,1,1,2,2,1,1,1,1,1,1,1,2,2,2,2,1,2,null,2,null,null,252,231,179,140,"","","","","","","","","","","","-","-",12,null,802,null,null,null,null,null,null,null,null,null,null,null,null,null,null,null,null,null,null,null,null,null,null,null,null,null,null,null,null,null,null,null,null,null,null,null,null,null,null,null,null,null,null,null,null,null,null,null,null,null,null,null,null,null,null,null,null,null,null,null,null,null,null,93,null,92,"(87)"]
["93 (92)","Conny Bark","Lessebo",741,null,5,74.099999999999994,null,181,147,158,138,null,null,null,null,null,null,null,null,117,null,null,null,null,null,null,19,"-","-",92,93,93,93,null,null,2,3,3,3,2,1,1,1,1,1,1,1,2,2,1,1,1,1,1,null,2,null,null,181,158,147,138,117,"","","","","","","","","","","-","-",11,null,741,null,null,null,null,null,null,null,null,null,null,null,null,null,null,null,null,null,null,null,null,null,null,null,null,null,null,null,null,null,null,null,null,null,null,null,null,null,null,null,null,null,null,null,null,null,null,null,null,null,null,null,null,null,null,null,null,null,null,null,null,null,null,89,null,93,"(92)"]
["93 (92)","Magnus Stenberg","Hsk Tingzås",741,null,4,92.625,null,null,null,null,null,null,197,208,null,null,null,null,null,null,192,144,null,null,null,null,19,"-","-",92,93,94,94,null,null,1,1,1,1,1,2,3,2,1,1,1,1,1,2,3,2,1,1,1,null,2,null,null,208,197,192,144,"","","","","","","","","","","","-","-",12,null,741,null,null,null,null,null,null,null,null,null,null,null,null,null,null,null,null,null,null,null,null,null,null,null,null,null,null,null,null,null,null,null,null,null,null,null,null,null,null,null,null,null,null,null,null,null,null,null,null,null,null,null,null,null,null,null,null,null,null,null,null,null,null,94,null,93,"(92)"]
["95 (98)","Lisbeth Nygaard-Karlsson","Tingsryd",720,null,4,90,null,null,null,null,null,null,null,191,null,null,null,179,null,null,155,null,null,null,null,195,19,"-","-",98,95,95,95,null,null,1,1,1,1,1,1,2,2,1,1,2,2,1,2,2,1,1,1,2,null,2,null,null,195,191,179,155,"","","","","","","","","","","","-","-",12,null,720,null,null,null,null,null,null,null,null,null,null,null,null,null,null,null,null,null,null,null,null,null,null,null,null,null,null,null,null,null,null,null,null,null,null,null,null,null,null,null,null,null,null,null,null,null,null,null,null,null,null,null,null,null,null,null,null,null,null,null,null,null,null,95,null,95,"(98)"]
["96 (82)","Christer Grahn","Lanternan",692,null,4,86.5,null,185,136,183,188,null,null,null,null,null,null,null,null,null,null,null,null,null,null,null,19,"-","-",82,96,96,96,null,null,2,3,3,3,2,1,1,1,1,1,1,1,1,1,1,1,1,1,1,null,2,null,null,188,185,183,136,"","","","","","","","","","","","-","-",12,null,692,null,null,null,null,null,null,null,null,null,null,null,null,null,null,null,null,null,null,null,null,null,null,null,null,null,null,null,null,null,null,null,null,null,null,null,null,null,null,null,null,null,null,null,null,null,null,null,null,null,null,null,null,null,null,null,null,null,null,null,null,null,null,96,null,96,"(82)"]
["97 (92)","Damian Barnasiak","Växjö Hsk",644,null,4,80.5,null,152,null,null,null,107,null,null,null,null,null,null,null,null,182,null,null,null,203,null,19,"-","-",92,97,97,97,null,null,2,2,1,1,2,2,1,1,1,1,1,1,1,2,2,1,1,2,2,null,2,null,null,203,182,152,107,"","","","","","","","","","","","-","-",12,null,644,null,null,null,null,null,null,null,null,null,null,null,null,null,null,null,null,null,null,null,null,null,null,null,null,null,null,null,null,null,null,null,null,null,null,null,null,null,null,null,null,null,null,null,null,null,null,null,null,null,null,null,null,null,null,null,null,null,null,null,null,null,null,97,null,97,"(92)"]
["98 (95)","Henry Johansson","Korpen Åseda",608,null,4,76,null,168,null,null,null,144,null,null,null,null,null,174,null,122,null,null,null,null,null,null,19,"-","-",95,98,98,98,null,null,2,2,1,1,2,2,1,1,1,1,2,2,2,2,1,1,1,1,1,null,2,null,null,174,168,144,122,"","","","","","","","","","","","-","-",12,null,608,null,null,null,null,null,null,null,null,null,null,null,null,null,null,null,null,null,null,null,null,null,null,null,null,null,null,null,null,null,null,null,null,null,null,null,null,null,null,null,null,null,null,null,null,null,null,null,null,null,null,null,null,null,null,null,null,null,null,null,null,null,null,98,null,98,"(95)"]
["99 (102)","Bernt Olsson","Jämjö Hsk",588,null,3,98,null,null,216,null,null,null,null,null,null,56,null,null,null,null,null,null,null,316,null,null,19,"-","-",102,99,99,99,null,null,1,2,2,1,1,1,1,1,2,2,1,1,1,1,1,1,2,2,1,null,2,null,null,316,216,56,"","","","","","","","","","","","","-","-",13,null,588,null,null,null,null,null,null,null,null,null,null,null,null,null,null,null,null,null,null,null,null,null,null,null,null,null,null,null,null,null,null,null,null,null,null,null,null,null,null,null,null,null,null,null,null,null,null,null,null,null,null,null,null,null,null,null,null,null,null,null,null,null,null,99,null,99,"(102)"]
["100 (103)","Kerstin Petersen","Växjö",578,null,4,72.25,null,137,null,null,null,161,null,null,null,null,null,155,null,125,null,null,null,null,null,null,19,"-","-",103,100,100,100,null,null,2,2,1,1,2,2,1,1,1,1,2,2,2,2,1,1,1,1,1,null,2,null,null,161,155,137,125,"","","","","","","","","","","","-","-",12,null,578,null,null,null,null,null,null,null,null,null,null,null,null,null,null,null,null,null,null,null,null,null,null,null,null,null,null,null,null,null,null,null,null,null,null,null,null,null,null,null,null,null,null,null,null,null,null,null,null,null,null,null,null,null,null,null,null,null,null,null,null,null,null,100,null,100,"(103)"]
["101 (104)","Madelene Bergendorf","Hsk Tingzås",566,null,4,70.75,null,164,null,null,null,null,null,null,null,106,null,180,null,null,116,null,null,null,null,null,19,"-","-",104,101,101,101,null,null,2,2,1,1,1,1,1,1,2,2,2,2,1,2,2,1,1,1,1,null,2,null,null,180,164,116,106,"","","","","","","","","","","","-","-",12,null,566,null,null,null,null,null,null,null,null,null,null,null,null,null,null,null,null,null,null,null,null,null,null,null,null,null,null,null,null,null,null,null,null,null,null,null,null,null,null,null,null,null,null,null,null,null,null,null,null,null,null,null,null,null,null,null,null,null,null,null,null,null,null,101,null,101,"(104)"]
["102 (98)","Ulf Vadaszi","Sibbamåla",559,null,3,93.166666666666671,null,null,175,null,null,null,null,null,null,191,193,null,null,null,null,null,null,null,null,null,19,"-","-",98,102,102,102,null,null,1,2,2,1,1,1,1,1,2,3,2,1,1,1,1,1,1,1,1,null,2,null,null,193,191,175,"","","","","","","","","","","","","-","-",13,null,559,null,null,null,null,null,null,null,null,null,null,null,null,null,null,null,null,null,null,null,null,null,null,null,null,null,null,null,null,null,null,null,null,null,null,null,null,null,null,null,null,null,null,null,null,null,null,null,null,null,null,null,null,null,null,null,null,null,null,null,null,null,null,103,null,102,"(98)"]
["103 (96)","Ronnie Pettersson","Tingsryd",558,null,4,69.75,null,null,null,null,null,null,null,179,133,89,null,157,null,null,null,null,null,null,null,null,19,"-","-",96,103,103,103,null,null,1,1,1,1,1,1,2,3,3,2,2,2,1,1,1,1,1,1,1,null,2,null,null,179,157,133,89,"","","","","","","","","","","","-","-",12,null,558,null,null,null,null,null,null,null,null,null,null,null,null,null,null,null,null,null,null,null,null,null,null,null,null,null,null,null,null,null,null,null,null,null,null,null,null,null,null,null,null,null,null,null,null,null,null,null,null,null,null,null,null,null,null,null,null,null,null,null,null,null,null,104,null,103,"(96)"]
["104 (105)","Kjell Rydh","Korpen Nybro",551,null,4,68.875,null,null,null,146,149,null,null,null,null,null,null,null,135,null,null,null,121,null,null,null,19,"-","-",105,104,104,104,null,null,1,1,2,3,2,1,1,1,1,1,1,2,2,1,1,2,2,1,1,null,2,null,null,149,146,135,121,"","","","","","","","","","","","-","-",12,null,551,null,null,null,null,null,null,null,null,null,null,null,null,null,null,null,null,null,null,null,null,null,null,null,null,null,null,null,null,null,null,null,null,null,null,null,null,null,null,null,null,null,null,null,null,null,null,null,null,null,null,null,null,null,null,null,null,null,null,null,null,null,null,105,null,104,"(105)"]
["105 (100)","Jan Lundin","Tingsryd",539,null,3,89.833333333333329,null,null,null,null,null,null,null,null,null,172,null,null,null,213,154,null,null,null,null,null,19,"-","-",100,105,105,105,null,null,1,1,1,1,1,1,1,1,2,2,1,1,2,3,2,1,1,1,1,null,2,null,null,213,172,154,"","","","","","","","","","","","","-","-",13,null,539,null,null,null,null,null,null,null,null,null,null,null,null,null,null,null,null,null,null,null,null,null,null,null,null,null,null,null,null,null,null,null,null,null,null,null,null,null,null,null,null,null,null,null,null,null,null,null,null,null,null,null,null,null,null,null,null,null,null,null,null,null,null,106,null,105,"(100)"]
["105 (106)","Roland Andreasson","Lanternan",539,null,3,89.833333333333329,null,null,null,null,null,null,null,null,null,null,182,202,null,null,155,null,null,null,null,null,19,"-","-",106,105,106,106,null,null,1,1,1,1,1,1,1,1,1,2,3,2,1,2,2,1,1,1,1,null,2,null,null,202,182,155,"","","","","","","","","","","","","-","-",13,null,539,null,null,null,null,null,null,null,null,null,null,null,null,null,null,null,null,null,null,null,null,null,null,null,null,null,null,null,null,null,null,null,null,null,null,null,null,null,null,null,null,null,null,null,null,null,null,null,null,null,null,null,null,null,null,null,null,null,null,null,null,null,null,107,null,105,"(106)"]
["107 (107)","Linnea Gneupel","Sibbamåla",506,null,5,50.6,null,null,null,101,97,null,null,107,null,114,87,null,null,null,null,null,null,null,null,null,19,"-","-",107,107,107,107,null,null,1,1,2,3,2,1,2,2,2,3,2,1,1,1,1,1,1,1,1,null,2,null,null,114,107,101,97,87,"","","","","","","","","","","-","-",11,null,506,null,null,null,null,null,null,null,null,null,null,null,null,null,null,null,null,null,null,null,null,null,null,null,null,null,null,null,null,null,null,null,null,null,null,null,null,null,null,null,null,null,null,null,null,null,null,null,null,null,null,null,null,null,null,null,null,null,null,null,null,null,null,108,null,107,"(107)"]
["107 (107)","Therese Frost","Sibbamåla",506,null,5,50.6,null,108,167,null,null,null,null,null,null,null,null,null,null,59,80,null,null,92,null,null,19,"-","-",107,107,108,108,null,null,2,3,2,1,1,1,1,1,1,1,1,1,2,3,2,1,2,2,1,null,2,null,null,167,108,92,80,59,"","","","","","","","","","","-","-",11,null,506,null,null,null,null,null,null,null,null,null,null,null,null,null,null,null,null,null,null,null,null,null,null,null,null,null,null,null,null,null,null,null,null,null,null,null,null,null,null,null,null,null,null,null,null,null,null,null,null,null,null,null,null,null,null,null,null,null,null,null,null,null,null,102,null,107,"(107)"]
["109 (111)","Gunilla Andersson","Hsk Tingzås",502,null,4,62.75,null,null,null,null,null,null,null,null,null,117,null,139,160,86,null,null,null,null,null,null,19,"-","-",111,109,109,109,null,null,1,1,1,1,1,1,1,1,2,2,2,3,3,2,1,1,1,1,1,null,2,null,null,160,139,117,86,"","","","","","","","","","","","-","-",12,null,502,null,null,null,null,null,null,null,null,null,null,null,null,null,null,null,null,null,null,null,null,null,null,null,null,null,null,null,null,null,null,null,null,null,null,null,null,null,null,null,null,null,null,null,null,null,null,null,null,null,null,null,null,null,null,null,null,null,null,null,null,null,null,109,null,109,"(111)"]
["110 (112)","Janne Larsson","Mulde VK",484,null,3,80.666666666666671,null,null,null,null,null,null,127,204,null,null,null,null,null,null,null,153,null,null,null,null,19,"-","-",112,110,110,110,null,null,1,1,1,1,1,2,3,2,1,1,1,1,1,1,2,2,1,1,1,null,2,null,null,204,153,127,"","","","","","","","","","","","","-","-",13,null,484,null,null,null,null,null,null,null,null,null,null,null,null,null,null,null,null,null,null,null,null,null,null,null,null,null,null,null,null,null,null,null,null,null,null,null,null,null,null,null,null,null,null,null,null,null,null,null,null,null,null,null,null,null,null,null,null,null,null,null,null,null,null,110,null,110,"(112)"]
["111 (113)","Ewa Malmqvist","Jämjö Hsk",476,null,3,79.333333333333329,null,null,185,null,null,null,null,null,null,105,null,null,null,null,null,null,null,186,null,null,19,"-","-",113,111,111,111,null,null,1,2,2,1,1,1,1,1,2,2,1,1,1,1,1,1,2,2,1,null,2,null,null,186,185,105,"","","","","","","","","","","","","-","-",13,null,476,null,null,null,null,null,null,null,null,null,null,null,null,null,null,null,null,null,null,null,null,null,null,null,null,null,null,null,null,null,null,null,null,null,null,null,null,null,null,null,null,null,null,null,null,null,null,null,null,null,null,null,null,null,null,null,null,null,null,null,null,null,null,116,null,111,"(113)"]
["112 (115)","Lars-Åke Karlsson","Jämjö Hsk",470,null,3,78.333333333333329,null,null,140,null,null,null,null,null,null,129,null,null,null,null,null,null,null,201,null,null,19,"-","-",115,112,112,112,null,null,1,2,2,1,1,1,1,1,2,2,1,1,1,1,1,1,2,2,1,null,2,null,null,201,140,129,"","","","","","","","","","","","","-","-",13,null,470,null,null,null,null,null,null,null,null,null,null,null,null,null,null,null,null,null,null,null,null,null,null,null,null,null,null,null,null,null,null,null,null,null,null,null,null,null,null,null,null,null,null,null,null,null,null,null,null,null,null,null,null,null,null,null,null,null,null,null,null,null,null,111,null,112,"(115)"]
["113 (123)","Risto Selming","Korpen Nybro",459,null,3,76.5,null,null,null,null,null,null,null,null,null,null,null,null,null,null,92,null,null,null,171,196,19,"-","-",123,113,113,113,null,null,1,1,1,1,1,1,1,1,1,1,1,1,1,2,2,1,1,2,3,null,2,null,null,196,171,92,"","","","","","","","","","","","","-","-",13,null,459,null,null,null,null,null,null,null,null,null,null,null,null,null,null,null,null,null,null,null,null,null,null,null,null,null,null,null,null,null,null,null,null,null,null,null,null,null,null,null,null,null,null,null,null,null,null,null,null,null,null,null,null,null,null,null,null,null,null,null,null,null,null,112,null,113,"(123)"]
["114 (116)","Solveig Brincner","Värends Hsk",450,null,7,32.142857142857146,null,71,null,null,58,null,null,73,68,63,null,null,null,48,null,null,null,null,69,null,19,"-","-",116,114,114,114,null,null,2,2,1,2,2,1,2,3,3,2,1,1,2,2,1,1,1,2,2,null,2,null,null,73,71,69,68,63,58,48,"","","","","","","","","-","-",9,null,450,null,null,null,null,null,null,null,null,null,null,null,null,null,null,null,null,null,null,null,null,null,null,null,null,null,null,null,null,null,null,null,null,null,null,null,null,null,null,null,null,null,null,null,null,null,null,null,null,null,null,null,null,null,null,null,null,null,null,null,null,null,null,114,null,114,"(116)"]
["115 (117)","Anna Stenberg","Hsk Tingzås",447,null,3,74.5,null,null,null,null,null,null,169,152,null,null,null,null,null,null,126,null,null,null,null,null,19,"-","-",117,115,115,115,null,null,1,1,1,1,1,2,3,2,1,1,1,1,1,2,2,1,1,1,1,null,2,null,null,169,152,126,"","","","","","","","","","","","","-","-",13,null,447,null,null,null,null,null,null,null,null,null,null,null,null,null,null,null,null,null,null,null,null,null,null,null,null,null,null,null,null,null,null,null,null,null,null,null,null,null,null,null,null,null,null,null,null,null,null,null,null,null,null,null,null,null,null,null,null,null,null,null,null,null,null,115,null,115,"(117)"]
["116 (118)","Rikard Åberg","Alvesta",446,null,4,55.75,null,null,null,null,null,85,null,87,null,83,null,191,null,null,null,null,null,null,null,null,19,"-","-",118,116,116,116,null,null,1,1,1,1,2,2,2,2,2,2,2,2,1,1,1,1,1,1,1,null,2,null,null,191,87,85,83,"","","","","","","","","","","","-","-",12,null,446,null,null,null,null,null,null,null,null,null,null,null,null,null,null,null,null,null,null,null,null,null,null,null,null,null,null,null,null,null,null,null,null,null,null,null,null,null,null,null,null,null,null,null,null,null,null,null,null,null,null,null,null,null,null,null,null,null,null,null,null,null,null,117,null,116,"(118)"]
["117 (119)","Nathalie Jonasson","Värends Hsk",444,null,5,44.4,null,49,null,null,null,66,null,null,null,null,null,null,null,null,106,null,79,null,144,null,19,"-","-",119,117,117,117,null,null,2,2,1,1,2,2,1,1,1,1,1,1,1,2,2,2,2,2,2,null,2,null,null,144,106,79,66,49,"","","","","","","","","","","-","-",11,null,444,null,null,null,null,null,null,null,null,null,null,null,null,null,null,null,null,null,null,null,null,null,null,null,null,null,null,null,null,null,null,null,null,null,null,null,null,null,null,null,null,null,null,null,null,null,null,null,null,null,null,null,null,null,null,null,null,null,null,null,null,null,null,118,null,117,"(119)"]
["118 (120)","Marianne Karlsson","Jämjö Hsk",442,null,3,73.666666666666671,null,null,141,null,null,null,null,null,null,120,null,null,null,null,null,null,null,181,null,null,19,"-","-",120,118,118,118,null,null,1,2,2,1,1,1,1,1,2,2,1,1,1,1,1,1,2,2,1,null,2,null,null,181,141,120,"","","","","","","","","","","","","-","-",13,null,442,null,null,null,null,null,null,null,null,null,null,null,null,null,null,null,null,null,null,null,null,null,null,null,null,null,null,null,null,null,null,null,null,null,null,null,null,null,null,null,null,null,null,null,null,null,null,null,null,null,null,null,null,null,null,null,null,null,null,null,null,null,null,119,null,118,"(120)"]
["119 (107)","Lennart Karlsson","Tingsryd",441,null,3,73.5,null,null,null,null,null,null,null,192,null,null,null,null,null,null,122,null,null,null,null,127,19,"-","-",107,119,119,119,null,null,1,1,1,1,1,1,2,2,1,1,1,1,1,2,2,1,1,1,2,null,2,null,null,192,127,122,"","","","","","","","","","","","","-","-",13,null,441,null,null,null,null,null,null,null,null,null,null,null,null,null,null,null,null,null,null,null,null,null,null,null,null,null,null,null,null,null,null,null,null,null,null,null,null,null,null,null,null,null,null,null,null,null,null,null,null,null,null,null,null,null,null,null,null,null,null,null,null,null,null,120,null,119,"(107)"]
["120 (133)","Anne-Marie Larsson","Tingsryd",425,null,3,70.833333333333329,null,null,null,null,null,null,null,null,null,null,null,null,null,null,165,null,145,null,null,115,19,"-","-",133,120,120,120,null,null,1,1,1,1,1,1,1,1,1,1,1,1,1,2,2,2,2,1,2,null,2,null,null,165,145,115,"","","","","","","","","","","","","-","-",13,null,425,null,null,null,null,null,null,null,null,null,null,null,null,null,null,null,null,null,null,null,null,null,null,null,null,null,null,null,null,null,null,null,null,null,null,null,null,null,null,null,null,null,null,null,null,null,null,null,null,null,null,null,null,null,null,null,null,null,null,null,null,null,null,121,null,120,"(133)"]
[{"$f":"IF(BE125>1,AF125&\" (\"&AE125&\")\",AF125&\" (\"&AG125&\")\")","v":"121 (121)"},"Bengt-Arne Andersson","Mulde VK",417,null,3,69.5,null,null,null,null,null,null,151,158,null,null,null,null,null,null,null,108,null,null,null,null,19,"-","-",121,{"$f":"IF(D125<D124,AH125,AF124)","v":121},{"$f":"IF(F125>1,ROW(121:121),\"-\")","v":121},121,null,null,{"$f":"COUNT($I$3,I125,H125)","v":1},{"$f":"COUNT($J$3,J125,I125)","v":1},{"$f":"COUNT($K$3,K125,J125)","v":1},{"$f":"COUNT($L$3,L125,K125)","v":1},{"$f":"COUNT($M$3,M125,L125)","v":1},{"$f":"COUNT($N$3,N125,M125)","v":2},{"$f":"COUNT($O$3,O125,N125)","v":3},{"$f":"COUNT($P$3,P125,O125)","v":2},{"$f":"COUNT($Q$3,Q125,P125)","v":1},{"$f":"COUNT($R$3,R125,Q125)","v":1},{"$f":"COUNT($S$3,S125,R125)","v":1},{"$f":"COUNT($T$3,T125,S125)","v":1},{"$f":"COUNT($U$3,U125,T125)","v":1},{"$f":"COUNT($V$3,V125,U125)","v":1},{"$f":"COUNT($W$3,W125,V125)","v":2},{"$f":"COUNT($X$3,X125,W125)","v":2},{"$f":"COUNT($Y$3,Y125,X125)","v":1},{"$f":"COUNT($Z$3,Z125,Y125)","v":1},{"$f":"COUNT($AA$3,AA125,Z125)","v":1},null,{"$f":"IF(H125=\"x\",1,2)","v":2},null,null,{"$f":"IF($F125>0,LARGE($I125:$AA125,1),\"\")","v":158},{"$f":"IF($F125>1,LARGE($I125:$AA125,2),\"\")","v":151},{"$f":"IF($F125>2,LARGE($I125:$AA125,3),\"\")","v":108},{"$f":"IF($F125>3,LARGE($I125:$AA125,4),\"\")","v":""},{"$f":"IF($F125>4,LARGE($I125:$AA125,5),\"\")","v":""},{"$f":"IF($F125>5,LARGE($I125:$AA125,6),\"\")","v":""},{"$f":"IF($F125>6,LARGE($I125:$AA125,7),\"\")","v":""},{"$f":"IF($F125>7,LARGE($I125:$AA125,8),\"\")","v":""},{"$f":"IF($F125>8,LARGE($I125:$AA125,9),\"\")","v":""},{"$f":"IF($F125>9,LARGE($I125:$AA125,10),\"\")","v":""},{"$f":"IF($F125>10,LARGE($I125:$AA125,11),\"\")","v":""},{"$f":"IF($F125>11,LARGE($I125:$AA125,12),\"\")","v":""},{"$f":"IF($F125>12,LARGE($I125:$AA125,13),\"\")","v":""},{"$f":"IF($F125>13,LARGE($I125:$AA125,14),\"\")","v":""},{"$f":"IF($F125>14,LARGE($I125:$AA125,15),\"\")","v":""},{"$f":"IF($F125>13,LARGE($I125:$AA125,14),\"-\")","v":"-"},{"$f":"IF($F125>14,LARGE($I125:$AA125,15),\"-\")","v":"-"},{"$f":"SUM(AB125-F125)-3","v":13},null,{"$f":"SUM(BH125:BV125)","v":417},null,null,null,null,null,null,null,null,null,null,null,null,null,null,null,null,null,null,null,null,null,null,null,null,null,null,null,null,null,null,null,null,null,null,null,null,null,null,null,null,null,null,null,null,null,null,null,null,null,null,null,null,null,null,null,null,null,null,null,null,null,null,127,null,{"$f":"IF(BE125>=1,AF125,\"\")","v":121},{"$f":"IF(BE125>1,\"(\"&AE125&\")\",\"(\"&AG125&\")\")","v":"(121)"}]
["121 (121)","Tekla Andersson","Värends Hsk",417,null,6,34.75,null,37,null,null,null,44,null,null,93,null,null,null,null,null,102,null,50,null,91,null,19,"-","-",121,121,122,122,null,null,2,2,1,1,2,2,1,2,2,1,1,1,1,2,2,2,2,2,2,null,2,null,null,102,93,91,50,44,37,"","","","","","","","","","-","-",10,null,417,null,null,null,null,null,null,null,null,null,null,null,null,null,null,null,null,null,null,null,null,null,null,null,null,null,null,null,null,null,null,null,null,null,null,null,null,null,null,null,null,null,null,null,null,null,null,null,null,null,null,null,null,null,null,null,null,null,null,null,null,null,null,122,null,121,"(121)"]
["123 (123)","Krister Nygren","Korpen Åseda",396,null,2,99,null,252,null,null,null,null,null,null,null,null,null,144,null,null,null,null,null,null,null,null,19,"-","-",123,123,123,123,null,null,2,2,1,1,1,1,1,1,1,1,2,2,1,1,1,1,1,1,1,null,2,null,null,252,144,"","","","","","","","","","","","","","-","-",14,null,396,null,null,null,null,null,null,null,null,null,null,null,null,null,null,null,null,null,null,null,null,null,null,null,null,null,null,null,null,null,null,null,null,null,null,null,null,null,null,null,null,null,null,null,null,null,null,null,null,null,null,null,null,null,null,null,null,null,null,null,null,null,null,123,null,123,"(123)"]
["124 (126)","Jan-Inge Ahlgren ","Mulde VK",381,null,2,95.25,null,null,null,null,null,null,170,null,null,null,null,null,null,null,null,211,null,null,null,null,19,"-","-",126,124,124,124,null,null,1,1,1,1,1,2,2,1,1,1,1,1,1,1,2,2,1,1,1,null,2,null,null,211,170,"","","","","","","","","","","","","","-","-",14,null,381,null,null,null,null,null,null,null,null,null,null,null,null,null,null,null,null,null,null,null,null,null,null,null,null,null,null,null,null,null,null,null,null,null,null,null,null,null,null,null,null,null,null,null,null,null,null,null,null,null,null,null,null,null,null,null,null,null,null,null,null,null,null,124,null,124,"(126)"]
["125 (127)","Elisabeth Brisendahl","Tingsryd",378,null,2,94.5,null,199,null,null,null,null,null,null,null,null,null,179,null,null,null,null,null,null,null,null,19,"-","-",127,125,125,125,null,null,2,2,1,1,1,1,1,1,1,1,2,2,1,1,1,1,1,1,1,null,2,null,null,199,179,"","","","","","","","","","","","","","-","-",14,null,378,null,null,null,null,null,null,null,null,null,null,null,null,null,null,null,null,null,null,null,null,null,null,null,null,null,null,null,null,null,null,null,null,null,null,null,null,null,null,null,null,null,null,null,null,null,null,null,null,null,null,null,null,null,null,null,null,null,null,null,null,null,null,125,null,125,"(127)"]
["126 (128)","Göte Rosberg","Korpen Åseda",345,null,2,86.25,null,197,null,null,null,null,null,null,null,null,null,148,null,null,null,null,null,null,null,null,19,"-","-",128,126,126,126,null,null,2,2,1,1,1,1,1,1,1,1,2,2,1,1,1,1,1,1,1,null,2,null,null,197,148,"","","","","","","","","","","","","","-","-",14,null,345,null,null,null,null,null,null,null,null,null,null,null,null,null,null,null,null,null,null,null,null,null,null,null,null,null,null,null,null,null,null,null,null,null,null,null,null,null,null,null,null,null,null,null,null,null,null,null,null,null,null,null,null,null,null,null,null,null,null,null,null,null,null,126,null,126,"(128)"]
["127 (130)","Susanne Andersson","Värends Hsk",336,null,3,56,null,160,null,null,null,78,null,null,null,null,null,null,null,null,null,null,98,null,null,null,19,"-","-",130,127,127,127,null,null,2,2,1,1,2,2,1,1,1,1,1,1,1,1,1,2,2,1,1,null,2,null,null,160,98,78,"","","","","","","","","","","","","-","-",13,null,336,null,null,null,null,null,null,null,null,null,null,null,null,null,null,null,null,null,null,null,null,null,null,null,null,null,null,null,null,null,null,null,null,null,null,null,null,null,null,null,null,null,null,null,null,null,null,null,null,null,null,null,null,null,null,null,null,null,null,null,null,null,null,113,null,127,"(130)"]
["128 (131)","Bertil Olsson","Jämjö Hsk",335,null,2,83.75,null,null,254,null,null,null,null,null,null,81,null,null,null,null,null,null,null,null,null,null,19,"-","-",131,128,128,128,null,null,1,2,2,1,1,1,1,1,2,2,1,1,1,1,1,1,1,1,1,null,2,null,null,254,81,"","","","","","","","","","","","","","-","-",14,null,335,null,null,null,null,null,null,null,null,null,null,null,null,null,null,null,null,null,null,null,null,null,null,null,null,null,null,null,null,null,null,null,null,null,null,null,null,null,null,null,null,null,null,null,null,null,null,null,null,null,null,null,null,null,null,null,null,null,null,null,null,null,null,128,null,128,"(131)"]
["129 (132)","Kent-Åke Alriksson","Sibbamåla",{"$f":"SUM(BH133:BT133)","v":325},null,{"$f":"COUNT(I133:AA133)","v":4},{"$f":"SUM((CA133)/(F133*2))","v":40.625},null,null,null,null,null,null,null,null,107,47,105,66,null,null,null,null,null,null,null,null,{"$f":"SUM($I$3:$AA$3)","v":19},{"$f":"BW133","v":"-"},{"$f":"BX133","v":"-"},132,129,129,129,null,null,1,1,1,1,1,1,1,2,3,3,3,2,1,1,1,1,1,1,1,null,2,null,null,107,105,66,47,"","","","","","","","","","","","-","-",12,null,325,null,null,null,null,null,null,null,null,null,null,null,null,null,null,null,null,null,null,null,null,null,null,null,null,null,null,null,null,null,null,null,null,null,null,null,null,null,null,null,null,null,null,null,null,null,null,null,null,null,null,null,null,null,null,null,null,null,null,null,null,null,null,129,null,129,"(132)"]
["130 (133)","Anders Alriksson","Dynapac ",319,null,2,79.75,null,null,188,null,null,null,null,null,null,131,null,null,null,null,null,null,null,null,null,null,19,"-","-",133,130,130,130,null,null,1,2,2,1,1,1,1,1,2,2,1,1,1,1,1,1,1,1,1,null,2,null,null,188,131,"","","","","","","","","","","","","","-","-",14,null,319,null,null,null,null,null,null,null,null,null,null,null,null,null,null,null,null,null,null,null,null,null,null,null,null,null,null,null,null,null,null,null,null,null,null,null,null,null,null,null,null,null,null,null,null,null,null,null,null,null,null,null,null,null,null,null,null,null,null,null,null,null,null,130,null,130,"(133)"]
["131 (107)","Robert Johansson","Lessebo Hsk",315,null,1,157.5,null,null,null,null,null,null,null,null,null,null,null,null,null,null,null,null,315,null,null,null,19,"-","-",107,131,"-",131,null,null,1,1,1,1,1,1,1,1,1,1,1,1,1,1,1,2,2,1,1,null,2,null,null,315,"","","","","","","","","","","","","","","-","-",15,null,315,null,null,null,null,null,null,null,null,null,null,null,null,null,null,null,null,null,null,null,null,null,null,null,null,null,null,null,null,null,null,null,null,null,null,null,null,null,null,null,null,null,null,null,null,null,null,null,null,null,null,null,null,null,null,null,null,null,null,null,null,null,null,131,null,131,"(107)"]
["132 (135)","Berit Gustavsson","Korpen Nybro",306,null,2,76.5,null,null,null,null,null,null,null,null,null,null,null,187,119,null,null,null,null,null,null,null,19,"-","-",135,132,132,132,null,null,1,1,1,1,1,1,1,1,1,1,2,3,2,1,1,1,1,1,1,null,2,null,null,187,119,"","","","","","","","","","","","","","-","-",14,null,306,null,null,null,null,null,null,null,null,null,null,null,null,null,null,null,null,null,null,null,null,null,null,null,null,null,null,null,null,null,null,null,null,null,null,null,null,null,null,null,null,null,null,null,null,null,null,null,null,null,null,null,null,null,null,null,null,null,null,null,null,null,null,132,null,132,"(135)"]
["133 (136)","Bo Trulsson","Korpen Åseda",297,null,2,74.25,null,null,null,null,null,null,null,null,null,null,null,142,null,155,null,null,null,null,null,null,19,"-","-",136,133,133,133,null,null,1,1,1,1,1,1,1,1,1,1,2,2,2,2,1,1,1,1,1,null,2,null,null,155,142,"","","","","","","","","","","","","","-","-",14,null,297,null,null,null,null,null,null,null,null,null,null,null,null,null,null,null,null,null,null,null,null,null,null,null,null,null,null,null,null,null,null,null,null,null,null,null,null,null,null,null,null,null,null,null,null,null,null,null,null,null,null,null,null,null,null,null,null,null,null,null,null,null,null,133,null,133,"(136)"]
["134 (137)","Åke Bergqvist","Tingsryd",287,null,3,47.833333333333336,null,null,null,null,null,null,null,null,null,null,null,null,null,80,103,null,104,null,null,null,19,"-","-",137,134,134,134,null,null,1,1,1,1,1,1,1,1,1,1,1,1,2,3,2,2,2,1,1,null,2,null,null,104,103,80,"","","","","","","","","","","","","-","-",13,null,287,null,null,null,null,null,null,null,null,null,null,null,null,null,null,null,null,null,null,null,null,null,null,null,null,null,null,null,null,null,null,null,null,null,null,null,null,null,null,null,null,null,null,null,null,null,null,null,null,null,null,null,null,null,null,null,null,null,null,null,null,null,null,135,null,134,"(137)"]
["135 (139)","Patrik Glimfalk","Mulde VK",284,null,2,71,null,null,null,null,null,null,141,null,null,null,null,null,null,null,null,143,null,null,null,null,19,"-","-",139,135,135,135,null,null,1,1,1,1,1,2,2,1,1,1,1,1,1,1,2,2,1,1,1,null,2,null,null,143,141,"","","","","","","","","","","","","","-","-",14,null,284,null,null,null,null,null,null,null,null,null,null,null,null,null,null,null,null,null,null,null,null,null,null,null,null,null,null,null,null,null,null,null,null,null,null,null,null,null,null,null,null,null,null,null,null,null,null,null,null,null,null,null,null,null,null,null,null,null,null,null,null,null,null,136,null,135,"(139)"]
["136 (140)","Nina Vadaszi","Sibbamåla",282,null,2,70.5,null,null,null,null,null,null,null,null,null,186,96,null,null,null,null,null,null,null,null,null,19,"-","-",140,136,136,136,null,null,1,1,1,1,1,1,1,1,2,3,2,1,1,1,1,1,1,1,1,null,2,null,null,186,96,"","","","","","","","","","","","","","-","-",14,null,282,null,null,null,null,null,null,null,null,null,null,null,null,null,null,null,null,null,null,null,null,null,null,null,null,null,null,null,null,null,null,null,null,null,null,null,null,null,null,null,null,null,null,null,null,null,null,null,null,null,null,null,null,null,null,null,null,null,null,null,null,null,null,137,null,136,"(140)"]
["137 (141)","Arne Nygren","Korpen Åseda",277,null,2,69.25,null,132,null,null,null,null,null,null,null,null,null,145,null,null,null,null,null,null,null,null,19,"-","-",141,137,137,137,null,null,2,2,1,1,1,1,1,1,1,1,2,2,1,1,1,1,1,1,1,null,2,null,null,145,132,"","","","","","","","","","","","","","-","-",14,null,277,null,null,null,null,null,null,null,null,null,null,null,null,null,null,null,null,null,null,null,null,null,null,null,null,null,null,null,null,null,null,null,null,null,null,null,null,null,null,null,null,null,null,null,null,null,null,null,null,null,null,null,null,null,null,null,null,null,null,null,null,null,null,138,null,137,"(141)"]
["138 (142)","Ulf Stenberg","Mulde VK",275,null,3,45.833333333333336,null,null,null,null,null,null,131,62,null,null,null,null,null,null,null,82,null,null,null,null,19,"-","-",142,138,138,138,null,null,1,1,1,1,1,2,3,2,1,1,1,1,1,1,2,2,1,1,1,null,2,null,null,131,82,62,"","","","","","","","","","","","","-","-",13,null,275,null,null,null,null,null,null,null,null,null,null,null,null,null,null,null,null,null,null,null,null,null,null,null,null,null,null,null,null,null,null,null,null,null,null,null,null,null,null,null,null,null,null,null,null,null,null,null,null,null,null,null,null,null,null,null,null,null,null,null,null,null,null,167,null,167,"(142)"]
["139 (143)","Jerry Viksten","Korpen Åseda",271,null,1,135.5,null,null,null,null,null,null,null,null,null,null,null,271,null,null,null,null,null,null,null,null,19,"-","-",143,139,"-",139,null,null,1,1,1,1,1,1,1,1,1,1,2,2,1,1,1,1,1,1,1,null,2,null,null,271,"","","","","","","","","","","","","","","-","-",15,null,271,null,null,null,null,null,null,null,null,null,null,null,null,null,null,null,null,null,null,null,null,null,null,null,null,null,null,null,null,null,null,null,null,null,null,null,null,null,null,null,null,null,null,null,null,null,null,null,null,null,null,null,null,null,null,null,null,null,null,null,null,null,null,139,null,{"$f":"IF(BE143>=1,AF143,\"\")","v":139},"(143)"]
["140 (144)","Anders Karlsson","Värends Hsk",259,null,4,32.375,null,null,null,null,null,null,null,null,null,null,null,null,null,68,37,null,66,null,88,null,19,"-","-",144,140,140,140,null,null,1,1,1,1,1,1,1,1,1,1,1,1,2,3,2,2,2,2,2,null,2,null,null,88,68,66,37,"","","","","","","","","","","","-","-",12,null,259,null,null,null,null,null,null,null,null,null,null,null,null,null,null,null,null,null,null,null,null,null,null,null,null,null,null,null,null,null,null,null,null,null,null,null,null,null,null,null,null,null,null,null,null,null,null,null,null,null,null,null,null,null,null,null,null,null,null,null,null,null,null,140,null,{"$f":"IF(BE144>1,AF144,\"\")","v":140},"(144)"]
["141 (113)","Armin Sisic","Värends Hsk",253,null,1,126.5,null,null,null,null,null,null,null,null,253,null,null,null,null,null,null,null,null,null,null,null,19,"-","-",113,141,"-",141,null,null,1,1,1,1,1,1,1,2,2,1,1,1,1,1,1,1,1,1,1,null,2,null,null,253,"","","","","","","","","","","","","","","-","-",15,null,253,null,null,null,null,null,null,null,null,null,null,null,null,null,null,null,null,null,null,null,null,null,null,null,null,null,null,null,null,null,null,null,null,null,null,null,null,null,null,null,null,null,null,null,null,null,null,null,null,null,null,null,null,null,null,null,null,null,null,null,null,null,null,141,null,{"$f":"IF(BE145>=1,AF145,\"\")","v":141},"(113)"]
["142 (158)","Lars-Erik Green","Värends Hsk",246,null,3,41,null,null,null,null,null,null,null,null,null,null,null,null,null,null,null,null,59,null,126,61,19,"-","-",158,142,142,142,null,null,1,1,1,1,1,1,1,1,1,1,1,1,1,1,1,2,2,2,3,null,2,null,null,126,61,59,"","","","","","","","","","","","","-","-",13,null,246,null,null,null,null,null,null,null,null,null,null,null,null,null,null,null,null,null,null,null,null,null,null,null,null,null,null,null,null,null,null,null,null,null,null,null,null,null,null,null,null,null,null,null,null,null,null,null,null,null,null,null,null,null,null,null,null,null,null,null,null,null,null,142,null,{"$f":"IF(BE146>=1,AF146,\"\")","v":142},"(158)"]
["143 (146)","Birgitta Stenberg","Mulde VK",242,null,2,60.5,null,null,null,null,null,null,128,null,null,null,null,null,null,null,null,114,null,null,null,null,19,"-","-",146,143,143,143,null,null,1,1,1,1,1,2,2,1,1,1,1,1,1,1,2,2,1,1,1,null,2,null,null,128,114,"","","","","","","","","","","","","","-","-",14,null,242,null,null,null,null,null,null,null,null,null,null,null,null,null,null,null,null,null,null,null,null,null,null,null,null,null,null,null,null,null,null,null,null,null,null,null,null,null,null,null,null,null,null,null,null,null,null,null,null,null,null,null,null,null,null,null,null,null,null,null,null,null,null,143,null,{"$f":"IF(BE147>=1,AF147,\"\")","v":143},"(146)"]
["144 (152)","Allan Persson","Tingsryd",238,null,2,59.5,null,null,null,null,null,null,null,null,null,null,null,null,null,null,null,null,142,null,null,96,19,"-","-",152,144,144,144,null,null,1,1,1,1,1,1,1,1,1,1,1,1,1,1,1,2,2,1,2,null,2,null,null,142,96,"","","","","","","","","","","","","","-","-",14,null,238,null,null,null,null,null,null,null,null,null,null,null,null,null,null,null,null,null,null,null,null,null,null,null,null,null,null,null,null,null,null,null,null,null,null,null,null,null,null,null,null,null,null,null,null,null,null,null,null,null,null,null,null,null,null,null,null,null,null,null,null,null,null,144,null,{"$f":"IF(BE148>=1,AF148,\"\")","v":144},"(152)"]
["145 (147)","Elin Edlund","Dynapac ",236,null,2,59,null,null,null,null,null,null,null,null,null,131,null,105,null,null,null,null,null,null,null,null,19,"-","-",147,145,145,145,null,null,1,1,1,1,1,1,1,1,2,2,2,2,1,1,1,1,1,1,1,null,2,null,null,131,105,"","","","","","","","","","","","","","-","-",14,null,236,null,null,null,null,null,null,null,null,null,null,null,null,null,null,null,null,null,null,null,null,null,null,null,null,null,null,null,null,null,null,null,null,null,null,null,null,null,null,null,null,null,null,null,null,null,null,null,null,null,null,null,null,null,null,null,null,null,null,null,null,null,null,145,null,{"$f":"IF(BE149>=1,AF149,\"\")","v":145},"(147)"]
["146 (123)","Peter Karlsson","Sibbamåla",235,null,1,117.5,null,null,235,null,null,null,null,null,null,null,null,null,null,null,null,null,null,null,null,null,19,"-","-",123,146,"-",146,null,null,1,2,2,1,1,1,1,1,1,1,1,1,1,1,1,1,1,1,1,null,2,null,null,235,"","","","","","","","","","","","","","","-","-",15,null,235,null,null,null,null,null,null,null,null,null,null,null,null,null,null,null,null,null,null,null,null,null,null,null,null,null,null,null,null,null,null,null,null,null,null,null,null,null,null,null,null,null,null,null,null,null,null,null,null,null,null,null,null,null,null,null,null,null,null,null,null,null,null,175,null,{"$f":"IF(BE150>1,AF150,\"\")","v":146},"(123)"]
["147 (148)","Towe Danielsson","Korpen Nybro",230,null,1,115,null,null,null,null,null,null,null,null,null,null,null,null,230,null,null,null,null,null,null,null,19,"-","-",148,147,"-",147,null,null,1,1,1,1,1,1,1,1,1,1,1,2,2,1,1,1,1,1,1,null,2,null,null,230,"","","","","","","","","","","","","","","-","-",15,null,230,null,null,null,null,null,null,null,null,null,null,null,null,null,null,null,null,null,null,null,null,null,null,null,null,null,null,null,null,null,null,null,null,null,null,null,null,null,null,null,null,null,null,null,null,null,null,null,null,null,null,null,null,null,null,null,null,null,null,null,null,null,null,146,null,{"$f":"IF(BE151>=1,AF151,\"\")","v":147},"(148)"]
["147 (148)","Göran Karlsson","Sibbamåla",230,null,2,57.5,null,null,null,null,null,null,null,null,null,110,120,null,null,null,null,null,null,null,null,null,19,"-","-",148,147,148,148,null,null,1,1,1,1,1,1,1,1,2,3,2,1,1,1,1,1,1,1,1,null,2,null,null,120,110,"","","","","","","","","","","","","","-","-",14,null,230,null,null,null,null,null,null,null,null,null,null,null,null,null,null,null,null,null,null,null,null,null,null,null,null,null,null,null,null,null,null,null,null,null,null,null,null,null,null,null,null,null,null,null,null,null,null,null,null,null,null,null,null,null,null,null,null,null,null,null,null,null,null,147,null,147,"(148)"]
["149 (150)","Paul Karlsson","Lessebo",228,null,1,114,null,null,null,null,null,null,null,null,null,null,null,null,null,228,null,null,null,null,null,null,19,"-","-",150,149,"-",149,null,null,1,1,1,1,1,1,1,1,1,1,1,1,2,2,1,1,1,1,1,null,2,null,null,228,"","","","","","","","","","","","","","","-","-",15,null,228,null,null,null,null,null,null,null,null,null,null,null,null,null,null,null,null,null,null,null,null,null,null,null,null,null,null,null,null,null,null,null,null,null,null,null,null,null,null,null,null,null,null,null,null,null,null,null,null,null,null,null,null,null,null,null,null,null,null,null,null,null,null,148,null,149,"(150)"]
["150 (151)","Morgan Atle","Dynapac ",225,null,2,56.25,null,null,138,null,null,null,null,null,null,87,null,null,null,null,null,null,null,null,null,null,19,"-","-",151,150,150,150,null,null,1,2,2,1,1,1,1,1,2,2,1,1,1,1,1,1,1,1,1,null,2,null,null,138,87,"","","","","","","","","","","","","","-","-",14,null,225,null,null,null,null,null,null,null,null,null,null,null,null,null,null,null,null,null,null,null,null,null,null,null,null,null,null,null,null,null,null,null,null,null,null,null,null,null,null,null,null,null,null,null,null,null,null,null,null,null,null,null,null,null,null,null,null,null,null,null,null,null,null,149,null,150,"(151)"]
["151 (152)","Kenneth Andersson","Dynapac ",216,null,1,108,null,null,216,null,null,null,null,null,null,null,null,null,null,null,null,null,null,null,null,null,19,"-","-",152,151,"-",151,null,null,1,2,2,1,1,1,1,1,1,1,1,1,1,1,1,1,1,1,1,null,2,null,null,216,"","","","","","","","","","","","","","","-","-",15,null,216,null,null,null,null,null,null,null,null,null,null,null,null,null,null,null,null,null,null,null,null,null,null,null,null,null,null,null,null,null,null,null,null,null,null,null,null,null,null,null,null,null,null,null,null,null,null,null,null,null,null,null,null,null,null,null,null,null,null,null,null,null,null,150,null,151,"(152)"]
["151 (152)","Johan Karlsson","Korpen Åseda",216,null,1,108,null,null,null,null,null,null,null,null,null,null,null,216,null,null,null,null,null,null,null,null,19,"-","-",152,151,"-",152,null,null,1,1,1,1,1,1,1,1,1,1,2,2,1,1,1,1,1,1,1,null,2,null,null,216,"","","","","","","","","","","","","","","-","-",15,null,216,null,null,null,null,null,null,null,null,null,null,null,null,null,null,null,null,null,null,null,null,null,null,null,null,null,null,null,null,null,null,null,null,null,null,null,null,null,null,null,null,null,null,null,null,null,null,null,null,null,null,null,null,null,null,null,null,null,null,null,null,null,null,151,null,151,"(152)"]
[{"$f":"IF(BE157>1,AF157&\" (\"&AE157&\")\",AF157&\" (\"&AG157&\")\")","v":"153 (155)"},"Robin Alriksson","Sibbamåla",206,null,2,51.5,null,null,null,null,null,null,null,null,null,104,null,102,null,null,null,null,null,null,null,null,19,"-","-",155,{"$f":"IF(D157<D156,AH157,AF156)","v":153},{"$f":"IF(F157>1,ROW(153:153),\"-\")","v":153},153,null,null,{"$f":"COUNT($I$3,I157,H157)","v":1},{"$f":"COUNT($J$3,J157,I157)","v":1},{"$f":"COUNT($K$3,K157,J157)","v":1},{"$f":"COUNT($L$3,L157,K157)","v":1},{"$f":"COUNT($M$3,M157,L157)","v":1},{"$f":"COUNT($N$3,N157,M157)","v":1},{"$f":"COUNT($O$3,O157,N157)","v":1},{"$f":"COUNT($P$3,P157,O157)","v":1},{"$f":"COUNT($Q$3,Q157,P157)","v":2},{"$f":"COUNT($R$3,R157,Q157)","v":2},{"$f":"COUNT($S$3,S157,R157)","v":2},{"$f":"COUNT($T$3,T157,S157)","v":2},{"$f":"COUNT($U$3,U157,T157)","v":1},{"$f":"COUNT($V$3,V157,U157)","v":1},{"$f":"COUNT($W$3,W157,V157)","v":1},{"$f":"COUNT($X$3,X157,W157)","v":1},{"$f":"COUNT($Y$3,Y157,X157)","v":1},{"$f":"COUNT($Z$3,Z157,Y157)","v":1},{"$f":"COUNT($AA$3,AA157,Z157)","v":1},null,{"$f":"IF(H157=\"x\",1,2)","v":2},null,null,{"$f":"IF($F157>0,LARGE($I157:$AA157,1),\"\")","v":104},{"$f":"IF($F157>1,LARGE($I157:$AA157,2),\"\")","v":102},{"$f":"IF($F157>2,LARGE($I157:$AA157,3),\"\")","v":""},{"$f":"IF($F157>3,LARGE($I157:$AA157,4),\"\")","v":""},{"$f":"IF($F157>4,LARGE($I157:$AA157,5),\"\")","v":""},{"$f":"IF($F157>5,LARGE($I157:$AA157,6),\"\")","v":""},{"$f":"IF($F157>6,LARGE($I157:$AA157,7),\"\")","v":""},{"$f":"IF($F157>7,LARGE($I157:$AA157,8),\"\")","v":""},{"$f":"IF($F157>8,LARGE($I157:$AA157,9),\"\")","v":""},{"$f":"IF($F157>9,LARGE($I157:$AA157,10),\"\")","v":""},{"$f":"IF($F157>10,LARGE($I157:$AA157,11),\"\")","v":""},{"$f":"IF($F157>11,LARGE($I157:$AA157,12),\"\")","v":""},{"$f":"IF($F157>12,LARGE($I157:$AA157,13),\"\")","v":""},{"$f":"IF($F157>13,LARGE($I157:$AA157,14),\"\")","v":""},{"$f":"IF($F157>14,LARGE($I157:$AA157,15),\"\")","v":""},{"$f":"IF($F157>13,LARGE($I157:$AA157,14),\"-\")","v":"-"},{"$f":"IF($F157>14,LARGE($I157:$AA157,15),\"-\")","v":"-"},{"$f":"SUM(AB157-F157)-3","v":14},null,{"$f":"SUM(BH157:BV157)","v":206},null,null,null,null,null,null,null,null,null,null,null,null,null,null,null,null,null,null,null,null,null,null,null,null,null,null,null,null,null,null,null,null,null,null,null,null,null,null,null,null,null,null,null,null,null,null,null,null,null,null,null,null,null,null,null,null,null,null,null,null,null,null,152,null,153,{"$f":"IF(BE157>1,\"(\"&AE157&\")\",\"(\"&AG157&\")\")","v":"(155)"}]
["154 (156)","Marcus Karlsson","Jämjö Hsk",195,null,1,97.5,null,null,195,null,null,null,null,null,null,null,null,null,null,null,null,null,null,null,null,null,19,"-","-",156,154,"-",154,null,null,1,2,2,1,1,1,1,1,1,1,1,1,1,1,1,1,1,1,1,null,2,null,null,195,"","","","","","","","","","","","","","","-","-",15,null,195,null,null,null,null,null,null,null,null,null,null,null,null,null,null,null,null,null,null,null,null,null,null,null,null,null,null,null,null,null,null,null,null,null,null,null,null,null,null,null,null,null,null,null,null,null,null,null,null,null,null,null,null,null,null,null,null,null,null,null,null,null,null,153,null,154,"(156)"]
["155 (157)","Niklas Berglund","Dynapac ",193,null,1,96.5,null,null,null,null,null,null,null,null,null,null,null,null,null,193,null,null,null,null,null,null,19,"-","-",157,155,"-",155,null,null,1,1,1,1,1,1,1,1,1,1,1,1,2,2,1,1,1,1,1,null,2,null,null,193,"","","","","","","","","","","","","","","-","-",15,null,193,null,null,null,null,null,null,null,null,null,null,null,null,null,null,null,null,null,null,null,null,null,null,null,null,null,null,null,null,null,null,null,null,null,null,null,null,null,null,null,null,null,null,null,null,null,null,null,null,null,null,null,null,null,null,null,null,null,null,null,null,null,null,154,null,155,"(157)"]
["156 (158)","Erik Niklasson","Korpen Nybro",188,null,2,47,null,null,null,null,null,null,null,null,null,null,null,null,88,100,null,null,null,null,null,null,19,"-","-",158,156,156,156,null,null,1,1,1,1,1,1,1,1,1,1,1,2,3,2,1,1,1,1,1,null,2,null,null,100,88,"","","","","","","","","","","","","","-","-",14,null,188,null,null,null,null,null,null,null,null,null,null,null,null,null,null,null,null,null,null,null,null,null,null,null,null,null,null,null,null,null,null,null,null,null,null,null,null,null,null,null,null,null,null,null,null,null,null,null,null,null,null,null,null,null,null,null,null,null,null,null,null,null,null,156,null,156,"(158)"]
["157 (160)","Tommy Karlsson","Korpen Nybro",179,null,1,89.5,null,null,null,null,null,null,null,null,null,null,null,null,179,null,null,null,null,null,null,null,19,"-","-",160,157,"-",157,null,null,1,1,1,1,1,1,1,1,1,1,1,2,2,1,1,1,1,1,1,null,2,null,null,179,"","","","","","","","","","","","","","","-","-",15,null,179,null,null,null,null,null,null,null,null,null,null,null,null,null,null,null,null,null,null,null,null,null,null,null,null,null,null,null,null,null,null,null,null,null,null,null,null,null,null,null,null,null,null,null,null,null,null,null,null,null,null,null,null,null,null,null,null,null,null,null,null,null,null,157,null,157,"(160)"]
["157 (160)","Ted Svensson","Mulde VK",179,null,1,89.5,null,null,null,null,null,null,null,null,null,null,null,null,null,null,null,179,null,null,null,null,19,"-","-",160,157,"-",158,null,null,1,1,1,1,1,1,1,1,1,1,1,1,1,1,2,2,1,1,1,null,2,null,null,179,"","","","","","","","","","","","","","","-","-",15,null,179,null,null,null,null,null,null,null,null,null,null,null,null,null,null,null,null,null,null,null,null,null,null,null,null,null,null,null,null,null,null,null,null,null,null,null,null,null,null,null,null,null,null,null,null,null,null,null,null,null,null,null,null,null,null,null,null,null,null,null,null,null,null,158,null,157,"(160)"]
["159 (162)","Lukas Eriksson","Korpen Åseda",178,null,1,89,null,null,null,null,null,null,null,null,null,null,null,null,null,178,null,null,null,null,null,null,19,"-","-",162,159,159,159,null,null,1,1,1,1,1,1,1,1,1,1,1,1,2,2,1,1,1,1,1,null,2,null,null,178,"","","","","","","","","","","","","","","-","-",15,null,178,null,null,null,null,null,null,null,null,null,null,null,null,null,null,null,null,null,null,null,null,null,null,null,null,null,null,null,null,null,null,null,null,null,null,null,null,null,null,null,null,null,null,null,null,null,null,null,null,null,null,null,null,null,null,null,null,null,null,null,null,null,null,159,null,159,"(162)"]
["160 (163)","Stephan Gervide","Korpen Nybro",174,null,1,87,null,null,null,null,null,null,null,null,null,null,null,null,174,null,null,null,null,null,null,null,19,"-","-",163,160,{"$f":"IF(F164>1,ROW(160:160),\"-\")","v":"-"},160,null,null,1,1,1,1,1,1,1,1,1,1,1,2,2,1,1,1,1,1,1,null,2,null,null,174,"","","","","","","","","","","","","","","-","-",15,null,174,null,null,null,null,null,null,null,null,null,null,null,null,null,null,null,null,null,null,null,null,null,null,null,null,null,null,null,null,null,null,null,null,null,null,null,null,null,null,null,null,null,null,null,null,null,null,null,null,null,null,null,null,null,null,null,null,null,null,null,null,null,null,206,null,{"$f":"IF(BE164>1,AF164,\"\")","v":160},"(163)"]
["161 (164)","Britta Eriksson","Carlskrona",173,null,1,86.5,null,null,173,null,null,null,null,null,null,null,null,null,null,null,null,null,null,null,null,null,19,"-","-",164,161,"-",161,null,null,1,2,2,1,1,1,1,1,1,1,1,1,1,1,1,1,1,1,1,null,2,null,null,173,"","","","","","","","","","","","","","","-","-",15,null,173,null,null,null,null,null,null,null,null,null,null,null,null,null,null,null,null,null,null,null,null,null,null,null,null,null,null,null,null,null,null,null,null,null,null,null,null,null,null,null,null,null,null,null,null,null,null,null,null,null,null,null,null,null,null,null,null,null,null,null,null,null,null,160,null,{"$f":"IF(BE165>=1,AF165,\"\")","v":161},"(164)"]
["162 (165)","Susanne Simonsson","Lanternan",163,null,2,40.75,null,null,null,null,null,null,null,null,null,null,74,null,null,null,89,null,null,null,null,null,19,"-","-",165,162,162,162,null,null,1,1,1,1,1,1,1,1,1,2,2,1,1,2,2,1,1,1,1,null,2,null,null,89,74,"","","","","","","","","","","","","","-","-",14,null,163,null,null,null,null,null,null,null,null,null,null,null,null,null,null,null,null,null,null,null,null,null,null,null,null,null,null,null,null,null,null,null,null,null,null,null,null,null,null,null,null,null,null,null,null,null,null,null,null,null,null,null,null,null,null,null,null,null,null,null,null,null,null,161,null,161,"(165)"]
["163 (166)","Roy Johansson","Lanternan",152,null,1,76,null,152,null,null,null,null,null,null,null,null,null,null,null,null,null,null,null,null,null,null,19,"-","-",166,163,"-",163,null,null,2,2,1,1,1,1,1,1,1,1,1,1,1,1,1,1,1,1,1,null,2,null,null,152,"","","","","","","","","","","","","","","-","-",15,null,152,null,null,null,null,null,null,null,null,null,null,null,null,null,null,null,null,null,null,null,null,null,null,null,null,null,null,null,null,null,null,null,null,null,null,null,null,null,null,null,null,null,null,null,null,null,null,null,null,null,null,null,null,null,null,null,null,null,null,null,null,null,null,162,null,{"$f":"IF(BE167>1,AF167,\"\")","v":163},"(166)"]
["164 (167)","André Andersson","Mulde VK",149,null,1,74.5,null,null,null,null,null,null,149,null,null,null,null,null,null,null,null,null,null,null,null,null,19,"-","-",167,164,"-",164,null,null,1,1,1,1,1,2,2,1,1,1,1,1,1,1,1,1,1,1,1,null,2,null,null,149,"","","","","","","","","","","","","","","-","-",15,null,149,null,null,null,null,null,null,null,null,null,null,null,null,null,null,null,null,null,null,null,null,null,null,null,null,null,null,null,null,null,null,null,null,null,null,null,null,null,null,null,null,null,null,null,null,null,null,null,null,null,null,null,null,null,null,null,null,null,null,null,null,null,null,163,null,{"$f":"IF(BE168>1,AF168,\"\")","v":164},"(167)"]
["165 (168)","Jonny Petersson","FlygtSeniorerna",147,null,1,73.5,null,null,null,null,null,null,null,null,null,null,null,null,147,null,null,null,null,null,null,null,19,"-","-",168,165,"-",165,null,null,1,1,1,1,1,1,1,1,1,1,1,2,2,1,1,1,1,1,1,null,2,null,null,147,"","","","","","","","","","","","","","","-","-",15,null,147,null,null,null,null,null,null,null,null,null,null,null,null,null,null,null,null,null,null,null,null,null,null,null,null,null,null,null,null,null,null,null,null,null,null,null,null,null,null,null,null,null,null,null,null,null,null,null,null,null,null,null,null,null,null,null,null,null,null,null,null,null,null,164,null,{"$f":"IF(BE169>1,AF169,\"\")","v":165},"(168)"]
["166 (169)","Bertil Westergren","Växjö",144,null,1,72,null,144,null,null,null,null,null,null,null,null,null,null,null,null,null,null,null,null,null,null,19,"-","-",169,166,"-",166,null,null,2,2,1,1,1,1,1,1,1,1,1,1,1,1,1,1,1,1,1,null,2,null,null,144,"","","","","","","","","","","","","","","-","-",15,null,144,null,null,null,null,null,null,null,null,null,null,null,null,null,null,null,null,null,null,null,null,null,null,null,null,null,null,null,null,null,null,null,null,null,null,null,null,null,null,null,null,null,null,null,null,null,null,null,null,null,null,null,null,null,null,null,null,null,null,null,null,null,null,165,null,{"$f":"IF(BE170>1,AF170,\"\")","v":166},"(169)"]
["166 (169)","Hanna Bergendorf","Hsk Tingzås",144,null,2,36,null,107,null,null,null,null,null,null,null,37,null,null,null,null,null,null,null,null,null,null,19,"-","-",169,166,167,167,null,null,2,2,1,1,1,1,1,1,2,2,1,1,1,1,1,1,1,1,1,null,2,null,null,107,37,"","","","","","","","","","","","","","-","-",14,null,144,null,null,null,null,null,null,null,null,null,null,null,null,null,null,null,null,null,null,null,null,null,null,null,null,null,null,null,null,null,null,null,null,null,null,null,null,null,null,null,null,null,null,null,null,null,null,null,null,null,null,null,null,null,null,null,null,null,null,null,null,null,null,195,null,{"$f":"IF(BE171>1,AF171,\"\")","v":166},"(169)"]
["168 (137)","Elsie Fransson","Tingsryd",143,null,1,71.5,null,null,143,null,null,null,null,null,null,null,null,null,null,null,null,null,null,null,null,null,19,"-","-",137,168,"-",168,null,null,1,2,2,1,1,1,1,1,1,1,1,1,1,1,1,1,1,1,1,null,2,null,null,143,"","","","","","","","","","","","","","","-","-",15,null,143,null,null,null,null,null,null,null,null,null,null,null,null,null,null,null,null,null,null,null,null,null,null,null,null,null,null,null,null,null,null,null,null,null,null,null,null,null,null,null,null,null,null,null,null,null,null,null,null,null,null,null,null,null,null,null,null,null,null,null,null,null,null,134,null,{"$f":"IF(BE172>=1,AF172,\"\")","v":168},"(137)"]
["169 (171)","Hans Nilsson","Dynapac ",137,null,1,68.5,null,null,null,null,null,null,null,null,null,137,null,null,null,null,null,null,null,null,null,null,19,"-","-",171,169,"-",169,null,null,1,1,1,1,1,1,1,1,2,2,1,1,1,1,1,1,1,1,1,null,2,null,null,137,"","","","","","","","","","","","","","","-","-",15,null,137,null,null,null,null,null,null,null,null,null,null,null,null,null,null,null,null,null,null,null,null,null,null,null,null,null,null,null,null,null,null,null,null,null,null,null,null,null,null,null,null,null,null,null,null,null,null,null,null,null,null,null,null,null,null,null,null,null,null,null,null,null,null,166,null,{"$f":"IF(BE173>1,AF173,\"\")","v":169},"(171)"]
["169 (171)","Mikael Belsing","Sibbamåla",137,null,1,68.5,null,137,null,null,null,null,null,null,null,null,null,null,null,null,null,null,null,null,null,null,19,"-","-",171,169,"-",170,null,null,2,2,1,1,1,1,1,1,1,1,1,1,1,1,1,1,1,1,1,null,2,null,null,137,"","","","","","","","","","","","","","","-","-",15,null,137,null,null,null,null,null,null,null,null,null,null,null,null,null,null,null,null,null,null,null,null,null,null,null,null,null,null,null,null,null,null,null,null,null,null,null,null,null,null,null,null,null,null,null,null,null,null,null,null,null,null,null,null,null,null,null,null,null,null,null,null,null,null,168,null,168,"(171)"]
["171 (173)","Göran Olofsson","Mulde VK",82,null,2,20.5,null,null,null,null,null,null,82,null,null,null,null,null,null,null,null,54,null,null,null,null,19,"-","-",173,171,171,171,null,null,1,1,1,1,1,2,2,1,1,1,1,1,1,1,2,2,1,1,1,null,2,null,null,82,null,null,null,null,null,null,null,null,null,null,null,null,null,null,"-","-",14,null,82,null,null,null,null,null,null,null,null,null,null,null,null,null,null,null,null,null,null,null,null,null,null,null,null,null,null,null,null,null,null,null,null,null,null,null,null,null,null,null,null,null,null,null,null,null,null,null,null,null,null,null,null,null,null,null,null,null,null,null,null,null,null,215,null,{"$f":"IF(BE175>1,AF175,\"\")","v":171},"(173)"]
["171 (174)","Emma Svensson","Dynapac ",134,null,1,67,null,null,134,null,null,null,null,null,null,null,null,null,null,null,null,null,null,null,null,null,19,"-","-",174,171,"-",172,null,null,1,2,2,1,1,1,1,1,1,1,1,1,1,1,1,1,1,1,1,null,2,null,null,134,{"$f":"IF($F176>1,LARGE($I176:$AA176,2),\"\")","v":""},{"$f":"IF($F176>2,LARGE($I176:$AA176,3),\"\")","v":""},{"$f":"IF($F176>3,LARGE($I176:$AA176,4),\"\")","v":""},{"$f":"IF($F176>4,LARGE($I176:$AA176,5),\"\")","v":""},{"$f":"IF($F176>5,LARGE($I176:$AA176,6),\"\")","v":""},{"$f":"IF($F176>6,LARGE($I176:$AA176,7),\"\")","v":""},{"$f":"IF($F176>7,LARGE($I176:$AA176,8),\"\")","v":""},{"$f":"IF($F176>8,LARGE($I176:$AA176,9),\"\")","v":""},{"$f":"IF($F176>9,LARGE($I176:$AA176,10),\"\")","v":""},{"$f":"IF($F176>10,LARGE($I176:$AA176,11),\"\")","v":""},{"$f":"IF($F176>11,LARGE($I176:$AA176,12),\"\")","v":""},{"$f":"IF($F176>12,LARGE($I176:$AA176,13),\"\")","v":""},{"$f":"IF($F176>13,LARGE($I176:$AA176,14),\"\")","v":""},{"$f":"IF($F176>14,LARGE($I176:$AA176,15),\"\")","v":""},"-","-",15,null,134,null,null,null,null,null,null,null,null,null,null,null,null,null,null,null,null,null,null,null,null,null,null,null,null,null,null,null,null,null,null,null,null,null,null,null,null,null,null,null,null,null,null,null,null,null,null,null,null,null,null,null,null,null,null,null,null,null,null,null,null,null,null,169,null,{"$f":"IF(BE176>1,AF176,\"\")","v":171},"(174)"]
["173 (175)","Emilia Lindkvist","Alvesta",133,null,1,66.5,null,133,null,null,null,null,null,null,null,null,null,null,null,null,null,null,null,null,null,null,19,"-","-",175,173,"-",173,null,null,2,2,1,1,1,1,1,1,1,1,1,1,1,1,1,1,1,1,1,null,2,null,null,133,"","","","","","","","","","","","","","","-","-",15,null,133,null,null,null,null,null,null,null,null,null,null,null,null,null,null,null,null,null,null,null,null,null,null,null,null,null,null,null,null,null,null,null,null,null,null,null,null,null,null,null,null,null,null,null,null,null,null,null,null,null,null,null,null,null,null,null,null,null,null,null,null,null,null,188,null,188,"(175)"]
["174 (176)","Ingegärd Holmqvist","Lanternan",132,null,1,66,null,null,132,null,null,null,null,null,null,null,null,null,null,null,null,null,null,null,null,null,19,"-","-",176,174,"-",174,null,null,1,2,2,1,1,1,1,1,1,1,1,1,1,1,1,1,1,1,1,null,2,null,null,132,"","","","","","","","","","","","","","","-","-",15,null,132,null,null,null,null,null,null,null,null,null,null,null,null,null,null,null,null,null,null,null,null,null,null,null,null,null,null,null,null,null,null,null,null,null,null,null,null,null,null,null,null,null,null,null,null,null,null,null,null,null,null,null,null,null,null,null,null,null,null,null,null,null,null,170,null,{"$f":"IF(BE178>1,AF178,\"\")","v":174},"(176)"]
["175 (177)","Barbro Fohlin","Fole IF",127,null,2,31.75,null,null,null,null,null,null,48,null,null,null,null,null,null,null,null,79,null,null,null,null,19,"-","-",177,175,175,175,null,null,1,1,1,1,1,2,2,1,1,1,1,1,1,1,2,2,1,1,1,null,2,null,null,79,48,"","","","","","","","","","","","","","-","-",14,null,127,null,null,null,null,null,null,null,null,null,null,null,null,null,null,null,null,null,null,null,null,null,null,null,null,null,null,null,null,null,null,null,null,null,null,null,null,null,null,null,null,null,null,null,null,null,null,null,null,null,null,null,null,null,null,null,null,null,null,null,null,null,null,171,null,175,"(177)"]
["175 (177)","Bengt Andersson","Växjö Hsk",127,null,1,63.5,null,null,null,null,null,null,null,null,null,null,null,null,null,null,127,null,null,null,null,null,19,"-","-",177,175,"-",176,null,null,1,1,1,1,1,1,1,1,1,1,1,1,1,2,2,1,1,1,1,null,2,null,null,127,"","","","","","","","","","","","","","","-","-",15,null,127,null,null,null,null,null,null,null,null,null,null,null,null,null,null,null,null,null,null,null,null,null,null,null,null,null,null,null,null,null,null,null,null,null,null,null,null,null,null,null,null,null,null,null,null,null,null,null,null,null,null,null,null,null,null,null,null,null,null,null,null,null,null,172,null,175,"(177)"]
["177 (179)","Barbro Wettersten","Wisby BK",122,null,2,30.5,null,null,null,null,null,null,40,null,null,null,null,null,null,null,null,82,null,null,null,null,19,"-","-",179,177,177,177,null,null,1,1,1,1,1,2,2,1,1,1,1,1,1,1,2,2,1,1,1,null,2,null,null,82,40,"","","","","","","","","","","","","","-","-",14,null,122,null,null,null,null,null,null,null,null,null,null,null,null,null,null,null,null,null,null,null,null,null,null,null,null,null,null,null,null,null,null,null,null,null,null,null,null,null,null,null,null,null,null,null,null,null,null,null,null,null,null,null,null,null,null,null,null,null,null,null,null,null,null,173,null,177,"(179)"]
["178 (180)","Mimmi Hansson","Korpen Nybro",118,null,1,59,null,null,null,null,null,null,null,null,null,null,null,null,null,null,null,null,118,null,null,null,19,"-","-",180,178,"-",178,null,null,1,1,1,1,1,1,1,1,1,1,1,1,1,1,1,2,2,1,1,null,2,null,null,118,"","","","","","","","","","","","","","","-","-",15,null,118,null,null,null,null,null,null,null,null,null,null,null,null,null,null,null,null,null,null,null,null,null,null,null,null,null,null,null,null,null,null,null,null,null,null,null,null,null,null,null,null,null,null,null,null,null,null,null,null,null,null,null,null,null,null,null,null,null,null,null,null,null,null,174,null,178,"(180)"]
["179 (181)","Jonathan Karlsson","Tingsryd",113,null,1,56.5,null,null,null,null,null,null,null,113,null,null,null,null,null,null,null,null,null,null,null,null,19,"-","-",181,179,"-",179,null,null,1,1,1,1,1,1,2,2,1,1,1,1,1,1,1,1,1,1,1,null,2,null,null,113,"","","","","","","","","","","","","","","-","-",15,null,113,null,null,null,null,null,null,null,null,null,null,null,null,null,null,null,null,null,null,null,null,null,null,null,null,null,null,null,null,null,null,null,null,null,null,null,null,null,null,null,null,null,null,null,null,null,null,null,null,null,null,null,null,null,null,null,null,null,null,null,null,null,null,182,null,179,"(181)"]
["180 (182)","Morgan Jonasson","Sibbamåla",104,null,1,52,null,null,null,null,null,null,null,null,null,104,null,null,null,null,null,null,null,null,null,null,19,"-","-",182,180,"-",180,null,null,1,1,1,1,1,1,1,1,2,2,1,1,1,1,1,1,1,1,1,null,2,null,null,104,"","","","","","","","","","","","","","","-","-",15,null,104,null,null,null,null,null,null,null,null,null,null,null,null,null,null,null,null,null,null,null,null,null,null,null,null,null,null,null,null,null,null,null,null,null,null,null,null,null,null,null,null,null,null,null,null,null,null,null,null,null,null,null,null,null,null,null,null,null,null,null,null,null,null,176,null,180,"(182)"]
["181 (183)","Ronny Lindskär","Bridgegänget",96,null,1,48,null,null,null,null,null,null,null,null,null,96,null,null,null,null,null,null,null,null,null,null,19,"-","-",183,181,"-",181,null,null,1,1,1,1,1,1,1,1,2,2,1,1,1,1,1,1,1,1,1,null,2,null,null,96,"","","","","","","","","","","","","","","-","-",15,null,96,null,null,null,null,null,null,null,null,null,null,null,null,null,null,null,null,null,null,null,null,null,null,null,null,null,null,null,null,null,null,null,null,null,null,null,null,null,null,null,null,null,null,null,null,null,null,null,null,null,null,null,null,null,null,null,null,null,null,null,null,null,null,202,null,181,"(183)"]
["182 (184)","Adam Svensson","Cementa IF",91,null,1,45.5,null,null,null,null,null,null,null,null,null,null,null,null,null,null,null,91,null,null,null,null,19,"-","-",184,182,"-",182,null,null,1,1,1,1,1,1,1,1,1,1,1,1,1,1,2,2,1,1,1,null,2,null,null,91,"","","","","","","","","","","","","","","-","-",15,null,91,null,null,null,null,null,null,null,null,null,null,null,null,null,null,null,null,null,null,null,null,null,null,null,null,null,null,null,null,null,null,null,null,null,null,null,null,null,null,null,null,null,null,null,null,null,null,null,null,null,null,null,null,null,null,null,null,null,null,null,null,null,null,177,null,177,"(184)"]
["183 (185)","Ulf Gardell","Mulde VK",89,null,1,44.5,null,null,null,null,null,null,89,null,null,null,null,null,null,null,null,null,null,null,null,null,19,"-","-",185,183,"-",183,null,null,1,1,1,1,1,2,2,1,1,1,1,1,1,1,1,1,1,1,1,null,2,null,null,89,"","","","","","","","","","","","","","","-","-",15,null,89,null,null,null,null,null,null,null,null,null,null,null,null,null,null,null,null,null,null,null,null,null,null,null,null,null,null,null,null,null,null,null,null,null,null,null,null,null,null,null,null,null,null,null,null,null,null,null,null,null,null,null,null,null,null,null,null,null,null,null,null,null,null,178,null,{"$f":"IF(BE187>1,AF187,\"\")","v":183},"(185)"]
["184 (187)","Patrik Olausson","Sibbamåla",85,null,1,42.5,null,null,null,null,null,null,null,null,null,null,85,null,null,null,null,null,null,null,null,null,19,"-","-",187,184,"-",184,null,null,1,1,1,1,1,1,1,1,1,2,2,1,1,1,1,1,1,1,1,null,2,null,null,85,"","","","","","","","","","","","","","","-","-",15,null,85,null,null,null,null,null,null,null,null,null,null,null,null,null,null,null,null,null,null,null,null,null,null,null,null,null,null,null,null,null,null,null,null,null,null,null,null,null,null,null,null,null,null,null,null,null,null,null,null,null,null,null,null,null,null,null,null,null,null,null,null,null,null,179,null,179,"(187)"]
[{"$f":"IF(BE189>1,AF189&\" (\"&AE189&\")\",AF189&\" (\"&AG189&\")\")","v":"185 (188)"},"Rasmus Johansson","Cementa IF",83,null,1,41.5,null,null,null,null,null,null,null,null,null,null,null,null,null,null,null,83,null,null,null,null,19,"-","-",188,{"$f":"IF(D189<D188,AH189,AF188)","v":185},"-",185,null,null,{"$f":"COUNT($I$3,I189,H189)","v":1},{"$f":"COUNT($J$3,J189,I189)","v":1},{"$f":"COUNT($K$3,K189,J189)","v":1},{"$f":"COUNT($L$3,L189,K189)","v":1},{"$f":"COUNT($M$3,M189,L189)","v":1},{"$f":"COUNT($N$3,N189,M189)","v":1},{"$f":"COUNT($O$3,O189,N189)","v":1},{"$f":"COUNT($P$3,P189,O189)","v":1},{"$f":"COUNT($Q$3,Q189,P189)","v":1},{"$f":"COUNT($R$3,R189,Q189)","v":1},{"$f":"COUNT($S$3,S189,R189)","v":1},{"$f":"COUNT($T$3,T189,S189)","v":1},{"$f":"COUNT($U$3,U189,T189)","v":1},{"$f":"COUNT($V$3,V189,U189)","v":1},{"$f":"COUNT($W$3,W189,V189)","v":2},{"$f":"COUNT($X$3,X189,W189)","v":2},{"$f":"COUNT($Y$3,Y189,X189)","v":1},{"$f":"COUNT($Z$3,Z189,Y189)","v":1},{"$f":"COUNT($AA$3,AA189,Z189)","v":1},null,{"$f":"IF(H189=\"x\",1,2)","v":2},null,null,{"$f":"IF($F189>0,LARGE($I189:$AA189,1),\"\")","v":83},"","","","","","","","","","","","","","",{"$f":"IF($F189>13,LARGE($I189:$AA189,14),\"-\")","v":"-"},{"$f":"IF($F189>14,LARGE($I189:$AA189,15),\"-\")","v":"-"},{"$f":"SUM(AB189-F189)-3","v":15},null,{"$f":"SUM(BH189:BV189)","v":83},null,null,null,null,null,null,null,null,null,null,null,null,null,null,null,null,null,null,null,null,null,null,null,null,null,null,null,null,null,null,null,null,null,null,null,null,null,null,null,null,null,null,null,null,null,null,null,null,null,null,null,null,null,null,null,null,null,null,null,null,null,null,180,null,{"$f":"IF(BE189>1,AF189,\"\")","v":185},{"$f":"IF(BE189>1,\"(\"&AE189&\")\",\"(\"&AG189&\")\")","v":"(188)"}]
["186 (189)","Susanne Östrand","Värends Hsk",82,null,1,41,null,null,null,null,null,null,null,null,82,null,null,null,null,null,null,null,null,null,null,null,19,"-","-",189,186,"-",186,null,null,1,1,1,1,1,1,1,2,2,1,1,1,1,1,1,1,1,1,1,null,2,null,null,82,"","","","","","","","","","","","","","","-","-",15,null,82,null,null,null,null,null,null,null,null,null,null,null,null,null,null,null,null,null,null,null,null,null,null,null,null,null,null,null,null,null,null,null,null,null,null,null,null,null,null,null,null,null,null,null,null,null,null,null,null,null,null,null,null,null,null,null,null,null,null,null,null,null,null,181,null,{"$f":"IF(BE190>1,AF190,\"\")","v":186},"(189)"]
["187 (190)","Göran Brincner","Värends Hsk",80,null,1,40,null,null,null,null,null,null,null,null,80,null,null,null,null,null,null,null,null,null,null,null,19,"-","-",190,187,"-",187,null,null,1,1,1,1,1,1,1,2,2,1,1,1,1,1,1,1,1,1,1,null,2,null,null,80,"","","","","","","","","","","","","","","-","-",15,null,80,null,null,null,null,null,null,null,null,null,null,null,null,null,null,null,null,null,null,null,null,null,null,null,null,null,null,null,null,null,null,null,null,null,null,null,null,null,null,null,null,null,null,null,null,null,null,null,null,null,null,null,null,null,null,null,null,null,null,null,null,null,null,155,null,{"$f":"IF(BE191>=1,AF191,\"\")","v":187},"(190)"]
["188 (191)","Tytti Bark","Lessebo Hsk",77,null,1,38.5,null,null,null,77,null,null,null,null,null,null,null,null,null,null,null,null,null,null,null,null,19,"-","-",191,188,"-",188,null,null,1,1,2,2,1,1,1,1,1,1,1,1,1,1,1,1,1,1,1,null,2,null,null,77,"","","","","","","","","","","","","","","-","-",15,null,77,null,null,null,null,null,null,null,null,null,null,null,null,null,null,null,null,null,null,null,null,null,null,null,null,null,null,null,null,null,null,null,null,null,null,null,null,null,null,null,null,null,null,null,null,null,null,null,null,null,null,null,null,null,null,null,null,null,null,null,null,null,null,183,null,{"$f":"IF(BE192>1,AF192,\"\")","v":188},"(191)"]
["188 (191)","Charlotte Åkesson","Dynapac ",77,null,1,38.5,null,null,null,null,null,null,null,null,null,77,null,null,null,null,null,null,null,null,null,null,19,"-","-",191,188,"-",189,null,null,1,1,1,1,1,1,1,1,2,2,1,1,1,1,1,1,1,1,1,null,2,null,null,77,"","","","","","","","","","","","","","","-","-",15,null,77,null,null,null,null,null,null,null,null,null,null,null,null,null,null,null,null,null,null,null,null,null,null,null,null,null,null,null,null,null,null,null,null,null,null,null,null,null,null,null,null,null,null,null,null,null,null,null,null,null,null,null,null,null,null,null,null,null,null,null,null,null,null,184,null,188,"(191)"]
["190 (193)","Thorgny Björkqvist","Tingsryd",67,null,1,33.5,null,null,null,null,null,null,null,67,null,null,null,null,null,null,null,null,null,null,null,null,19,"-","-",193,190,"-",190,null,null,1,1,1,1,1,1,2,2,1,1,1,1,1,1,1,1,1,1,1,null,2,null,null,67,"","","","","","","","","","","","","","","-","-",15,null,67,null,null,null,null,null,null,null,null,null,null,null,null,null,null,null,null,null,null,null,null,null,null,null,null,null,null,null,null,null,null,null,null,null,null,null,null,null,null,null,null,null,null,null,null,null,null,null,null,null,null,null,null,null,null,null,null,null,null,null,null,null,null,185,null,190,"(193)"]
["190 (193)","Torgny Nyberg","Mulde VK",67,null,1,33.5,null,null,null,null,null,null,null,null,null,null,null,null,null,null,null,67,null,null,null,null,19,"-","-",193,190,"-",191,null,null,1,1,1,1,1,1,1,1,1,1,1,1,1,1,2,2,1,1,1,null,2,null,null,67,"","","","","","","","","","","","","","","-","-",15,null,67,null,null,null,null,null,null,null,null,null,null,null,null,null,null,null,null,null,null,null,null,null,null,null,null,null,null,null,null,null,null,null,null,null,null,null,null,null,null,null,null,null,null,null,null,null,null,null,null,null,null,null,null,null,null,null,null,null,null,null,null,null,null,186,null,190,"(193)"]
["192 (195)","Emelie Sjöberg","Värends Hsk",62,null,1,31,null,62,null,null,null,null,null,null,null,null,null,null,null,null,null,null,null,null,null,null,19,"-","-",195,192,{"$f":"IF(F196>1,ROW(192:192),\"-\")","v":"-"},192,null,null,2,2,1,1,1,1,1,1,1,1,1,1,1,1,1,1,1,1,1,null,2,null,null,62,"","","","","","","","","","","","","","","-","-",15,null,62,null,null,null,null,null,null,null,null,null,null,null,null,null,null,null,null,null,null,null,null,null,null,null,null,null,null,null,null,null,null,null,null,null,null,null,null,null,null,null,null,null,null,null,null,null,null,null,null,null,null,null,null,null,null,null,null,null,null,null,null,null,null,187,null,192,"(195)"]
["193 (196)","Lena Schalin","Bridgegänget",{"$f":"SUM(BH197:BT197)","v":55},null,{"$f":"COUNT(I197:AA197)","v":1},{"$f":"SUM((CA197)/(F197*2))","v":27.5},null,null,null,null,null,null,null,null,null,55,null,null,null,null,null,null,null,null,null,null,{"$f":"SUM($I$3:$AA$3)","v":19},{"$f":"BW197","v":"-"},{"$f":"BX197","v":"-"},196,193,"-",193,null,null,1,1,1,1,1,1,1,1,2,2,1,1,1,1,1,1,1,1,1,null,2,null,null,55,"","","","","","","","","","","","","","","-","-",15,null,55,null,null,null,null,null,null,null,null,null,null,null,null,null,null,null,null,null,null,null,null,null,null,null,null,null,null,null,null,null,null,null,null,null,null,null,null,null,null,null,null,null,null,null,null,null,null,null,null,null,null,null,null,null,null,null,null,null,null,null,null,null,null,205,null,193,"(196)"]
["194 (197)","Curt von Schlanbusch","Bridgegänget",48,null,1,24,null,null,null,null,null,null,null,null,null,48,null,null,null,null,null,null,null,null,null,null,19,"-","-",197,194,"-",194,null,null,1,1,1,1,1,1,1,1,2,2,1,1,1,1,1,1,1,1,1,null,2,null,null,48,null,null,null,null,null,null,null,null,null,null,null,null,null,null,"-","-",15,null,48,null,null,null,null,null,null,null,null,null,null,null,null,null,null,null,null,null,null,null,null,null,null,null,null,null,null,null,null,null,null,null,null,null,null,null,null,null,null,null,null,null,null,null,null,null,null,null,null,null,null,null,null,null,null,null,null,null,null,null,null,null,null,216,null,194,"(197)"]
["194 (197)","Alexander Wiktorsson","Värends Hsk",48,null,1,24,null,null,null,null,null,null,null,null,null,null,null,null,null,null,48,null,null,null,null,null,19,"-","-",197,194,"-",195,null,null,1,1,1,1,1,1,1,1,1,1,1,1,1,2,2,1,1,1,1,null,2,null,null,48,{"$f":"IF($F199>1,LARGE($I199:$AA199,2),\"\")","v":""},{"$f":"IF($F199>2,LARGE($I199:$AA199,3),\"\")","v":""},{"$f":"IF($F199>3,LARGE($I199:$AA199,4),\"\")","v":""},{"$f":"IF($F199>4,LARGE($I199:$AA199,5),\"\")","v":""},{"$f":"IF($F199>5,LARGE($I199:$AA199,6),\"\")","v":""},{"$f":"IF($F199>6,LARGE($I199:$AA199,7),\"\")","v":""},{"$f":"IF($F199>7,LARGE($I199:$AA199,8),\"\")","v":""},{"$f":"IF($F199>8,LARGE($I199:$AA199,9),\"\")","v":""},{"$f":"IF($F199>9,LARGE($I199:$AA199,10),\"\")","v":""},{"$f":"IF($F199>10,LARGE($I199:$AA199,11),\"\")","v":""},{"$f":"IF($F199>11,LARGE($I199:$AA199,12),\"\")","v":""},{"$f":"IF($F199>12,LARGE($I199:$AA199,13),\"\")","v":""},{"$f":"IF($F199>13,LARGE($I199:$AA199,14),\"\")","v":""},{"$f":"IF($F199>14,LARGE($I199:$AA199,15),\"\")","v":""},"-","-",15,null,48,null,null,null,null,null,null,null,null,null,null,null,null,null,null,null,null,null,null,null,null,null,null,null,null,null,null,null,null,null,null,null,null,null,null,null,null,null,null,null,null,null,null,null,null,null,null,null,null,null,null,null,null,null,null,null,null,null,null,null,null,null,null,189,null,194,"(197)"]
["196 (199)","Ann-Margret Svensson","Sibbamåla",27,null,1,13.5,null,null,null,null,null,null,null,null,null,27,null,null,null,null,null,null,null,null,null,null,19,"-","-",199,196,"-",196,null,null,1,1,1,1,1,1,1,1,2,2,1,1,1,1,1,1,1,1,1,null,2,null,null,27,"","","","","","","","","","","","","","","-","-",15,null,27,null,null,null,null,null,null,null,null,null,null,null,null,null,null,null,null,null,null,null,null,null,null,null,null,null,null,null,null,null,null,null,null,null,null,null,null,null,null,null,null,null,null,null,null,null,null,null,null,null,null,null,null,null,null,null,null,null,null,null,null,null,null,190,null,196,"(199)"]
["197 (200)","Marianne Wadaszi","Bridgegänget",23,null,1,11.5,null,null,null,null,null,null,null,null,null,23,null,null,null,null,null,null,null,null,null,null,19,"-","-",200,197,"-",197,null,null,1,1,1,1,1,1,1,1,2,2,1,1,1,1,1,1,1,1,1,null,2,null,null,23,"","","","","","","","","","","","","","","-","-",15,null,23,null,null,null,null,null,null,null,null,null,null,null,null,null,null,null,null,null,null,null,null,null,null,null,null,null,null,null,null,null,null,null,null,null,null,null,null,null,null,null,null,null,null,null,null,null,null,null,null,null,null,null,null,null,null,null,null,null,null,null,null,null,null,191,null,197,"(200)"]
["198 (128)",null,null,0,null,0,{"$error":"#DIV/0!"},null,null,null,null,null,null,null,null,null,null,null,null,null,null,null,null,null,null,null,null,19,"-","-",128,198,"-",198,null,null,1,1,1,1,1,1,1,1,1,1,1,1,1,1,1,1,1,1,1,null,2,null,null,"","","","","","","","","","","","","","","","-","-",16,null,0,null,null,null,null,null,null,null,null,null,null,null,null,null,null,null,null,null,null,null,null,null,null,null,null,null,null,null,null,null,null,null,null,null,null,null,null,null,null,null,null,null,null,null,null,null,null,null,null,null,null,null,null,null,null,null,null,null,null,null,null,null,null,192,null,198,"(128)"]
["198 (144)",null,null,0,null,0,{"$error":"#DIV/0!"},null,null,null,null,null,null,null,null,null,null,null,null,null,null,null,null,null,null,null,null,19,"-","-",144,198,"-",199,null,null,1,1,1,1,1,1,1,1,1,1,1,1,1,1,1,1,1,1,1,null,2,null,null,"","","","","","","","","","","","","","","","-","-",16,null,0,null,null,null,null,null,null,null,null,null,null,null,null,null,null,null,null,null,null,null,null,null,null,null,null,null,null,null,null,null,null,null,null,null,null,null,null,null,null,null,null,null,null,null,null,null,null,null,null,null,null,null,null,null,null,null,null,null,null,null,null,null,null,193,null,198,"(144)"]
["198 (185)",null,null,0,null,0,{"$error":"#DIV/0!"},null,null,null,null,null,null,null,null,null,null,null,null,null,null,null,null,null,null,null,null,19,"-","-",185,198,"-",200,null,null,1,1,1,1,1,1,1,1,1,1,1,1,1,1,1,1,1,1,1,null,2,null,null,"","","","","","","","","","","","","","","","-","-",16,null,0,null,null,null,null,null,null,null,null,null,null,null,null,null,null,null,null,null,null,null,null,null,null,null,null,null,null,null,null,null,null,null,null,null,null,null,null,null,null,null,null,null,null,null,null,null,null,null,null,null,null,null,null,null,null,null,null,null,null,null,null,null,null,194,null,198,"(185)"]
["198 (201)",null,null,0,null,0,{"$error":"#DIV/0!"},null,null,null,null,null,null,null,null,null,null,null,null,null,null,null,null,null,null,null,null,19,"-","-",201,198,"-",201,null,null,1,1,1,1,1,1,1,1,1,1,1,1,1,1,1,1,1,1,1,null,2,null,null,"","","","","","","","","","","","","","","","-","-",16,null,0,null,null,null,null,null,null,null,null,null,null,null,null,null,null,null,null,null,null,null,null,null,null,null,null,null,null,null,null,null,null,null,null,null,null,null,null,null,null,null,null,null,null,null,null,null,null,null,null,null,null,null,null,null,null,null,null,null,null,null,null,null,null,196,null,198,"(201)"]
["198 (201)",null,null,0,null,0,{"$error":"#DIV/0!"},null,null,null,null,null,null,null,null,null,null,null,null,null,null,null,null,null,null,null,null,19,"-","-",201,198,"-",202,null,null,1,1,1,1,1,1,1,1,1,1,1,1,1,1,1,1,1,1,1,null,2,null,null,"","","","","","","","","","","","","","","","-","-",16,null,0,null,null,null,null,null,null,null,null,null,null,null,null,null,null,null,null,null,null,null,null,null,null,null,null,null,null,null,null,null,null,null,null,null,null,null,null,null,null,null,null,null,null,null,null,null,null,null,null,null,null,null,null,null,null,null,null,null,null,null,null,null,null,197,null,198,"(201)"]
["198 (201)",null,null,0,null,0,{"$error":"#DIV/0!"},null,null,null,null,null,null,null,null,null,null,null,null,null,null,null,null,null,null,null,null,19,"-","-",201,198,"-",203,null,null,1,1,1,1,1,1,1,1,1,1,1,1,1,1,1,1,1,1,1,null,2,null,null,"","","","","","","","","","","","","","","","-","-",16,null,0,null,null,null,null,null,null,null,null,null,null,null,null,null,null,null,null,null,null,null,null,null,null,null,null,null,null,null,null,null,null,null,null,null,null,null,null,null,null,null,null,null,null,null,null,null,null,null,null,null,null,null,null,null,null,null,null,null,null,null,null,null,null,207,null,198,"(201)"]
["198 (201)",null,null,0,null,0,{"$error":"#DIV/0!"},null,null,null,null,null,null,null,null,null,null,null,null,null,null,null,null,null,null,null,null,19,"-","-",201,198,"-",204,null,null,1,1,1,1,1,1,1,1,1,1,1,1,1,1,1,1,1,1,1,null,2,null,null,"","","","","","","","","","","","","","","","-","-",16,null,0,null,null,null,null,null,null,null,null,null,null,null,null,null,null,null,null,null,null,null,null,null,null,null,null,null,null,null,null,null,null,null,null,null,null,null,null,null,null,null,null,null,null,null,null,null,null,null,null,null,null,null,null,null,null,null,null,null,null,null,null,null,null,198,null,198,"(201)"]
["198 (201)",null,null,0,null,0,{"$error":"#DIV/0!"},null,null,null,null,null,null,null,null,null,null,null,null,null,null,null,null,null,null,null,null,19,"-","-",201,198,"-",205,null,null,1,1,1,1,1,1,1,1,1,1,1,1,1,1,1,1,1,1,1,null,2,null,null,"","","","","","","","","","","","","","","","-","-",16,null,0,null,null,null,null,null,null,null,null,null,null,null,null,null,null,null,null,null,null,null,null,null,null,null,null,null,null,null,null,null,null,null,null,null,null,null,null,null,null,null,null,null,null,null,null,null,null,null,null,null,null,null,null,null,null,null,null,null,null,null,null,null,null,199,null,198,"(201)"]
["198 (201)",null,null,0,null,0,{"$error":"#DIV/0!"},null,null,null,null,null,null,null,null,null,null,null,null,null,null,null,null,null,null,null,null,19,"-","-",201,198,"-",206,null,null,1,1,1,1,1,1,1,1,1,1,1,1,1,1,1,1,1,1,1,null,2,null,null,"","","","","","","","","","","","","","","","-","-",16,null,0,null,null,null,null,null,null,null,null,null,null,null,null,null,null,null,null,null,null,null,null,null,null,null,null,null,null,null,null,null,null,null,null,null,null,null,null,null,null,null,null,null,null,null,null,null,null,null,null,null,null,null,null,null,null,null,null,null,null,null,null,null,null,200,null,198,"(201)"]
["198 (201)",null,null,0,null,0,{"$error":"#DIV/0!"},null,null,null,null,null,null,null,null,null,null,null,null,null,null,null,null,null,null,null,null,19,"-","-",201,198,"-",207,null,null,1,1,1,1,1,1,1,1,1,1,1,1,1,1,1,1,1,1,1,null,2,null,null,"","","","","","","","","","","","","","","","-","-",16,null,0,null,null,null,null,null,null,null,null,null,null,null,null,null,null,null,null,null,null,null,null,null,null,null,null,null,null,null,null,null,null,null,null,null,null,null,null,null,null,null,null,null,null,null,null,null,null,null,null,null,null,null,null,null,null,null,null,null,null,null,null,null,null,201,null,198,"(201)"]
["198 (201)",null,null,0,null,0,{"$error":"#DIV/0!"},null,null,null,null,null,null,null,null,null,null,null,null,null,null,null,null,null,null,null,null,19,"-","-",201,198,"-",208,null,null,1,1,1,1,1,1,1,1,1,1,1,1,1,1,1,1,1,1,1,null,2,null,null,"","","","","","","","","","","","","","","","-","-",16,null,0,null,null,null,null,null,null,null,null,null,null,null,null,null,null,null,null,null,null,null,null,null,null,null,null,null,null,null,null,null,null,null,null,null,null,null,null,null,null,null,null,null,null,null,null,null,null,null,null,null,null,null,null,null,null,null,null,null,null,null,null,null,null,203,null,198,"(201)"]
["198 (201)",null,null,0,null,0,{"$error":"#DIV/0!"},null,null,null,null,null,null,null,null,null,null,null,null,null,null,null,null,null,null,null,null,19,"-","-",201,198,"-",209,null,null,1,1,1,1,1,1,1,1,1,1,1,1,1,1,1,1,1,1,1,null,2,null,null,"","","","","","","","","","","","","","","","-","-",16,null,0,null,null,null,null,null,null,null,null,null,null,null,null,null,null,null,null,null,null,null,null,null,null,null,null,null,null,null,null,null,null,null,null,null,null,null,null,null,null,null,null,null,null,null,null,null,null,null,null,null,null,null,null,null,null,null,null,null,null,null,null,null,null,204,null,198,"(201)"]
[{"$f":"IF(BE214>1,AF214&\" (\"&AE214&\")\",AF214&\" (\"&AG214&\")\")","v":"198 (201)"},null,null,0,null,0,{"$error":"#DIV/0!"},null,null,null,null,null,null,null,null,null,null,null,null,null,null,null,null,null,null,null,null,19,"-","-",201,{"$f":"IF(D214<D213,AH214,AF213)","v":198},{"$f":"IF(F214>1,ROW(210:210),\"-\")","v":"-"},210,null,null,{"$f":"COUNT($I$3,I214,H214)","v":1},{"$f":"COUNT($J$3,J214,I214)","v":1},{"$f":"COUNT($K$3,K214,J214)","v":1},{"$f":"COUNT($L$3,L214,K214)","v":1},{"$f":"COUNT($M$3,M214,L214)","v":1},{"$f":"COUNT($N$3,N214,M214)","v":1},{"$f":"COUNT($O$3,O214,N214)","v":1},{"$f":"COUNT($P$3,P214,O214)","v":1},{"$f":"COUNT($Q$3,Q214,P214)","v":1},{"$f":"COUNT($R$3,R214,Q214)","v":1},{"$f":"COUNT($S$3,S214,R214)","v":1},{"$f":"COUNT($T$3,T214,S214)","v":1},{"$f":"COUNT($U$3,U214,T214)","v":1},{"$f":"COUNT($V$3,V214,U214)","v":1},{"$f":"COUNT($W$3,W214,V214)","v":1},{"$f":"COUNT($X$3,X214,W214)","v":1},{"$f":"COUNT($Y$3,Y214,X214)","v":1},{"$f":"COUNT($Z$3,Z214,Y214)","v":1},{"$f":"COUNT($AA$3,AA214,Z214)","v":1},null,{"$f":"IF(H214=\"x\",1,2)","v":2},null,null,{"$f":"IF($F214>0,LARGE($I214:$AA214,1),\"\")","v":""},{"$f":"IF($F214>1,LARGE($I214:$AA214,2),\"\")","v":""},{"$f":"IF($F214>2,LARGE($I214:$AA214,3),\"\")","v":""},{"$f":"IF($F214>3,LARGE($I214:$AA214,4),\"\")","v":""},{"$f":"IF($F214>4,LARGE($I214:$AA214,5),\"\")","v":""},{"$f":"IF($F214>5,LARGE($I214:$AA214,6),\"\")","v":""},{"$f":"IF($F214>6,LARGE($I214:$AA214,7),\"\")","v":""},{"$f":"IF($F214>7,LARGE($I214:$AA214,8),\"\")","v":""},{"$f":"IF($F214>8,LARGE($I214:$AA214,9),\"\")","v":""},{"$f":"IF($F214>9,LARGE($I214:$AA214,10),\"\")","v":""},{"$f":"IF($F214>10,LARGE($I214:$AA214,11),\"\")","v":""},{"$f":"IF($F214>11,LARGE($I214:$AA214,12),\"\")","v":""},{"$f":"IF($F214>12,LARGE($I214:$AA214,13),\"\")","v":""},{"$f":"IF($F214>13,LARGE($I214:$AA214,14),\"\")","v":""},{"$f":"IF($F214>14,LARGE($I214:$AA214,15),\"\")","v":""},{"$f":"IF($F214>13,LARGE($I214:$AA214,14),\"-\")","v":"-"},{"$f":"IF($F214>14,LARGE($I214:$AA214,15),\"-\")","v":"-"},{"$f":"SUM(AB214-F214)-3","v":16},null,{"$f":"SUM(BH214:BV214)","v":0},null,null,null,null,null,null,null,null,null,null,null,null,null,null,null,null,null,null,null,null,null,null,null,null,null,null,null,null,null,null,null,null,null,null,null,null,null,null,null,null,null,null,null,null,null,null,null,null,null,null,null,null,null,null,null,null,null,null,null,null,null,null,208,null,{"$f":"IF(BE214>1,AF214,\"\")","v":198},{"$f":"IF(BE214>1,\"(\"&AE214&\")\",\"(\"&AG214&\")\")","v":"(201)"}]
["198 (201)",null,null,0,null,0,{"$error":"#DIV/0!"},null,null,null,null,null,null,null,null,null,null,null,null,null,null,null,null,null,null,null,null,19,"-","-",201,198,"-",211,null,null,1,1,1,1,1,1,1,1,1,1,1,1,1,1,1,1,1,1,1,null,2,null,null,"","","","","","","","","","","","","","","","-","-",16,null,0,null,null,null,null,null,null,null,null,null,null,null,null,null,null,null,null,null,null,null,null,null,null,null,null,null,null,null,null,null,null,null,null,null,null,null,null,null,null,null,null,null,null,null,null,null,null,null,null,null,null,null,null,null,null,null,null,null,null,null,null,null,null,209,null,198,"(201)"]
["198 (201)",null,null,0,null,0,{"$error":"#DIV/0!"},null,null,null,null,null,null,null,null,null,null,null,null,null,null,null,null,null,null,null,null,19,"-","-",201,198,"-",212,null,null,1,1,1,1,1,1,1,1,1,1,1,1,1,1,1,1,1,1,1,null,2,null,null,"","","","","","","","","","","","","","","","-","-",16,null,0,null,null,null,null,null,null,null,null,null,null,null,null,null,null,null,null,null,null,null,null,null,null,null,null,null,null,null,null,null,null,null,null,null,null,null,null,null,null,null,null,null,null,null,null,null,null,null,null,null,null,null,null,null,null,null,null,null,null,null,null,null,null,210,null,198,"(201)"]
["198 (201)",null,null,0,null,0,{"$error":"#DIV/0!"},null,null,null,null,null,null,null,null,null,null,null,null,null,null,null,null,null,null,null,null,19,"-","-",201,198,"-",213,null,null,1,1,1,1,1,1,1,1,1,1,1,1,1,1,1,1,1,1,1,null,2,null,null,"",null,null,null,null,null,null,null,null,null,null,null,null,null,null,"-","-",16,null,0,null,null,null,null,null,null,null,null,null,null,null,null,null,null,null,null,null,null,null,null,null,null,null,null,null,null,null,null,null,null,null,null,null,null,null,null,null,null,null,null,null,null,null,null,null,null,null,null,null,null,null,null,null,null,null,null,null,null,null,null,null,null,211,null,198,"(201)"]
["198 (201)",null,null,0,null,0,{"$error":"#DIV/0!"},null,null,null,null,null,null,null,null,null,null,null,null,null,null,null,null,null,null,null,null,19,"-","-",201,198,"-",214,null,null,1,1,1,1,1,1,1,1,1,1,1,1,1,1,1,1,1,1,1,null,2,null,null,"",null,null,null,null,null,null,null,null,null,null,null,null,null,null,"-","-",16,null,0,null,null,null,null,null,null,null,null,null,null,null,null,null,null,null,null,null,null,null,null,null,null,null,null,null,null,null,null,null,null,null,null,null,null,null,null,null,null,null,null,null,null,null,null,null,null,null,null,null,null,null,null,null,null,null,null,null,null,null,null,null,null,212,null,198,"(201)"]
["198 (201)",null,null,0,null,0,{"$error":"#DIV/0!"},null,null,null,null,null,null,null,null,null,null,null,null,null,null,null,null,null,null,null,null,19,"-","-",201,198,"-",215,null,null,1,1,1,1,1,1,1,1,1,1,1,1,1,1,1,1,1,1,1,null,2,null,null,"",null,null,null,null,null,null,null,null,null,null,null,null,null,null,"-","-",16,null,0,null,null,null,null,null,null,null,null,null,null,null,null,null,null,null,null,null,null,null,null,null,null,null,null,null,null,null,null,null,null,null,null,null,null,null,null,null,null,null,null,null,null,null,null,null,null,null,null,null,null,null,null,null,null,null,null,null,null,null,null,null,null,213,null,198,"(201)"]
["198 (201)",null,null,0,null,0,{"$error":"#DIV/0!"},null,null,null,null,null,null,null,null,null,null,null,null,null,null,null,null,null,null,null,null,19,"-","-",201,198,"-",216,null,null,1,1,1,1,1,1,1,1,1,1,1,1,1,1,1,1,1,1,1,null,2,null,null,"",null,null,null,null,null,null,null,null,null,null,null,null,null,null,"-","-",16,null,0,null,null,null,null,null,null,null,null,null,null,null,null,null,null,null,null,null,null,null,null,null,null,null,null,null,null,null,null,null,null,null,null,null,null,null,null,null,null,null,null,null,null,null,null,null,null,null,null,null,null,null,null,null,null,null,null,null,null,null,null,null,null,214,null,198,"(201)"]

{"sheet":"Regler","index":1,"n_rows":29,"n_cols":1,"rows_kept":29,"cut":false,"hidden":false,"merged":[]}
["Regler för Sverige-,Junior- o Miniorranking"]
[]
["Rankingpoäng utgör den totala poängen från rankingtävlingar under säsongen "]
["som varje enskild kastare har fått ihop."]
["Max från 13 tävlingar kan medräknas, och då räknas de 13 med högst resultat."]
[]
["Den som har högst poäng när säsongen är över vinner."]
[]
["Skulle det vara kastare som hamnar på samma poäng när säsongen är över, och är bland de"]
["tre bästa så gäller detta för att skilja dem åt."]
[]
["1. Högst snitt per serie"]
["2. Högst poäng på en tävling, sedan näst högst osv."]
["3. Högsta poängen på senaste tävlingen, sedan den dessför innan osv.(DM-tävlingar ej inräknade) "]
["4. Skulle det fortfarande inte gå att skilja dem åt, så blir de på samma plats."]
[]
[]
["Seriespelsranking"]
[]
["Alla individuella seriespelsresultaten under säsongen räknas in."]
["Den som har högst snitt när säsongen är över vinner. "]
[]
["För att kunna vara bland de tre pristagarna, måste man spelat minst 7 serier."]
[]
["Skulle det vara kastare som hamnar på samma snitt när säsongen är över, och är bland de"]
["tre bästa så gäller detta för att skilja dem åt."]
[]
["1. Det högsta serieresultatet, sedan näst högsta osv."]
["2. Skulle det fortfarande inte gå att skilja dem åt, så blir de på samma plats."]

{"sheet":"Miniorranking","index":2,"n_rows":47,"n_cols":141,"rows_kept":47,"cut":false,"hidden":false,"merged":[]}
[null,"Svenska Hästskokastarförbundets Sverigeranking"]
[null,null,"MINIOR"]
[null,null,"SLUTSTÄLLNING 2015/2016",null,null,null,null,null,{"$f":"IF(SUM(I5:I407)>100,1,\"\")","v":1},1,"",1,1,"",1,1,1,1,1,1,1,1,"",1,1,1,1]
["Plac.","Kastare ","Klubb","Ranking-poäng",null,"Antal täv-lingar","Snitt per serie",null,"Växjö Open","Björkenäs Open","Utomhus-SM Dag 1","Utomhus-SM Dag 2","Utomhus Smålandsmästaren","Gotlands-DM ute","Gotland Open","Septemberskon","Dynapac Open","Blekinge-DM Ute","Åseda Open","Höstskon Nybro","Novemberkampen","Inomhus-SM","Gotlands-DM inne","Inomhus Smålandsmästaren ","Blekinge DM Inne","Värendspokalen","Tingsryds Open"]
[{"$f":"EJ5&EK5","v":"1(1)"},"Alexander Lundqvist","Alvesta Hsk",{"$f":"SUM(I5:AA5)","v":4754},null,{"$f":"COUNT(I5:AA5)","v":14},{"$f":"SUM((D5)/(F5*2))","v":169.78571428571428},null,282,400,null,257,257,null,203,404,285,null,405,309,394,221,null,558,null,487,292,null,null,1,{"$f":"IF(D5>1,ROW(1:1),\"-\")","v":1},{"$f":"IF(F5>1,ROW(1:1),\"-\")","v":1},null,null,null,{"$f":"COUNT($I$3,I5,H5)","v":2},{"$f":"COUNT($J$3,J5,I5)","v":3},{"$f":"COUNT($K$3,K5,J5)","v":1},{"$f":"COUNT($L$3,L5,K5)","v":2},{"$f":"COUNT($M$3,M5,L5)","v":3},{"$f":"COUNT($N$3,N5,M5)","v":1},{"$f":"COUNT($O$3,O5,N5)","v":2},{"$f":"COUNT($P$3,P5,O5)","v":3},{"$f":"COUNT($Q$3,Q5,P5)","v":3},{"$f":"COUNT($R$3,R5,Q5)","v":2},{"$f":"COUNT($S$3,S5,R5)","v":2},{"$f":"COUNT($T$3,T5,S5)","v":3},{"$f":"COUNT($U$3,U5,T5)","v":3},{"$f":"COUNT($V$3,V5,U5)","v":3},{"$f":"COUNT($W$3,W5,V5)","v":1},{"$f":"COUNT($X$3,X5,W5)","v":2},{"$f":"COUNT($Y$3,Y5,X5)","v":2},{"$f":"COUNT($Z$3,Z5,Y5)","v":2},{"$f":"COUNT($AA$3,AA5,Z5)","v":3},null,{"$f":"COUNTIF(AI5:BC5,\">1\")","v":16},{"$f":"IF(H5=\"x\",1,2)","v":2},null,null,null,null,null,null,null,null,null,null,null,null,null,null,null,null,null,null,null,null,null,null,null,null,null,null,null,null,null,null,null,null,null,null,null,null,null,null,null,null,null,null,null,null,null,null,null,null,null,null,null,null,null,null,null,null,null,null,null,null,null,null,null,null,null,null,null,null,null,null,null,null,null,null,null,null,null,null,null,null,1,null,{"$f":"IF(BD5>=1,AE5,\"\")","v":1},{"$f":"IF(BE5>1,\"(\"&AD5&\")\",\"(\"&AF5&\")\")","v":"(1)"}]
[{"$f":"EJ6&EK6","v":"2(2)"},"Kevin Rydell","Värends Hsk",1198,null,7,85.571428571428569,null,null,112,null,null,132,null,null,184,null,null,null,null,196,216,null,138,null,220,null,null,null,2,{"$f":"IF(D6=D5,ROW(1:1),IF(D6>1,ROW(2:2),\"-\"))","v":2},2,null,null,null,{"$f":"COUNT($I$3,I6,H6)","v":1},{"$f":"COUNT($J$3,J6,I6)","v":2},{"$f":"COUNT($K$3,K6,J6)","v":1},{"$f":"COUNT($L$3,L6,K6)","v":1},{"$f":"COUNT($M$3,M6,L6)","v":2},{"$f":"COUNT($N$3,N6,M6)","v":1},{"$f":"COUNT($O$3,O6,N6)","v":1},{"$f":"COUNT($P$3,P6,O6)","v":2},{"$f":"COUNT($Q$3,Q6,P6)","v":2},{"$f":"COUNT($R$3,R6,Q6)","v":1},{"$f":"COUNT($S$3,S6,R6)","v":1},{"$f":"COUNT($T$3,T6,S6)","v":1},{"$f":"COUNT($U$3,U6,T6)","v":2},{"$f":"COUNT($V$3,V6,U6)","v":3},{"$f":"COUNT($W$3,W6,V6)","v":1},{"$f":"COUNT($X$3,X6,W6)","v":2},{"$f":"COUNT($Y$3,Y6,X6)","v":2},{"$f":"COUNT($Z$3,Z6,Y6)","v":2},{"$f":"COUNT($AA$3,AA6,Z6)","v":2},null,{"$f":"COUNTIF(AI6:BC6,\">1\")","v":10},{"$f":"IF(H6=\"x\",1,2)","v":2},null,null,null,null,null,null,null,null,null,null,null,null,null,null,null,null,null,null,null,null,null,null,null,null,null,null,null,null,null,null,null,null,null,null,null,null,null,null,null,null,null,null,null,null,null,null,null,null,null,null,null,null,null,null,null,null,null,null,null,null,null,null,null,null,null,null,null,null,null,null,null,null,null,null,null,null,null,null,null,null,2,null,{"$f":"IF(BD6>=1,AE6,\"\")","v":2},{"$f":"IF(BE6>1,\"(\"&AD6&\")\",\"(\"&AF6&\")\")","v":"(2)"}]
["3(3)","Ola Frost","Sibbamåla",885,null,7,63.214285714285715,null,124,166,null,null,null,null,null,null,221,129,null,null,124,41,null,null,80,null,null,null,null,3,{"$f":"IF(AND(D7=D6,D7=D5),ROW(1:1),IF(D7=D6,ROW(2:2),IF(D7>1,ROW(3:3),\"-\")))","v":3},3,null,null,null,2,3,1,1,1,0,1,1,2,3,2,1,2,3,1,1,2,2,1,null,9,2,null,null,null,null,null,null,null,null,null,null,null,null,null,null,null,null,null,null,null,null,null,null,null,null,null,null,null,null,null,null,null,null,null,null,null,null,null,null,null,null,null,null,null,null,null,null,null,null,null,null,null,null,null,null,null,null,null,null,null,null,null,null,null,null,null,null,null,null,null,null,null,null,null,null,null,null,null,null,null,null,3,null,3,"(3)"]
["4(4)","Johannes Engkvist","Alvesta Hsk",764,null,13,29.384615384615383,null,72,51,null,30,null,null,30,71,39,null,73,70,98,43,null,84,null,58,45,null,null,4,{"$f":"IF(AND(D8=D7,D8=D6,D8=D5),ROW(1:1),IF(AND(D8=D7,D8=D6),ROW(2:2),IF(D8=D7,ROW(3:3),IF(D8>1,ROW(4:4),\"-\"))))","v":4},4,null,null,null,2,3,1,2,2,0,2,3,3,2,2,3,3,3,1,2,2,2,3,null,16,2,null,null,null,null,null,null,null,null,null,null,null,null,null,null,null,null,null,null,null,null,null,null,null,null,null,null,null,null,null,null,null,null,null,null,null,null,null,null,null,null,null,null,null,null,null,null,null,null,null,null,null,null,null,null,null,null,null,null,null,null,null,null,null,null,null,null,null,null,null,null,null,null,null,null,null,null,null,null,null,null,4,null,4,"(4)"]
["5(5)","Natalie Sundahl","Carlskrona Hsc",659,null,5,65.900000000000006,null,null,null,null,null,null,null,null,null,null,null,null,null,101,98,null,null,191,133,136,null,null,5,{"$f":"IF(AND(D9=D8,D9=D7,D9=D6,D9=D5),ROW(1:1),IF(AND(D9=D8,D9=D7,D9=D6),ROW(2:2),IF(AND(D9=D8,D9=D7),ROW(3:3),IF(D9=D8,ROW(4:4),IF(D9>1,ROW(5:5),\"-\")))))","v":5},5,null,null,null,1,1,0,1,1,0,1,1,1,1,1,1,2,3,1,1,2,3,3,null,5,2,null,null,null,null,null,null,null,null,null,null,null,null,null,null,null,null,null,null,null,null,null,null,null,null,null,null,null,null,null,null,null,null,null,null,null,null,null,null,null,null,null,null,null,null,null,null,null,null,null,null,null,null,null,null,null,null,null,null,null,null,null,null,null,null,null,null,null,null,null,null,null,null,null,null,null,null,null,null,null,null,5,null,5,"(5)"]
["6(6)","Oskar Stener","Alvesta Hsk",643,null,7,45.928571428571431,null,null,105,null,100,null,null,null,null,null,null,null,82,83,75,null,83,null,115,null,null,null,6,6,6,null,null,null,1,2,1,2,2,0,1,1,1,1,1,2,3,3,1,2,2,2,2,null,10,2,null,null,null,null,null,null,null,null,null,null,null,null,null,null,null,null,null,null,null,null,null,null,null,null,null,null,null,null,null,null,null,null,null,null,null,null,null,null,null,null,null,null,null,null,null,null,null,null,null,null,null,null,null,null,null,null,null,null,null,null,null,null,null,null,null,null,null,null,null,null,null,null,null,null,null,null,null,null,null,null,6,null,6,"(6)"]
["7(7)","William Axelsson","Alvesta Hsk",574,null,4,71.75,null,null,null,null,null,null,null,127,194,172,null,null,null,null,null,null,null,null,81,null,null,null,7,7,7,null,null,null,1,1,0,1,1,0,2,3,3,2,1,1,1,1,0,1,1,2,2,null,6,2,null,null,null,null,null,null,null,null,null,null,null,null,null,null,null,null,null,null,null,null,null,null,null,null,null,null,null,null,null,null,null,null,null,null,null,null,null,null,null,null,null,null,null,null,null,null,null,null,null,null,null,null,null,null,null,null,null,null,null,null,null,null,null,null,null,null,null,null,null,null,null,null,null,null,null,null,null,null,null,null,7,null,7,"(7)"]
["8(8)","Evelina Olsson","Dynapac ",418,null,5,41.8,null,null,67,null,57,null,null,null,null,108,103,null,null,null,null,null,null,83,null,null,null,null,8,8,8,null,null,null,1,2,1,2,2,0,1,1,2,3,2,1,1,1,0,1,2,2,1,null,8,2,null,null,null,null,null,null,null,null,null,null,null,null,null,null,null,null,null,null,null,null,null,null,null,null,null,null,null,null,null,null,null,null,null,null,null,null,null,null,null,null,null,null,null,null,null,null,null,null,null,null,null,null,null,null,null,null,null,null,null,null,null,null,null,null,null,null,null,null,null,null,null,null,null,null,null,null,null,null,null,null,8,null,8,"(8)"]
["9(9)","Julius Gneupel","Sibbamåla",353,null,3,58.833333333333336,null,134,114,null,null,null,null,105,null,null,null,null,null,null,null,null,null,null,null,null,null,null,9,9,9,null,null,null,2,3,1,1,1,0,2,2,1,1,1,1,1,1,0,1,1,1,1,null,4,2,null,null,null,null,null,null,null,null,null,null,null,null,null,null,null,null,null,null,null,null,null,null,null,null,null,null,null,null,null,null,null,null,null,null,null,null,null,null,null,null,null,null,null,null,null,null,null,null,null,null,null,null,null,null,null,null,null,null,null,null,null,null,null,null,null,null,null,null,null,null,null,null,null,null,null,null,null,null,null,null,9,null,9,"(9)"]
["10(10)","Isak Östrand","Värends Hsk",283,null,2,70.75,null,152,null,null,null,131,null,null,null,null,null,null,null,null,null,null,null,null,null,null,null,null,10,10,10,null,null,null,2,2,0,1,2,1,1,1,1,1,1,1,1,1,0,1,1,1,1,null,3,2,null,null,null,null,null,null,null,null,null,null,null,null,null,null,null,null,null,null,null,null,null,null,null,null,null,null,null,null,null,null,null,null,null,null,null,null,null,null,null,null,null,null,null,null,null,null,null,null,null,null,null,null,null,null,null,null,null,null,null,null,null,null,null,null,null,null,null,null,null,null,null,null,null,null,null,null,null,null,null,null,10,null,10,"(10)"]
["11(11)","Elvin Rydell","Värends Hsk",194,null,4,24.25,null,51,null,null,null,null,null,null,69,null,null,null,null,null,43,null,31,null,null,null,null,null,11,11,11,null,null,null,2,2,0,1,1,0,1,2,2,1,1,1,1,2,1,2,2,1,1,null,7,2,null,null,null,null,null,null,null,null,null,null,null,null,null,null,null,null,null,null,null,null,null,null,null,null,null,null,null,null,null,null,null,null,null,null,null,null,null,null,null,null,null,null,null,null,null,null,null,null,null,null,null,null,null,null,null,null,null,null,null,null,null,null,null,null,null,null,null,null,null,null,null,null,null,null,null,null,null,null,null,null,11,null,11,"(11)"]
["12(12)","Hugo Bark","Lessebo Hsk",163,null,1,81.5,null,null,163,null,null,null,null,null,null,null,null,null,null,null,null,null,null,null,null,null,null,null,12,12,"-",null,null,null,1,2,1,1,1,0,1,1,1,1,1,1,1,1,0,1,1,1,1,null,1,2,null,null,null,null,null,null,null,null,null,null,null,null,null,null,null,null,null,null,null,null,null,null,null,null,null,null,null,null,null,null,null,null,null,null,null,null,null,null,null,null,null,null,null,null,null,null,null,null,null,null,null,null,null,null,null,null,null,null,null,null,null,null,null,null,null,null,null,null,null,null,null,null,null,null,null,null,null,null,null,null,12,null,12,"(12)"]
["13(13)","Lukas Gunnarsson","Tingsryd Hsc",144,null,1,72,null,null,null,null,null,null,null,null,null,null,null,null,null,null,null,null,144,null,null,null,null,null,13,13,"-",null,null,null,1,1,0,1,1,0,1,1,1,1,1,1,1,1,0,2,2,1,1,null,2,2,null,null,null,null,null,null,null,null,null,null,null,null,null,null,null,null,null,null,null,null,null,null,null,null,null,null,null,null,null,null,null,null,null,null,null,null,null,null,null,null,null,null,null,null,null,null,null,null,null,null,null,null,null,null,null,null,null,null,null,null,null,null,null,null,null,null,null,null,null,null,null,null,null,null,null,null,null,null,null,null,13,null,13,"(13)"]
["14(14)","Iza Frost","Sibbamåla",84,null,2,21,null,null,54,null,null,null,null,null,null,null,null,null,null,null,null,null,null,30,null,null,null,null,14,14,14,null,null,null,1,2,1,1,1,0,1,1,1,1,1,1,1,1,0,1,2,2,1,null,3,2,null,null,null,null,null,null,null,null,null,null,null,null,null,null,null,null,null,null,null,null,null,null,null,null,null,null,null,null,null,null,null,null,null,null,null,null,null,null,null,null,null,null,null,null,null,null,null,null,null,null,null,null,null,null,null,null,null,null,null,null,null,null,null,null,null,null,null,null,null,null,null,null,null,null,null,null,null,null,null,null,14,null,{"$f":"IF(BD18>=1,AE18,\"\")","v":14},"(14)"]
["15(-)","Minoo Christensson","Värends Hsk",37,null,1,18.5,null,null,null,null,null,37,null,null,null,null,null,null,null,null,null,null,null,null,null,null,null,null,"-",15,"-",null,null,null,1,1,0,1,2,1,1,1,1,1,1,1,1,1,0,1,1,1,1,null,1,2,null,null,null,null,null,null,null,null,null,null,null,null,null,null,null,null,null,null,null,null,null,null,null,null,null,null,null,null,null,null,null,null,null,null,null,null,null,null,null,null,null,null,null,null,null,null,null,null,null,null,null,null,null,null,null,null,null,null,null,null,null,null,null,null,null,null,null,null,null,null,null,null,null,null,null,null,null,null,null,null,15,null,15,"(-)"]
["16(16)","Mak Sisic","Värends Hsk",21,null,1,10.5,null,null,null,null,null,null,null,null,21,null,null,null,null,null,null,null,null,null,null,null,null,null,16,16,"-",null,null,null,1,1,0,1,1,0,1,2,2,1,1,1,1,1,0,1,1,1,1,null,2,2,null,null,null,null,null,null,null,null,null,null,null,null,null,null,null,null,null,null,null,null,null,null,null,null,null,null,null,null,null,null,null,null,null,null,null,null,null,null,null,null,null,null,null,null,null,null,null,null,null,null,null,null,null,null,null,null,null,null,null,null,null,null,null,null,null,null,null,null,null,null,null,null,null,null,null,null,null,null,null,null,16,null,{"$f":"IF(BD20>=1,AE20,\"\")","v":16},"(16)"]
["(17)",null,null,0,null,0,{"$error":"#DIV/0!"},null,null,null,null,null,null,null,null,null,null,null,null,null,null,null,null,null,null,null,null,null,null,17,"-","-",null,null,null,1,1,0,1,1,0,1,1,1,1,1,1,1,1,0,1,1,1,1,null,0,2,null,null,null,null,null,null,null,null,null,null,null,null,null,null,null,null,null,null,null,null,null,null,null,null,null,null,null,null,null,null,null,null,null,null,null,null,null,null,null,null,null,null,null,null,null,null,null,null,null,null,null,null,null,null,null,null,null,null,null,null,null,null,null,null,null,null,null,null,null,null,null,null,null,null,null,null,null,null,null,null,17,null,"","(17)"]
[{"$f":"EJ22&EK22","v":"(-)"},null,null,0,null,0,{"$error":"#DIV/0!"},null,null,null,null,null,null,null,null,null,null,null,null,null,null,null,null,null,null,null,null,null,null,"-",17,"-",null,null,null,1,1,0,1,1,0,1,1,1,1,1,1,1,1,0,1,1,1,1,null,0,2,null,null,null,null,null,null,null,null,null,null,null,null,null,null,null,null,null,null,null,null,null,null,null,null,null,null,null,null,null,null,null,null,null,null,null,null,null,null,null,null,null,null,null,null,null,null,null,null,null,null,null,null,null,null,null,null,null,null,null,null,null,null,null,null,null,null,null,null,null,null,null,null,null,null,null,null,null,null,null,null,18,null,"","(-)"]
[{"$f":"EJ23&EK23","v":"(18)"},null,null,0,null,0,{"$error":"#DIV/0!"},null,null,null,null,null,null,null,null,null,null,null,null,null,null,null,null,null,null,null,null,null,null,18,{"$f":"IF(AND(D23=D22,D23=D21,D23=D20,D23=D19),ROW(15:15),IF(AND(D23=D22,D23=D21,D23=D20),ROW(16:16),IF(AND(D23=D22,D23=D21),ROW(17:17),IF(D23=D22,ROW(18:18),IF(D23>1,ROW(19:19),\"-\")))))","v":17},{"$f":"IF(F23>1,ROW(19:19),\"-\")","v":"-"},null,null,null,{"$f":"COUNT($I$3,I23,H23)","v":1},{"$f":"COUNT($J$3,J23,I23)","v":1},{"$f":"COUNT($K$3,K23,J23)","v":0},{"$f":"COUNT($L$3,L23,K23)","v":1},{"$f":"COUNT($M$3,M23,L23)","v":1},{"$f":"COUNT($N$3,N23,M23)","v":0},{"$f":"COUNT($O$3,O23,N23)","v":1},{"$f":"COUNT($P$3,P23,O23)","v":1},{"$f":"COUNT($Q$3,Q23,P23)","v":1},{"$f":"COUNT($R$3,R23,Q23)","v":1},{"$f":"COUNT($S$3,S23,R23)","v":1},{"$f":"COUNT($T$3,T23,S23)","v":1},{"$f":"COUNT($U$3,U23,T23)","v":1},{"$f":"COUNT($V$3,V23,U23)","v":1},{"$f":"COUNT($W$3,W23,V23)","v":0},{"$f":"COUNT($X$3,X23,W23)","v":1},{"$f":"COUNT($Y$3,Y23,X23)","v":1},{"$f":"COUNT($Z$3,Z23,Y23)","v":1},{"$f":"COUNT($AA$3,AA23,Z23)","v":1},null,{"$f":"COUNTIF(AI23:BC23,\">1\")","v":0},{"$f":"IF(H23=\"x\",1,2)","v":2},null,null,null,null,null,null,null,null,null,null,null,null,null,null,null,null,null,null,null,null,null,null,null,null,null,null,null,null,null,null,null,null,null,null,null,null,null,null,null,null,null,null,null,null,null,null,null,null,null,null,null,null,null,null,null,null,null,null,null,null,null,null,null,null,null,null,null,null,null,null,null,null,null,null,null,null,null,null,null,null,19,null,"",{"$f":"IF(BE23>1,\"(\"&AD23&\")\",\"(\"&AF23&\")\")","v":"(18)"}]
["(18)",null,null,0,null,0,{"$error":"#DIV/0!"},null,null,null,null,null,null,null,null,null,null,null,null,null,null,null,null,null,null,null,null,null,null,18,17,"-",null,null,null,1,1,0,1,1,0,1,1,1,1,1,1,1,1,0,1,1,1,1,null,0,2,null,null,null,null,null,null,null,null,null,null,null,null,null,null,null,null,null,null,null,null,null,null,null,null,null,null,null,null,null,null,null,null,null,null,null,null,null,null,null,null,null,null,null,null,null,null,null,null,null,null,null,null,null,null,null,null,null,null,null,null,null,null,null,null,null,null,null,null,null,null,null,null,null,null,null,null,null,null,null,null,20,null,"","(18)"]
[{"$f":"EJ25&EK25","v":"(18)"},null,null,0,null,0,{"$error":"#DIV/0!"},null,null,null,null,null,null,null,null,null,null,null,null,null,null,null,null,null,null,null,null,null,null,18,{"$f":"IF(AND(D25=D24,D25=D23,D25=D22,D25=D21),ROW(17:17),IF(AND(D25=D24,D25=D23,D25=D22),ROW(18:18),IF(AND(D25=D24,D25=D23),ROW(19:19),IF(D25=D24,ROW(20:20),IF(D25>1,ROW(21:21),\"-\")))))","v":17},{"$f":"IF(F25>1,ROW(21:21),\"-\")","v":"-"},null,null,null,{"$f":"COUNT($I$3,I25,H25)","v":1},{"$f":"COUNT($J$3,J25,I25)","v":1},{"$f":"COUNT($K$3,K25,J25)","v":0},{"$f":"COUNT($L$3,L25,K25)","v":1},{"$f":"COUNT($M$3,M25,L25)","v":1},{"$f":"COUNT($N$3,N25,M25)","v":0},{"$f":"COUNT($O$3,O25,N25)","v":1},{"$f":"COUNT($P$3,P25,O25)","v":1},{"$f":"COUNT($Q$3,Q25,P25)","v":1},{"$f":"COUNT($R$3,R25,Q25)","v":1},{"$f":"COUNT($S$3,S25,R25)","v":1},{"$f":"COUNT($T$3,T25,S25)","v":1},{"$f":"COUNT($U$3,U25,T25)","v":1},{"$f":"COUNT($V$3,V25,U25)","v":1},{"$f":"COUNT($W$3,W25,V25)","v":0},{"$f":"COUNT($X$3,X25,W25)","v":1},{"$f":"COUNT($Y$3,Y25,X25)","v":1},{"$f":"COUNT($Z$3,Z25,Y25)","v":1},{"$f":"COUNT($AA$3,AA25,Z25)","v":1},null,{"$f":"COUNTIF(AI25:BC25,\">1\")","v":0},{"$f":"IF(H25=\"x\",1,2)","v":2},null,null,null,null,null,null,null,null,null,null,null,null,null,null,null,null,null,null,null,null,null,null,null,null,null,null,null,null,null,null,null,null,null,null,null,null,null,null,null,null,null,null,null,null,null,null,null,null,null,null,null,null,null,null,null,null,null,null,null,null,null,null,null,null,null,null,null,null,null,null,null,null,null,null,null,null,null,null,null,null,21,null,"",{"$f":"IF(BE25>1,\"(\"&AD25&\")\",\"(\"&AF25&\")\")","v":"(18)"}]
[]
[]
[null,null,null,null,null,null,null,null,null,null,null,null,null,null,null,null,null,null,null,null,null,null,null,null,null,null,null,null,null,null,null,null,null,null,null,null,null,null,null,null,null,null,null,null,null,null,null,null,null,null,null,null,null,null,null,null,null,null,null,null,null,null,null,null,null,null,null,null,null,null,null,null,null,null,null,null,null,null,null,null,null,null,null,null,null,null,null,null,null,null,null,null,null,null,null,null,null,null,null,null,null,null,null,null,null,null,null,null,null,null,null,null,null,null,null,null,null,null,null,null,null,null,null,null,null,null,null,null,null,null,null,null,null,null,null,null,null,1,null,{"$f":"IF(BD28>=1,AE28,\"\")","v":""},{"$f":"IF(BD28>1,\"(\"&AD28&\")\",\"(\"&AF28&\")\")","v":"()"}]
[null,null,null,null,null,null,null,null,null,null,null,null,null,null,null,null,null,null,null,null,null,null,null,null,null,null,null,null,null,null,null,null,null,null,null,null,null,null,null,null,null,null,null,null,null,null,null,null,null,null,null,null,null,null,null,null,null,null,null,null,null,null,null,null,null,null,null,null,null,null,null,null,null,null,null,null,null,null,null,null,null,null,null,null,null,null,null,null,null,null,null,null,null,null,null,null,null,null,null,null,null,null,null,null,null,null,null,null,null,null,null,null,null,null,null,null,null,null,null,null,null,null,null,null,null,null,null,null,null,null,null,null,null,null,null,null,null,3,null,"","()"]
[null,null,null,null,null,null,null,null,null,null,null,null,null,null,null,null,null,null,null,null,null,null,null,null,null,null,null,null,null,null,null,null,null,null,null,null,null,null,null,null,null,null,null,null,null,null,null,null,null,null,null,null,null,null,null,null,null,null,null,null,null,null,null,null,null,null,null,null,null,null,null,null,null,null,null,null,null,null,null,null,null,null,null,null,null,null,null,null,null,null,null,null,null,null,null,null,null,null,null,null,null,null,null,null,null,null,null,null,null,null,null,null,null,null,null,null,null,null,null,null,null,null,null,null,null,null,null,null,null,null,null,null,null,null,null,null,null,4,null,"","()"]
[null,null,null,null,null,null,null,null,null,null,null,null,null,null,null,null,null,null,null,null,null,null,null,null,null,null,null,null,null,null,null,null,null,null,null,null,null,null,null,null,null,null,null,null,null,null,null,null,null,null,null,null,null,null,null,null,null,null,null,null,null,null,null,null,null,null,null,null,null,null,null,null,null,null,null,null,null,null,null,null,null,null,null,null,null,null,null,null,null,null,null,null,null,null,null,null,null,null,null,null,null,null,null,null,null,null,null,null,null,null,null,null,null,null,null,null,null,null,null,null,null,null,null,null,null,null,null,null,null,null,null,null,null,null,null,null,null,5,null,"","()"]
[null,null,null,null,null,null,null,null,null,null,null,null,null,null,null,null,null,null,null,null,null,null,null,null,null,null,null,null,null,null,null,null,null,null,null,null,null,null,null,null,null,null,null,null,null,null,null,null,null,null,null,null,null,null,null,null,null,null,null,null,null,null,null,null,null,null,null,null,null,null,null,null,null,null,null,null,null,null,null,null,null,null,null,null,null,null,null,null,null,null,null,null,null,null,null,null,null,null,null,null,null,null,null,null,null,null,null,null,null,null,null,null,null,null,null,null,null,null,null,null,null,null,null,null,null,null,null,null,null,null,null,null,null,null,null,null,null,6,null,"","()"]
[null,null,null,null,null,null,null,null,null,null,null,null,null,null,null,null,null,null,null,null,null,null,null,null,null,null,null,null,null,null,null,null,null,null,null,null,null,null,null,null,null,null,null,null,null,null,null,null,null,null,null,null,null,null,null,null,null,null,null,null,null,null,null,null,null,null,null,null,null,null,null,null,null,null,null,null,null,null,null,null,null,null,null,null,null,null,null,null,null,null,null,null,null,null,null,null,null,null,null,null,null,null,null,null,null,null,null,null,null,null,null,null,null,null,null,null,null,null,null,null,null,null,null,null,null,null,null,null,null,null,null,null,null,null,null,null,null,7,null,"","()"]
[null,null,null,null,null,null,null,null,null,null,null,null,null,null,null,null,null,null,null,null,null,null,null,null,null,null,null,null,null,null,null,null,null,null,null,null,null,null,null,null,null,null,null,null,null,null,null,null,null,null,null,null,null,null,null,null,null,null,null,null,null,null,null,null,null,null,null,null,null,null,null,null,null,null,null,null,null,null,null,null,null,null,null,null,null,null,null,null,null,null,null,null,null,null,null,null,null,null,null,null,null,null,null,null,null,null,null,null,null,null,null,null,null,null,null,null,null,null,null,null,null,null,null,null,null,null,null,null,null,null,null,null,null,null,null,null,null,8,null,"","()"]
[null,null,null,null,null,null,null,null,null,null,null,null,null,null,null,null,null,null,null,null,null,null,null,null,null,null,null,null,null,null,null,null,null,null,null,null,null,null,null,null,null,null,null,null,null,null,null,null,null,null,null,null,null,null,null,null,null,null,null,null,null,null,null,null,null,null,null,null,null,null,null,null,null,null,null,null,null,null,null,null,null,null,null,null,null,null,null,null,null,null,null,null,null,null,null,null,null,null,null,null,null,null,null,null,null,null,null,null,null,null,null,null,null,null,null,null,null,null,null,null,null,null,null,null,null,null,null,null,null,null,null,null,null,null,null,null,null,9,null,"","()"]
[null,null,null,null,null,null,null,null,null,null,null,null,null,null,null,null,null,null,null,null,null,null,null,null,null,null,null,null,null,null,null,null,null,null,null,null,null,null,null,null,null,null,null,null,null,null,null,null,null,null,null,null,null,null,null,null,null,null,null,null,null,null,null,null,null,null,null,null,null,null,null,null,null,null,null,null,null,null,null,null,null,null,null,null,null,null,null,null,null,null,null,null,null,null,null,null,null,null,null,null,null,null,null,null,null,null,null,null,null,null,null,null,null,null,null,null,null,null,null,null,null,null,null,null,null,null,null,null,null,null,null,null,null,null,null,null,null,10,null,"","()"]
[null,null,null,null,null,null,null,null,null,null,null,null,null,null,null,null,null,null,null,null,null,null,null,null,null,null,null,null,null,null,null,null,null,null,null,null,null,null,null,null,null,null,null,null,null,null,null,null,null,null,null,null,null,null,null,null,null,null,null,null,null,null,null,null,null,null,null,null,null,null,null,null,null,null,null,null,null,null,null,null,null,null,null,null,null,null,null,null,null,null,null,null,null,null,null,null,null,null,null,null,null,null,null,null,null,null,null,null,null,null,null,null,null,null,null,null,null,null,null,null,null,null,null,null,null,null,null,null,null,null,null,null,null,null,null,null,null,11,null,"","()"]
[null,null,null,null,null,null,null,null,null,null,null,null,null,null,null,null,null,null,null,null,null,null,null,null,null,null,null,null,null,null,null,null,null,null,null,null,null,null,null,null,null,null,null,null,null,null,null,null,null,null,null,null,null,null,null,null,null,null,null,null,null,null,null,null,null,null,null,null,null,null,null,null,null,null,null,null,null,null,null,null,null,null,null,null,null,null,null,null,null,null,null,null,null,null,null,null,null,null,null,null,null,null,null,null,null,null,null,null,null,null,null,null,null,null,null,null,null,null,null,null,null,null,null,null,null,null,null,null,null,null,null,null,null,null,null,null,null,12,null,"","()"]
[null,null,null,null,null,null,null,null,null,null,null,null,null,null,null,null,null,null,null,null,null,null,null,null,null,null,null,null,null,null,null,null,null,null,null,null,null,null,null,null,null,null,null,null,null,null,null,null,null,null,null,null,null,null,null,null,null,null,null,null,null,null,null,null,null,null,null,null,null,null,null,null,null,null,null,null,null,null,null,null,null,null,null,null,null,null,null,null,null,null,null,null,null,null,null,null,null,null,null,null,null,null,null,null,null,null,null,null,null,null,null,null,null,null,null,null,null,null,null,null,null,null,null,null,null,null,null,null,null,null,null,null,null,null,null,null,null,13,null,"","()"]
[null,null,null,null,null,null,null,null,null,null,null,null,null,null,null,null,null,null,null,null,null,null,null,null,null,null,null,null,null,null,null,null,null,null,null,null,null,null,null,null,null,null,null,null,null,null,null,null,null,null,null,null,null,null,null,null,null,null,null,null,null,null,null,null,null,null,null,null,null,null,null,null,null,null,null,null,null,null,null,null,null,null,null,null,null,null,null,null,null,null,null,null,null,null,null,null,null,null,null,null,null,null,null,null,null,null,null,null,null,null,null,null,null,null,null,null,null,null,null,null,null,null,null,null,null,null,null,null,null,null,null,null,null,null,null,null,null,14,null,{"$f":"IF(BD40>=1,AE40,14)","v":14},"()"]
[null,null,null,null,null,null,null,null,null,null,null,null,null,null,null,null,null,null,null,null,null,null,null,null,null,null,null,null,null,null,null,null,null,null,null,null,null,null,null,null,null,null,null,null,null,null,null,null,null,null,null,null,null,null,null,null,null,null,null,null,null,null,null,null,null,null,null,null,null,null,null,null,null,null,null,null,null,null,null,null,null,null,null,null,null,null,null,null,null,null,null,null,null,null,null,null,null,null,null,null,null,null,null,null,null,null,null,null,null,null,null,null,null,null,null,null,null,null,null,null,null,null,null,null,null,null,null,null,null,null,null,null,null,null,null,null,null,15,null,{"$f":"IF(BD41>=1,AE41,\"\")","v":""},"()"]
[null,null,null,null,null,null,null,null,null,null,null,null,null,null,null,null,null,null,null,null,null,null,null,null,null,null,null,null,null,null,null,null,null,null,null,null,null,null,null,null,null,null,null,null,null,null,null,null,null,null,null,null,null,null,null,null,null,null,null,null,null,null,null,null,null,null,null,null,null,null,null,null,null,null,null,null,null,null,null,null,null,null,null,null,null,null,null,null,null,null,null,null,null,null,null,null,null,null,null,null,null,null,null,null,null,null,null,null,null,null,null,null,null,null,null,null,null,null,null,null,null,null,null,null,null,null,null,null,null,null,null,null,null,null,null,null,null,16,null,{"$f":"IF(BD42>=1,AE42,\"\")","v":""},"()"]
[null,null,null,null,null,null,null,null,null,null,null,null,null,null,null,null,null,null,null,null,null,null,null,null,null,null,null,null,null,null,null,null,null,null,null,null,null,null,null,null,null,null,null,null,null,null,null,null,null,null,null,null,null,null,null,null,null,null,null,null,null,null,null,null,null,null,null,null,null,null,null,null,null,null,null,null,null,null,null,null,null,null,null,null,null,null,null,null,null,null,null,null,null,null,null,null,null,null,null,null,null,null,null,null,null,null,null,null,null,null,null,null,null,null,null,null,null,null,null,null,null,null,null,null,null,null,null,null,null,null,null,null,null,null,null,null,null,2,null,{"$f":"IF(BD43>=1,AE43,\"\")","v":""},"()"]
[null,null,null,null,null,null,null,null,null,null,null,null,null,null,null,null,null,null,null,null,null,null,null,null,null,null,null,null,null,null,null,null,null,null,null,null,null,null,null,null,null,null,null,null,null,null,null,null,null,null,null,null,null,null,null,null,null,null,null,null,null,null,null,null,null,null,null,null,null,null,null,null,null,null,null,null,null,null,null,null,null,null,null,null,null,null,null,null,null,null,null,null,null,null,null,null,null,null,null,null,null,null,null,null,null,null,null,null,null,null,null,null,null,null,null,null,null,null,null,null,null,null,null,null,null,null,null,null,null,null,null,null,null,null,null,null,null,17,null,{"$f":"IF(BD44>=1,AE44,\"\")","v":""},{"$f":"IF(BD44>2,\"(\"&AD44&\")\",\"(\"&AF44&\")\")","v":"()"}]
[null,null,null,null,null,null,null,null,null,null,null,null,null,null,null,null,null,null,null,null,null,null,null,null,null,null,null,null,null,null,null,null,null,null,null,null,null,null,null,null,null,null,null,null,null,null,null,null,null,null,null,null,null,null,null,null,null,null,null,null,null,null,null,null,null,null,null,null,null,null,null,null,null,null,null,null,null,null,null,null,null,null,null,null,null,null,null,null,null,null,null,null,null,null,null,null,null,null,null,null,null,null,null,null,null,null,null,null,null,null,null,null,null,null,null,null,null,null,null,null,null,null,null,null,null,null,null,null,null,null,null,null,null,null,null,null,null,18,null,18,{"$f":"IF(BD45>1,\"(\"&AD45&\")\",\"(\"&AF45&\")\")","v":"()"}]
[null,null,null,null,null,null,null,null,null,null,null,null,null,null,null,null,null,null,null,null,null,null,null,null,null,null,null,null,null,null,null,null,null,null,null,null,null,null,null,null,null,null,null,null,null,null,null,null,null,null,null,null,null,null,null,null,null,null,null,null,null,null,null,null,null,null,null,null,null,null,null,null,null,null,null,null,null,null,null,null,null,null,null,null,null,null,null,null,null,null,null,null,null,null,null,null,null,null,null,null,null,null,null,null,null,null,null,null,null,null,null,null,null,null,null,null,null,null,null,null,null,null,null,null,null,null,null,null,null,null,null,null,null,null,null,null,null,19,null,19,{"$f":"IF(BD46>1,\"(\"&AD46&\")\",\"(\"&AF46&\")\")","v":"()"}]
[null,null,null,null,null,null,null,null,null,null,null,null,null,null,null,null,null,null,null,null,null,null,null,null,null,null,null,null,null,null,null,null,null,null,null,null,null,null,null,null,null,null,null,null,null,null,null,null,null,null,null,null,null,null,null,null,null,null,null,null,null,null,null,null,null,null,null,null,null,null,null,null,null,null,null,null,null,null,null,null,null,null,null,null,null,null,null,null,null,null,null,null,null,null,null,null,null,null,null,null,null,null,null,null,null,null,null,null,null,null,null,null,null,null,null,null,null,null,null,null,null,null,null,null,null,null,null,null,null,null,null,null,null,null,null,null,null,20,null,20,{"$f":"IF(BD47>1,\"(\"&AD47&\")\",\"(\"&AF47&\")\")","v":"()"}]

{"sheet":"Seriespelsranking","index":3,"n_rows":123,"n_cols":135,"rows_kept":123,"cut":false,"hidden":false,"merged":[]}
[null,"Svenska Hästskokastarförbundets Seriespelsranking"]
[null,"2015_2016"]
[null,"SLUTSTÄLLNING"]
["Plac.","Kastare ","Klubb","Ranking-snitt ",null,"Antal serie-resultat","Total-poäng serie-resultat",null,"Antal vunna dubblar","Antal förlorade dubblar","Antal vunna singlar","Antal förlorade singlar","Antal vunna matcher i %","Inskrivning resultat",null,null,null,null,null,null,null,null,null,null,null,null,null,null,null,null,null,null,null,null,null,null,null,null,null,null,null,null,null,null,null,null,null,null,null,null,null,null,null,null,null,null,null,null,null,null,null,null,null,null,null,null,null,null,"Uträkning   för","statistik vunna resp.","förlorade ","dubblar och singlar."]
[{"$f":"DU5&EE5","v":"1(1)"},"Tobias Gneupel","Sibbamåla",{"$f":"IF(F5>0.5,(G5/F5),0)","v":207.07499999999999},null,{"$f":"COUNT(N5:BO5)","v":40},{"$f":"SUM(N5:BO5)","v":8283},null,{"$f":"COUNTIF(BQ5:DR5,2)","v":0},{"$f":"COUNTIF(BQ5:DR5,-2)","v":0},{"$f":"COUNTIF(BQ5:DR5,1)","v":0},{"$f":"COUNTIF(BQ5:DR5,-1)","v":0},{"$f":"IF(F5>0,(I5+K5)/(F5),0)","v":0},195,273,222,186,174,165,221,268,228,251,219,212,218,220,205,162,242,237,254,218,180,203,206,171,148,236,135,163,171,212,201,188,245,158,221,273,240,228,166,168,null,null,null,null,null,null,null,null,null,null,null,null,null,null,null,null,null,null,null,null,null,null,null,null,null,null,null,null,null,null,null,null,null,null,null,null,null,null,null,null,null,null,null,null,null,null,null,null,null,null,null,null,null,null,null,null,null,null,null,null,null,null,null,null,null,null,null,null,null,null,1,{"$f":"IF(AND(D5=D4,D5=D3,D5=D2,D5=D1),ROW(1:1),IF(AND(D5=D4,D5=D3,D5=D2),ROW(1:1),IF(AND(D5=D4,D5=D3),ROW(1:1),IF(D5=D4,ROW(1:1),IF(D5>1,ROW(1:1),\"-\")))))","v":1},{"$f":"IF(DX5=1,ROW(1:1),\"-\")","v":1},null,1,null,null,null,11,null,{"$f":"IF(DX5=1,DU5,IF(DX5=\"\",DU5,\"\"))","v":1},{"$f":"IF(DX5=1,\"(\"&DT5&\")\",\"(\"&DV5&\")\")","v":"(1)"}]
["2(2)","Sandor Bodi","Växjö",203.52777777777777,null,36,7327,null,0,0,0,0,0,231,176,216,175,225,198,166,133,182,211,292,222,183,139,143,122,130,183,134,151,192,221,242,160,322,309,273,238,245,271,202,282,179,181,221,177,null,null,null,null,null,null,null,null,null,null,null,null,null,null,null,null,null,null,null,null,null,null,null,null,null,null,null,null,null,null,null,null,null,null,null,null,null,null,null,null,null,null,null,null,null,null,null,null,null,null,null,null,null,null,null,null,null,null,null,null,null,null,null,null,null,null,null,null,null,null,null,null,null,null,2,{"$f":"IF(AND(D6=D5,D6=D4,D6=D3,D6=D2),ROW(1:1),IF(AND(D6=D5,D6=D4,D6=D3),ROW(1:1),IF(AND(D6=D5,D6=D4),ROW(1:1),IF(D6=D5,ROW(1:1),IF(D6>1,ROW(2:2),\"-\")))))","v":2},2,null,1,null,null,null,16,null,2,"(2)"]
["3(3)","Kent Sundahl","Carlskrona",190.05405405405406,null,37,7032,null,0,0,0,0,0,147,234,161,176,194,137,155,148,165,210,96,205,178,247,241,225,213,132,121,167,158,143,182,182,184,245,165,205,248,211,155,285,154,243,193,259,268,null,null,null,null,null,null,null,null,null,null,null,null,null,null,null,null,null,null,null,null,null,null,null,null,null,null,null,null,null,null,null,null,null,null,null,null,null,null,null,null,null,null,null,null,null,null,null,null,null,null,null,null,null,null,null,null,null,null,null,null,null,null,null,null,null,null,null,null,null,null,null,null,null,3,{"$f":"IF(AND(D7=D6,D7=D5,D7=D4,D7=D3),ROW(1:1),IF(AND(D7=D6,D7=D5,D7=D4),ROW(1:1),IF(AND(D7=D6,D7=D5),ROW(1:1),IF(D7=D6,ROW(2:2),IF(D7>1,ROW(3:3),\"-\")))))","v":3},3,null,1,null,null,null,20,null,3,"(3)"]
["4(5)","Leo Andersson","Carlskrona",182.40540540540542,null,37,6749,null,0,0,0,0,0,193,169,255,147,130,161,175,182,182,174,136,218,253,160,218,231,136,190,184,133,143,163,177,142,181,182,192,221,198,144,176,187,231,176,144,237,228,null,null,null,null,null,null,null,null,null,null,null,null,null,null,null,null,null,null,null,null,null,null,null,null,null,null,null,null,null,null,null,null,null,null,null,null,null,null,null,null,null,null,null,null,null,null,null,null,null,null,null,null,null,null,null,null,null,null,null,null,null,null,null,null,null,null,null,null,null,null,null,null,null,5,{"$f":"IF(AND(D8=D7,D8=D6,D8=D5),ROW(1:1),IF(AND(D8=D7,D8=D6),ROW(2:2),IF(D8=D7,ROW(3:3),IF(D8>1,ROW(4:4),\"-\"))))","v":4},4,null,1,null,null,null,4,null,4,"(5)"]
["5(4)","Armin Sisic","Värends Hsk",180.66666666666666,null,6,1084,null,0,0,0,0,0,209,162,212,220,132,149,null,null,null,null,null,null,null,null,null,null,null,null,null,null,null,null,null,null,null,null,null,null,null,null,null,null,null,null,null,null,null,null,null,null,null,null,null,null,null,null,null,null,null,null,null,null,null,null,null,null,null,null,null,null,null,null,null,null,null,null,null,null,null,null,null,null,null,null,null,null,null,null,null,null,null,null,null,null,null,null,null,null,null,null,null,null,null,null,null,null,null,null,null,null,null,null,null,null,null,null,null,null,null,null,4,{"$f":"IF(D9>1,ROW(5:5),\"-\")","v":5},5,null,1,null,null,null,1,null,5,"(4)"]
["6(6)","Olle Ottosson","Dynapac Södra",177.07317073170731,null,41,7260,null,0,0,0,0,0,147,152,172,244,248,172,266,135,182,144,181,138,224,221,172,230,203,198,116,94,107,181,122,207,237,183,131,128,185,193,203,137,151,193,195,166,272,240,169,99,122,null,null,null,null,null,null,null,null,null,null,null,null,null,null,null,null,null,null,null,null,null,null,null,null,null,null,null,null,null,null,null,null,null,null,null,null,null,null,null,null,null,null,null,null,null,null,null,null,null,null,null,null,null,null,null,null,null,null,null,null,null,null,null,null,null,null,null,null,null,6,{"$f":"IF(D10=D9,ROW(5:5),IF(D10>1,ROW(6:6),\"-\"))","v":6},6,null,1,null,null,null,2,null,6,"(6)"]
["7(8)","Matz Karlsson","Korpen Åseda",167.68421052631578,null,38,6372,null,0,0,0,0,0,176,123,123,176,188,218,193,173,162,197,155,142,159,145,140,97,81,82,109,179,142,176,185,78,164,128,197,217,204,268,179,208,257,181,174,178,191,227,null,null,null,null,null,null,null,null,null,null,null,null,null,null,null,null,null,null,null,null,null,null,null,null,null,null,null,null,null,null,null,null,null,null,null,null,null,null,null,null,null,null,null,null,null,null,null,null,null,null,null,null,null,null,null,null,null,null,null,null,null,null,null,null,null,null,null,null,null,null,null,null,8,{"$f":"IF(AND(D11=D10,D11=D9,D11=D8,D11=D7),ROW(3:3),IF(AND(D11=D10,D11=D9,D11=D8),ROW(4:4),IF(AND(D11=D10,D11=D9),ROW(5:5),IF(D11=D10,ROW(6:6),IF(D11>1,ROW(7:7),\"-\")))))","v":7},7,null,1,null,null,null,5,null,7,"(8)"]
["8(7)","Ingvar Eriksson","Carlskrona",165.5,null,36,5958,null,0,0,0,0,0,148,179,193,133,176,151,211,176,102,275,197,226,234,208,96,133,109,98,64,127,176,125,167,189,192,190,149,174,155,200,148,174,136,184,199,164,null,null,null,null,null,null,null,null,null,null,null,null,null,null,null,null,null,null,null,null,null,null,null,null,null,null,null,null,null,null,null,null,null,null,null,null,null,null,null,null,null,null,null,null,null,null,null,null,null,null,null,null,null,null,null,null,null,null,null,null,null,null,null,null,null,null,null,null,null,null,null,null,null,null,7,8,8,null,1,null,null,null,6,null,8,"(7)"]
["9(9)","Johan Johansson","Tingsryd",163.4848484848485,null,33,5395,null,0,0,0,0,0,136,228,192,103,164,168,153,154,174,70,128,138,143,159,108,90,170,131,181,130,142,141,216,139,160,154,205,226,227,156,227,223,259,null,null,null,null,null,null,null,null,null,null,null,null,null,null,null,null,null,null,null,null,null,null,null,null,null,null,null,null,null,null,null,null,null,null,null,null,null,null,null,null,null,null,null,null,null,null,null,null,null,null,null,null,null,null,null,null,null,null,null,null,null,null,null,null,null,null,null,null,null,null,null,null,null,null,null,null,null,9,9,9,null,1,null,null,null,8,null,9,"(9)"]
["10(13)","Fredrik Lundin","Lanternan",151,null,30,4530,null,0,0,0,0,0,135,183,177,72,174,182,126,158,124,182,100,119,140,149,135,111,116,133,209,146,188,160,134,134,214,171,226,115,135,182,null,null,null,null,null,null,null,null,null,null,null,null,null,null,null,null,null,null,null,null,null,null,null,null,null,null,null,null,null,null,null,null,null,null,null,null,null,null,null,null,null,null,null,null,null,null,null,null,null,null,null,null,null,null,null,null,null,null,null,null,null,null,null,null,null,null,null,null,null,null,null,null,null,null,null,null,null,null,null,null,13,10,10,null,1,null,null,null,12,null,10,"(13)"]
["11(10)","Roy Dahlén","Dynapac Södra",150.625,null,32,4820,null,0,0,0,0,0,140,182,211,145,98,176,126,118,214,179,193,110,93,164,81,86,76,114,214,180,228,151,182,95,175,117,174,156,144,165,172,161,null,null,null,null,null,null,null,null,null,null,null,null,null,null,null,null,null,null,null,null,null,null,null,null,null,null,null,null,null,null,null,null,null,null,null,null,null,null,null,null,null,null,null,null,null,null,null,null,null,null,null,null,null,null,null,null,null,null,null,null,null,null,null,null,null,null,null,null,null,null,null,null,null,null,null,null,null,null,10,11,11,null,1,null,null,null,15,null,11,"(10)"]
["12(15)","Tomas Lindahl","Korpen Åseda",147.82499999999999,null,40,5913,null,0,0,0,0,0,114,104,183,104,158,188,189,168,162,161,192,74,42,123,110,133,168,140,103,106,115,97,138,132,180,198,76,169,224,145,117,226,201,152,132,191,127,157,166,248,null,null,null,null,null,null,null,null,null,null,null,null,null,null,null,null,null,null,null,null,null,null,null,null,null,null,null,null,null,null,null,null,null,null,null,null,null,null,null,null,null,null,null,null,null,null,null,null,null,null,null,null,null,null,null,null,null,null,null,null,null,null,null,null,null,null,null,null,null,null,15,12,12,null,1,null,null,null,21,null,12,"(15)"]
["13(11)","Maj-Britt Jarl","Växjö",147.28205128205127,null,39,5744,null,0,0,0,0,0,197,134,171,181,151,143,127,133,201,164,163,152,144,112,87,97,115,139,88,138,107,147,120,118,134,184,132,180,189,188,197,88,166,198,193,124,151,175,116,null,null,null,null,null,null,null,null,null,null,null,null,null,null,null,null,null,null,null,null,null,null,null,null,null,null,null,null,null,null,null,null,null,null,null,null,null,null,null,null,null,null,null,null,null,null,null,null,null,null,null,null,null,null,null,null,null,null,null,null,null,null,null,null,null,null,null,null,null,null,null,11,13,13,null,1,null,null,null,3,null,13,"(11)"]
["14(12)","Gert Karlsson","Korpen Åseda",145.70588235294119,null,34,4954,null,0,0,0,0,0,158,133,114,201,125,187,134,158,136,219,132,109,91,104,119,172,110,145,103,158,108,147,161,160,148,119,177,178,184,155,164,128,179,138,null,null,null,null,null,null,null,null,null,null,null,null,null,null,null,null,null,null,null,null,null,null,null,null,null,null,null,null,null,null,null,null,null,null,null,null,null,null,null,null,null,null,null,null,null,null,null,null,null,null,null,null,null,null,null,null,null,null,null,null,null,null,null,null,null,null,null,null,null,null,null,null,null,null,null,null,12,14,14,null,1,null,null,null,7,null,14,"(12)"]
["15(14)","Bo Petersson","Korpen Nybro",143.1904761904762,null,21,3007,null,0,0,0,0,0,196,106,135,133,105,144,151,168,133,149,97,196,119,144,134,195,135,141,153,111,162,null,null,null,null,null,null,null,null,null,null,null,null,null,null,null,null,null,null,null,null,null,null,null,null,null,null,null,null,null,null,null,null,null,null,null,null,null,null,null,null,null,null,null,null,null,null,null,null,null,null,null,null,null,null,null,null,null,null,null,null,null,null,null,null,null,null,null,null,null,null,null,null,null,null,null,null,null,null,null,null,null,null,null,null,null,null,null,null,null,14,15,15,null,1,null,null,null,17,null,15,"(14)"]
["16(17)","Magnus Israelsson","Sibbamåla ",142.90322580645162,null,31,4430,null,0,0,0,0,0,91,125,102,144,117,171,141,210,190,147,245,128,164,162,98,125,104,118,111,103,109,185,148,205,100,102,165,134,162,159,165,null,null,null,null,null,null,null,null,null,null,null,null,null,null,null,null,null,null,null,null,null,null,null,null,null,null,null,null,null,null,null,null,null,null,null,null,null,null,null,null,null,null,null,null,null,null,null,null,null,null,null,null,null,null,null,null,null,null,null,null,null,null,null,null,null,null,null,null,null,null,null,null,null,null,null,null,null,null,null,17,16,16,null,1,null,null,null,18,null,16,"(17)"]
["17(16)","Anders Johansson","Dynapac Södra",142.05263157894737,null,38,5398,null,0,0,0,0,0,154,137,121,197,128,109,141,118,141,156,210,134,91,169,155,118,141,128,88,88,147,211,249,127,143,193,147,116,83,182,180,92,80,92,125,170,151,186,null,null,null,null,null,null,null,null,null,null,null,null,null,null,null,null,null,null,null,null,null,null,null,null,null,null,null,null,null,null,null,null,null,null,null,null,null,null,null,null,null,null,null,null,null,null,null,null,null,null,null,null,null,null,null,null,null,null,null,null,null,null,null,null,null,null,null,null,null,null,null,null,16,17,17,null,1,null,null,null,24,null,17,"(16)"]
["18(18)","Lisbeth Nygaard-Karlsson","Tingsryd",140.82051282051282,null,39,5492,null,0,0,0,0,0,195,187,45,109,136,216,133,159,124,124,68,122,136,110,157,183,139,140,105,149,141,217,118,100,130,174,135,107,217,149,60,158,174,151,156,149,129,178,112,null,null,null,null,null,null,null,null,null,null,null,null,null,null,null,null,null,null,null,null,null,null,null,null,null,null,null,null,null,null,null,null,null,null,null,null,null,null,null,null,null,null,null,null,null,null,null,null,null,null,null,null,null,null,null,null,null,null,null,null,null,null,null,null,null,null,null,null,null,null,null,18,18,18,null,1,null,null,null,9,null,18,"(18)"]
["19(19)","Peter Olsson","Dynapac Södra",139.25,null,40,5570,null,0,0,0,0,0,129,88,144,132,161,129,151,100,108,124,136,73,220,162,165,171,164,167,106,127,114,104,104,190,158,82,128,177,155,166,104,158,185,129,131,108,161,145,158,156,null,null,null,null,null,null,null,null,null,null,null,null,null,null,null,null,null,null,null,null,null,null,null,null,null,null,null,null,null,null,null,null,null,null,null,null,null,null,null,null,null,null,null,null,null,null,null,null,null,null,null,null,null,null,null,null,null,null,null,null,null,null,null,null,null,null,null,null,null,null,19,19,19,null,1,null,null,null,10,null,19,"(19)"]
["20(20)","Mattias Gneupel","Sibbamåla",135.30303030303031,null,33,4465,null,0,0,0,0,0,101,144,137,87,102,129,135,118,155,118,127,106,105,116,191,111,139,123,163,147,127,119,125,118,205,158,191,117,170,102,179,152,148,null,null,null,null,null,null,null,null,null,null,null,null,null,null,null,null,null,null,null,null,null,null,null,null,null,null,null,null,null,null,null,null,null,null,null,null,null,null,null,null,null,null,null,null,null,null,null,null,null,null,null,null,null,null,null,null,null,null,null,null,null,null,null,null,null,null,null,null,null,null,null,null,null,null,null,null,null,20,20,20,null,1,null,null,null,22,null,20,"(20)"]
["21(22)","Lukas Bern","Dynapac Södra",129.5,null,4,518,null,0,0,0,0,0,93,172,114,139,null,null,null,null,null,null,null,null,null,null,null,null,null,null,null,null,null,null,null,null,null,null,null,null,null,null,null,null,null,null,null,null,null,null,null,null,null,null,null,null,null,null,null,null,null,null,null,null,null,null,null,null,null,null,null,null,null,null,null,null,null,null,null,null,null,null,null,null,null,null,null,null,null,null,null,null,null,null,null,null,null,null,null,null,null,null,null,null,null,null,null,null,null,null,null,null,null,null,null,null,null,null,null,null,null,null,22,21,21,null,1,null,null,null,14,null,21,"(22)"]
["22(21)","Leif Sundahl","Carlskrona",129.45714285714286,null,35,4531,null,0,0,0,0,0,77,158,179,138,115,85,199,187,107,198,152,162,185,122,70,77,70,149,91,91,132,100,161,151,85,92,194,171,118,127,143,131,104,111,99,null,null,null,null,null,null,null,null,null,null,null,null,null,null,null,null,null,null,null,null,null,null,null,null,null,null,null,null,null,null,null,null,null,null,null,null,null,null,null,null,null,null,null,null,null,null,null,null,null,null,null,null,null,null,null,null,null,null,null,null,null,null,null,null,null,null,null,null,null,null,null,null,null,null,null,21,22,22,null,1,null,null,null,13,null,22,"(21)"]
["23(24)","Carina Gneupel","Sibbamåla",125.91428571428571,null,35,4407,null,0,0,0,0,0,111,140,137,123,105,95,167,149,127,135,92,142,115,95,137,125,119,109,121,124,87,129,67,131,138,143,89,136,186,180,123,144,115,108,163,null,null,null,null,null,null,null,null,null,null,null,null,null,null,null,null,null,null,null,null,null,null,null,null,null,null,null,null,null,null,null,null,null,null,null,null,null,null,null,null,null,null,null,null,null,null,null,null,null,null,null,null,null,null,null,null,null,null,null,null,null,null,null,null,null,null,null,null,null,null,null,null,null,null,null,24,23,23,null,1,null,null,null,19,null,23,"(24)"]
[{"$f":"DU28&EE28","v":"24(23)"},"Hans Lundkvist","Växjö",125.4,null,5,627,null,0,0,0,0,0,106,144,101,99,177,null,null,null,null,null,null,null,null,null,null,null,null,null,null,null,null,null,null,null,null,null,null,null,null,null,null,null,null,null,null,null,null,null,null,null,null,null,null,null,null,null,null,null,null,null,null,null,null,null,null,null,null,null,null,null,null,null,null,null,null,null,null,null,null,null,null,null,null,null,null,null,null,null,null,null,null,null,null,null,null,null,null,null,null,null,null,null,null,null,null,null,null,null,null,null,null,null,null,null,null,null,null,null,null,null,23,{"$f":"IF(AND(D28=D27,D28=D26,D28=D25,D28=D24),ROW(20:20),IF(AND(D28=D27,D28=D26,D28=D25),ROW(21:21),IF(AND(D28=D27,D28=D26),ROW(22:22),IF(D28=D27,ROW(23:23),IF(D28>1,ROW(24:24),\"-\")))))","v":24},{"$f":"IF(DX28=1,ROW(24:24),\"-\")","v":24},null,1,null,null,null,28,null,{"$f":"IF(DX28=1,DU28,IF(DX28=\"\",DU28,\"\"))","v":24},{"$f":"IF(DX28=1,\"(\"&DT28&\")\",\"(\"&DV28&\")\")","v":"(23)"}]
[{"$f":"DU29&EE29","v":"25(28)"},"Christian Balsiger","Värends Hsk",124.36111111111111,null,36,4477,null,0,0,0,0,0,123,74,196,73,116,135,119,135,95,103,116,114,117,99,66,95,102,86,96,106,120,114,84,155,145,130,148,154,169,140,115,135,164,198,174,166,null,null,null,null,null,null,null,null,null,null,null,null,null,null,null,null,null,null,null,null,null,null,null,null,null,null,null,null,null,null,null,null,null,null,null,null,null,null,null,null,null,null,null,null,null,null,null,null,null,null,null,null,null,null,null,null,null,null,null,null,null,null,null,null,null,null,null,null,null,null,null,null,null,null,28,{"$f":"IF(AND(D29=D28,D29=D27,D29=D26,D29=D25),ROW(21:21),IF(AND(D29=D28,D29=D27,D29=D26),ROW(22:22),IF(AND(D29=D28,D29=D27),ROW(23:23),IF(D29=D28,ROW(24:24),IF(D29>1,ROW(25:25),\"-\")))))","v":25},{"$f":"IF(DX29=1,ROW(25:25),\"-\")","v":25},null,1,null,null,null,23,null,{"$f":"IF(DX29=1,DU29,IF(DX29=\"\",DU29,\"\"))","v":25},{"$f":"IF(DX29=1,\"(\"&DT29&\")\",\"(\"&DV29&\")\")","v":"(28)"}]
[{"$f":"DU30&EE30","v":"26(25)"},"Ewa Malmqvist","Jämjö Hsc",121.65789473684211,null,38,4623,null,0,0,0,0,0,89,114,158,161,118,115,107,88,95,102,157,169,161,104,154,90,106,72,105,171,125,130,114,120,130,205,109,89,124,195,131,105,109,92,99,102,112,96,null,null,null,null,null,null,null,null,null,null,null,null,null,null,null,null,null,null,null,null,null,null,null,null,null,null,null,null,null,null,null,null,null,null,null,null,null,null,null,null,null,null,null,null,null,null,null,null,null,null,null,null,null,null,null,null,null,null,null,null,null,null,null,null,null,null,null,null,null,null,null,null,25,{"$f":"IF(AND(D30=D29,D30=D28,D30=D27,D30=D26),ROW(22:22),IF(AND(D30=D29,D30=D28,D30=D27),ROW(23:23),IF(AND(D30=D29,D30=D28),ROW(24:24),IF(D30=D29,ROW(25:25),IF(D30>1,ROW(26:26),\"-\")))))","v":26},{"$f":"IF(DX30=1,ROW(26:26),\"-\")","v":26},null,1,null,null,null,25,null,{"$f":"IF(DX30=1,DU30,IF(DX30=\"\",DU30,\"\"))","v":26},{"$f":"IF(DX30=1,\"(\"&DT30&\")\",\"(\"&DV30&\")\")","v":"(25)"}]
[{"$f":"DU31&EE31","v":"27(26)"},"Lennart Karlsson","Lanternan",120.5,null,10,1205,null,0,0,0,0,0,195,81,80,128,159,72,109,143,122,116,null,null,null,null,null,null,null,null,null,null,null,null,null,null,null,null,null,null,null,null,null,null,null,null,null,null,null,null,null,null,null,null,null,null,null,null,null,null,null,null,null,null,null,null,null,null,null,null,null,null,null,null,null,null,null,null,null,null,null,null,null,null,null,null,null,null,null,null,null,null,null,null,null,null,null,null,null,null,null,null,null,null,null,null,null,null,null,null,null,null,null,null,null,null,null,null,null,null,null,null,26,{"$f":"IF(AND(D31=D30,D31=D29,D31=D28,D31=D27),ROW(23:23),IF(AND(D31=D30,D31=D29,D31=D28),ROW(24:24),IF(AND(D31=D30,D31=D29),ROW(25:25),IF(D31=D30,ROW(26:26),IF(D31>1,ROW(27:27),\"-\")))))","v":27},{"$f":"IF(DX31=1,ROW(27:27),\"-\")","v":27},null,1,null,null,null,26,null,{"$f":"IF(DX31=1,DU31,IF(DX31=\"\",DU31,\"\"))","v":27},{"$f":"IF(DX31=1,\"(\"&DT31&\")\",\"(\"&DV31&\")\")","v":"(26)"}]
[{"$f":"DU32&EE32","v":"28(33)"},"Lasse Brincner","Värends Hsk",118.38235294117646,null,34,4025,null,0,0,0,0,0,145,101,120,169,192,141,119,119,95,151,84,45,91,73,86,153,129,112,113,64,96,91,114,108,99,100,150,136,90,122,169,124,164,160,null,null,null,null,null,null,null,null,null,null,null,null,null,null,null,null,null,null,null,null,null,null,null,null,null,null,null,null,null,null,null,null,null,null,null,null,null,null,null,null,null,null,null,null,null,null,null,null,null,null,null,null,null,null,null,null,null,null,null,null,null,null,null,null,null,null,null,null,null,null,null,null,null,null,null,null,33,{"$f":"IF(AND(D32=D31,D32=D30,D32=D29,D32=D28),ROW(24:24),IF(AND(D32=D31,D32=D30,D32=D29),ROW(25:25),IF(AND(D32=D31,D32=D30),ROW(26:26),IF(D32=D31,ROW(27:27),IF(D32>1,ROW(28:28),\"-\")))))","v":28},{"$f":"IF(DX32=1,ROW(28:28),\"-\")","v":28},null,1,null,null,null,27,null,{"$f":"IF(DX32=1,DU32,IF(DX32=\"\",DU32,\"\"))","v":28},{"$f":"IF(DX32=1,\"(\"&DT32&\")\",\"(\"&DV32&\")\")","v":"(33)"}]
["29(27)","Mikael Bodi","Växjö",118,null,6,708,null,0,0,0,0,0,159,97,57,104,177,114,null,null,null,null,null,null,null,null,null,null,null,null,null,null,null,null,null,null,null,null,null,null,null,null,null,null,null,null,null,null,null,null,null,null,null,null,null,null,null,null,null,null,null,null,null,null,null,null,null,null,null,null,null,null,null,null,null,null,null,null,null,null,null,null,null,null,null,null,null,null,null,null,null,null,null,null,null,null,null,null,null,null,null,null,null,null,null,null,null,null,null,null,null,null,null,null,null,null,null,null,null,null,null,null,27,29,29,null,1,null,null,null,29,null,29,"(27)"]
["30(29)","Gebriela Kostantinos","Korpen Åseda",117.83333333333333,null,24,2828,null,0,0,0,0,0,70,113,97,128,91,165,112,92,92,93,86,108,157,94,163,119,172,133,104,185,171,106,106,71,null,null,null,null,null,null,null,null,null,null,null,null,null,null,null,null,null,null,null,null,null,null,null,null,null,null,null,null,null,null,null,null,null,null,null,null,null,null,null,null,null,null,null,null,null,null,null,null,null,null,null,null,null,null,null,null,null,null,null,null,null,null,null,null,null,null,null,null,null,null,null,null,null,null,null,null,null,null,null,null,null,null,null,null,null,null,29,30,30,null,1,null,null,null,30,null,30,"(29)"]
["31(32)","Dan Hallstan","Växjö",115.51515151515152,null,33,3812,null,0,0,0,0,0,132,73,194,137,98,155,79,73,112,117,84,127,160,118,126,105,89,95,134,100,72,178,133,108,118,100,100,90,109,137,121,110,128,null,null,null,null,null,null,null,null,null,null,null,null,null,null,null,null,null,null,null,null,null,null,null,null,null,null,null,null,null,null,null,null,null,null,null,null,null,null,null,null,null,null,null,null,null,null,null,null,null,null,null,null,null,null,null,null,null,null,null,null,null,null,null,null,null,null,null,null,null,null,null,null,null,null,null,null,null,32,31,31,null,1,null,null,null,31,null,31,"(32)"]
["32(30)","Göran Persson","Dynapac Södra",115.14285714285714,null,42,4836,null,0,0,0,0,0,124,113,87,118,109,165,169,86,150,91,129,105,166,168,142,182,111,143,111,36,80,63,85,113,109,76,119,94,106,102,101,133,118,127,83,151,94,118,106,135,131,87,null,null,null,null,null,null,null,null,null,null,null,null,null,null,null,null,null,null,null,null,null,null,null,null,null,null,null,null,null,null,null,null,null,null,null,null,null,null,null,null,null,null,null,null,null,null,null,null,null,null,null,null,null,null,null,null,null,null,null,null,null,null,null,null,null,null,null,null,30,32,32,null,1,null,null,null,32,null,32,"(30)"]
[{"$f":"DU37&EE37","v":"33(35)"},"Bo Andersson","Tingzås",{"$f":"IF(F37>0.5,(G37/F37),0)","v":112.42307692307692},null,{"$f":"COUNT(N37:BO37)","v":26},{"$f":"SUM(N37:BO37)","v":2923},null,{"$f":"COUNTIF(BQ37:DR37,2)","v":0},{"$f":"COUNTIF(BQ37:DR37,-2)","v":0},{"$f":"COUNTIF(BQ37:DR37,1)","v":0},{"$f":"COUNTIF(BQ37:DR37,-1)","v":0},{"$f":"IF(F37>0,(I37+K37)/(F37),0)","v":0},142,85,100,101,200,121,53,94,129,103,113,106,101,118,188,153,164,95,67,132,63,90,40,44,202,119,null,null,null,null,null,null,null,null,null,null,null,null,null,null,null,null,null,null,null,null,null,null,null,null,null,null,null,null,null,null,null,null,null,null,null,null,null,null,null,null,null,null,null,null,null,null,null,null,null,null,null,null,null,null,null,null,null,null,null,null,null,null,null,null,null,null,null,null,null,null,null,null,null,null,null,null,null,null,null,null,null,null,null,null,35,33,{"$f":"IF(DX37=1,ROW(33:33),\"-\")","v":33},null,1,null,null,null,33,null,{"$f":"IF(DX37=1,DU37,IF(DX37=\"\",DU37,\"\"))","v":33},{"$f":"IF(DX37=1,\"(\"&DT37&\")\",\"(\"&DV37&\")\")","v":"(35)"}]
["34(37)","Anita Fabbeke","Dynapac Södra",111.37931034482759,null,29,3230,null,0,0,0,0,0,161,71,71,50,78,130,132,124,126,123,157,96,100,87,135,69,95,150,150,92,121,133,77,109,109,183,95,118,88,null,null,null,null,null,null,null,null,null,null,null,null,null,null,null,null,null,null,null,null,null,null,null,null,null,null,null,null,null,null,null,null,null,null,null,null,null,null,null,null,null,null,null,null,null,null,null,null,null,null,null,null,null,null,null,null,null,null,null,null,null,null,null,null,null,null,null,null,null,null,null,null,null,null,null,null,null,null,null,null,null,37,34,34,null,1,null,null,null,34,null,34,"(37)"]
["35(36)","Berndt Petersson","Lanternan",110.11764705882354,null,17,1872,null,0,0,0,0,0,127,131,105,112,101,96,66,143,178,71,98,81,82,118,120,119,124,null,null,null,null,null,null,null,null,null,null,null,null,null,null,null,null,null,null,null,null,null,null,null,null,null,null,null,null,null,null,null,null,null,null,null,null,null,null,null,null,null,null,null,null,null,null,null,null,null,null,null,null,null,null,null,null,null,null,null,null,null,null,null,null,null,null,null,null,null,null,null,null,null,null,null,null,null,null,null,null,null,null,null,null,null,null,null,null,null,null,null,null,null,36,35,35,null,1,null,null,null,35,null,35,"(36)"]
["36(38)","Tobias Vikström","Växjö",109.83333333333333,null,6,659,null,0,0,0,0,0,72,93,103,140,114,137,null,null,null,null,null,null,null,null,null,null,null,null,null,null,null,null,null,null,null,null,null,null,null,null,null,null,null,null,null,null,null,null,null,null,null,null,null,null,null,null,null,null,null,null,null,null,null,null,null,null,null,null,null,null,null,null,null,null,null,null,null,null,null,null,null,null,null,null,null,null,null,null,null,null,null,null,null,null,null,null,null,null,null,null,null,null,null,null,null,null,null,null,null,null,null,null,null,null,null,null,null,null,null,null,38,36,36,null,1,null,null,null,36,null,36,"(38)"]
["37(39)","Peter Edlund","Dynapac Södra",109.73684210526316,null,19,2085,null,0,0,0,0,0,121,158,107,161,154,110,64,157,105,113,69,127,118,69,85,41,117,100,109,null,null,null,null,null,null,null,null,null,null,null,null,null,null,null,null,null,null,null,null,null,null,null,null,null,null,null,null,null,null,null,null,null,null,null,null,null,null,null,null,null,null,null,null,null,null,null,null,null,null,null,null,null,null,null,null,null,null,null,null,null,null,null,null,null,null,null,null,null,null,null,null,null,null,null,null,null,null,null,null,null,null,null,null,null,null,null,null,null,null,null,39,37,37,null,1,null,null,null,37,null,37,"(39)"]
["38(31)","Christer Blomgren","Lanternan",109.57894736842105,null,19,2082,null,0,0,0,0,0,115,151,68,86,121,83,108,125,95,68,123,184,163,96,110,109,122,66,89,null,null,null,null,null,null,null,null,null,null,null,null,null,null,null,null,null,null,null,null,null,null,null,null,null,null,null,null,null,null,null,null,null,null,null,null,null,null,null,null,null,null,null,null,null,null,null,null,null,null,null,null,null,null,null,null,null,null,null,null,null,null,null,null,null,null,null,null,null,null,null,null,null,null,null,null,null,null,null,null,null,null,null,null,null,null,null,null,null,null,null,31,38,38,null,1,null,null,null,38,null,38,"(31)"]
["39(40)","Sebastian Israelsson","Sibbamåla",109.5,null,8,876,null,0,0,0,0,0,92,121,59,122,92,132,107,151,null,null,null,null,null,null,null,null,null,null,null,null,null,null,null,null,null,null,null,null,null,null,null,null,null,null,null,null,null,null,null,null,null,null,null,null,null,null,null,null,null,null,null,null,null,null,null,null,null,null,null,null,null,null,null,null,null,null,null,null,null,null,null,null,null,null,null,null,null,null,null,null,null,null,null,null,null,null,null,null,null,null,null,null,null,null,null,null,null,null,null,null,null,null,null,null,null,null,null,null,null,null,40,{"$f":"IF(AND(D43=D42,D43=D41,D43=D40,D43=D39),ROW(35:35),IF(AND(D43=D42,D43=D41,D43=D40),ROW(36:36),IF(AND(D43=D42,D43=D41),ROW(37:37),IF(D43=D42,ROW(38:38),IF(D43>1,ROW(39:39),\"-\")))))","v":39},39,null,1,null,null,null,39,null,39,"(40)"]
["40(44)","Hans Johansson","Tingsryd",108.93333333333334,null,30,3268,null,0,0,0,0,0,102,128,113,127,184,145,63,71,86,133,88,67,92,67,133,96,117,122,56,107,100,91,139,116,117,92,170,123,101,122,null,null,null,null,null,null,null,null,null,null,null,null,null,null,null,null,null,null,null,null,null,null,null,null,null,null,null,null,null,null,null,null,null,null,null,null,null,null,null,null,null,null,null,null,null,null,null,null,null,null,null,null,null,null,null,null,null,null,null,null,null,null,null,null,null,null,null,null,null,null,null,null,null,null,null,null,null,null,null,null,44,40,40,null,1,null,null,null,40,null,40,"(44)"]
["41(41)","Bertil Olsson","Jämjö Hsc",107.93333333333334,null,15,1619,null,0,0,0,0,0,101,131,120,87,124,77,116,109,97,116,92,83,117,113,136,null,null,null,null,null,null,null,null,null,null,null,null,null,null,null,null,null,null,null,null,null,null,null,null,null,null,null,null,null,null,null,null,null,null,null,null,null,null,null,null,null,null,null,null,null,null,null,null,null,null,null,null,null,null,null,null,null,null,null,null,null,null,null,null,null,null,null,null,null,null,null,null,null,null,null,null,null,null,null,null,null,null,null,null,null,null,null,null,null,null,null,null,null,null,null,41,41,41,null,1,null,null,null,41,null,41,"(41)"]
["42(42)","Inger Andersson","Korpen Nybro",107.33333333333333,null,6,644,null,0,0,0,0,0,92,93,110,134,119,96,null,null,null,null,null,null,null,null,null,null,null,null,null,null,null,null,null,null,null,null,null,null,null,null,null,null,null,null,null,null,null,null,null,null,null,null,null,null,null,null,null,null,null,null,null,null,null,null,null,null,null,null,null,null,null,null,null,null,null,null,null,null,null,null,null,null,null,null,null,null,null,null,null,null,null,null,null,null,null,null,null,null,null,null,null,null,null,null,null,null,null,null,null,null,null,null,null,null,null,null,null,null,null,null,42,42,42,null,1,null,null,null,42,null,42,"(42)"]
["43(34)","Jan Petersson","Lanternan",106.53333333333333,null,15,1598,null,0,0,0,0,0,125,82,133,146,95,161,78,91,95,126,113,82,82,113,76,null,null,null,null,null,null,null,null,null,null,null,null,null,null,null,null,null,null,null,null,null,null,null,null,null,null,null,null,null,null,null,null,null,null,null,null,null,null,null,null,null,null,null,null,null,null,null,null,null,null,null,null,null,null,null,null,null,null,null,null,null,null,null,null,null,null,null,null,null,null,null,null,null,null,null,null,null,null,null,null,null,null,null,null,null,null,null,null,null,null,null,null,null,null,null,34,43,43,null,1,null,null,null,43,null,43,"(34)"]
["44(45)","Ronny Lundberg","Lanternan",106.1875,null,16,1699,null,0,0,0,0,0,165,101,148,100,67,74,78,105,67,68,131,179,114,88,88,126,null,null,null,null,null,null,null,null,null,null,null,null,null,null,null,null,null,null,null,null,null,null,null,null,null,null,null,null,null,null,null,null,null,null,null,null,null,null,null,null,null,null,null,null,null,null,null,null,null,null,null,null,null,null,null,null,null,null,null,null,null,null,null,null,null,null,null,null,null,null,null,null,null,null,null,null,null,null,null,null,null,null,null,null,null,null,null,null,null,null,null,null,null,null,45,44,44,null,1,null,null,null,52,null,44,"(45)"]
["45(43)","Bernt Olsson","Jämjö Hsc",105.89189189189189,null,37,3918,null,0,0,0,0,0,70,115,164,151,131,152,70,70,75,124,81,97,118,123,101,125,107,88,85,60,88,140,101,117,169,101,62,98,82,81,156,113,71,114,99,95,124,null,null,null,null,null,null,null,null,null,null,null,null,null,null,null,null,null,null,null,null,null,null,null,null,null,null,null,null,null,null,null,null,null,null,null,null,null,null,null,null,null,null,null,null,null,null,null,null,null,null,null,null,null,null,null,null,null,null,null,null,null,null,null,null,null,null,null,null,null,null,null,null,null,43,45,45,null,1,null,null,null,44,null,45,"(43)"]
["46(46)","Christina Holmberg","Tingsryd",105.88461538461539,null,26,2753,null,0,0,0,0,0,104,149,134,117,110,112,137,135,76,84,75,147,59,132,84,123,91,104,57,98,75,118,81,110,126,115,null,null,null,null,null,null,null,null,null,null,null,null,null,null,null,null,null,null,null,null,null,null,null,null,null,null,null,null,null,null,null,null,null,null,null,null,null,null,null,null,null,null,null,null,null,null,null,null,null,null,null,null,null,null,null,null,null,null,null,null,null,null,null,null,null,null,null,null,null,null,null,null,null,null,null,null,null,null,null,null,null,null,null,null,46,46,46,null,1,null,null,null,45,null,46,"(46)"]
["47(49)","Bengt Fabbeke","Dynapac Södra",104.91666666666667,null,36,3777,null,0,0,0,0,0,70,64,63,106,112,124,112,82,120,96,64,82,142,100,159,18,54,100,122,158,209,148,67,80,115,83,110,83,95,122,100,131,163,88,103,132,null,null,null,null,null,null,null,null,null,null,null,null,null,null,null,null,null,null,null,null,null,null,null,null,null,null,null,null,null,null,null,null,null,null,null,null,null,null,null,null,null,null,null,null,null,null,null,null,null,null,null,null,null,null,null,null,null,null,null,null,null,null,null,null,null,null,null,null,null,null,null,null,null,null,49,47,47,null,1,null,null,null,46,null,47,"(49)"]
["48(51)","Ingegerd Pettersson","Lanternan",103.94444444444444,null,18,1871,null,0,0,0,0,0,120,66,160,116,98,91,128,81,73,75,103,98,109,72,109,149,123,100,null,null,null,null,null,null,null,null,null,null,null,null,null,null,null,null,null,null,null,null,null,null,null,null,null,null,null,null,null,null,null,null,null,null,null,null,null,null,null,null,null,null,null,null,null,null,null,null,null,null,null,null,null,null,null,null,null,null,null,null,null,null,null,null,null,null,null,null,null,null,null,null,null,null,null,null,null,null,null,null,null,null,null,null,null,null,null,null,null,null,null,null,51,48,48,null,1,null,null,null,47,null,48,"(51)"]
["49(47)","Nils-Åke Hansson","Korpen Nybro",103.27272727272727,null,22,2272,null,0,0,0,0,0,102,149,119,118,132,85,82,124,42,61,98,111,188,86,74,142,75,85,77,104,84,134,null,null,null,null,null,null,null,null,null,null,null,null,null,null,null,null,null,null,null,null,null,null,null,null,null,null,null,null,null,null,null,null,null,null,null,null,null,null,null,null,null,null,null,null,null,null,null,null,null,null,null,null,null,null,null,null,null,null,null,null,null,null,null,null,null,null,null,null,null,null,null,null,null,null,null,null,null,null,null,null,null,null,null,null,null,null,null,null,47,49,49,null,1,null,null,null,48,null,49,"(47)"]
["50(53)","Bela Bodi","Växjö",103.1025641025641,null,39,4021,null,0,0,0,0,0,108,126,91,92,154,79,54,111,121,119,67,73,87,100,74,57,84,103,101,97,99,116,88,78,96,94,117,72,158,146,144,104,84,165,111,92,129,106,124,null,null,null,null,null,null,null,null,null,null,null,null,null,null,null,null,null,null,null,null,null,null,null,null,null,null,null,null,null,null,null,null,null,null,null,null,null,null,null,null,null,null,null,null,null,null,null,null,null,null,null,null,null,null,null,null,null,null,null,null,null,null,null,null,null,null,null,null,null,null,null,53,50,50,null,1,null,null,null,49,null,50,"(53)"]
["51(50)","Bengt Andersson","Växjö",101.4,null,10,1014,null,0,0,0,0,0,99,167,178,75,82,72,58,91,104,88,null,null,null,null,null,null,null,null,null,null,null,null,null,null,null,null,null,null,null,null,null,null,null,null,null,null,null,null,null,null,null,null,null,null,null,null,null,null,null,null,null,null,null,null,null,null,null,null,null,null,null,null,null,null,null,null,null,null,null,null,null,null,null,null,null,null,null,null,null,null,null,null,null,null,null,null,null,null,null,null,null,null,null,null,null,null,null,null,null,null,null,null,null,null,null,null,null,null,null,null,50,51,51,null,1,null,null,null,50,null,51,"(50)"]
["52(52)","Bengt-Erik Holmberg","Tingsryd",100.18181818181819,null,22,2204,null,0,0,0,0,0,82,115,88,92,86,138,65,96,142,106,95,118,71,88,47,161,108,88,74,102,138,104,null,null,null,null,null,null,null,null,null,null,null,null,null,null,null,null,null,null,null,null,null,null,null,null,null,null,null,null,null,null,null,null,null,null,null,null,null,null,null,null,null,null,null,null,null,null,null,null,null,null,null,null,null,null,null,null,null,null,null,null,null,null,null,null,null,null,null,null,null,null,null,null,null,null,null,null,null,null,null,null,null,null,null,null,null,null,null,null,52,52,52,null,1,null,null,null,51,null,52,"(52)"]
["53(48)","Niklas Berglund","Växjö",100.17647058823529,null,17,1703,null,0,0,0,0,0,132,108,105,74,97,92,124,105,105,101,118,94,85,50,51,120,142,null,null,null,null,null,null,null,null,null,null,null,null,null,null,null,null,null,null,null,null,null,null,null,null,null,null,null,null,null,null,null,null,null,null,null,null,null,null,null,null,null,null,null,null,null,null,null,null,null,null,null,null,null,null,null,null,null,null,null,null,null,null,null,null,null,null,null,null,null,null,null,null,null,null,null,null,null,null,null,null,null,null,null,null,null,null,null,null,null,null,null,null,null,48,53,53,null,1,null,null,null,53,null,53,"(48)"]
["54(57)","Lasse Nilsson","Värends Hsk",98.5,null,26,2561,null,0,0,0,0,0,128,103,85,92,133,85,83,100,71,52,62,85,128,40,64,95,120,105,88,125,128,121,121,98,134,115,null,null,null,null,null,null,null,null,null,null,null,null,null,null,null,null,null,null,null,null,null,null,null,null,null,null,null,null,null,null,null,null,null,null,null,null,null,null,null,null,null,null,null,null,null,null,null,null,null,null,null,null,null,null,null,null,null,null,null,null,null,null,null,null,null,null,null,null,null,null,null,null,null,null,null,null,null,null,null,null,null,null,null,null,57,54,54,null,1,null,null,null,109,null,54,"(57)"]
["55(56)","Göran Olofsson","Korpen Nybro",97.4,null,25,2435,null,0,0,0,0,0,110,85,67,98,114,94,95,89,77,112,52,71,100,94,91,68,134,100,145,116,89,143,54,99,138,null,null,null,null,null,null,null,null,null,null,null,null,null,null,null,null,null,null,null,null,null,null,null,null,null,null,null,null,null,null,null,null,null,null,null,null,null,null,null,null,null,null,null,null,null,null,null,null,null,null,null,null,null,null,null,null,null,null,null,null,null,null,null,null,null,null,null,null,null,null,null,null,null,null,null,null,null,null,null,null,null,null,null,null,null,56,55,55,null,1,null,null,null,54,null,55,"(56)"]
["56(54)","Rune Karlsson","Korpen Nybro",96.608695652173907,null,23,2222,null,0,0,0,0,0,77,57,97,90,104,172,79,97,135,123,134,102,107,93,137,81,81,40,77,66,58,87,128,null,null,null,null,null,null,null,null,null,null,null,null,null,null,null,null,null,null,null,null,null,null,null,null,null,null,null,null,null,null,null,null,null,null,null,null,null,null,null,null,null,null,null,null,null,null,null,null,null,null,null,null,null,null,null,null,null,null,null,null,null,null,null,null,null,null,null,null,null,null,null,null,null,null,null,null,null,null,null,null,null,null,null,null,null,null,null,54,56,56,null,1,null,null,null,55,null,56,"(54)"]
["57(59)","Rolf Johannesson","Värends Hsk",94.85,null,20,1897,null,0,0,0,0,0,70,121,79,86,82,74,62,98,81,128,59,92,102,72,100,87,166,84,118,136,null,null,null,null,null,null,null,null,null,null,null,null,null,null,null,null,null,null,null,null,null,null,null,null,null,null,null,null,null,null,null,null,null,null,null,null,null,null,null,null,null,null,null,null,null,null,null,null,null,null,null,null,null,null,null,null,null,null,null,null,null,null,null,null,null,null,null,null,null,null,null,null,null,null,null,null,null,null,null,null,null,null,null,null,null,null,null,null,null,null,59,57,57,null,1,null,null,null,56,null,57,"(59)"]
["58(55)","Stefan Tollstam","Dynapac Södra",94.36,null,25,2359,null,0,0,0,0,0,84,110,141,85,97,119,87,84,43,56,114,117,152,101,108,118,111,81,55,68,101,110,44,138,35,null,null,null,null,null,null,null,null,null,null,null,null,null,null,null,null,null,null,null,null,null,null,null,null,null,null,null,null,null,null,null,null,null,null,null,null,null,null,null,null,null,null,null,null,null,null,null,null,null,null,null,null,null,null,null,null,null,null,null,null,null,null,null,null,null,null,null,null,null,null,null,null,null,null,null,null,null,null,null,null,null,null,null,null,null,55,58,58,null,1,null,null,null,57,null,58,"(55)"]
["59()","Ann-Marie Larsson","Tingsryd",92.5,null,2,185,null,0,0,0,0,0,48,137,null,null,null,null,null,null,null,null,null,null,null,null,null,null,null,null,null,null,null,null,null,null,null,null,null,null,null,null,null,null,null,null,null,null,null,null,null,null,null,null,null,null,null,null,null,null,null,null,null,null,null,null,null,null,null,null,null,null,null,null,null,null,null,null,null,null,null,null,null,null,null,null,null,null,null,null,null,null,null,null,null,null,null,null,null,null,null,null,null,null,null,null,null,null,null,null,null,null,null,null,null,null,null,null,null,null,null,null,null,59,59,null,1,null,null,null,58,null,59,"()"]
["60(58)","Thomas Dahl","Växjö",92.34210526315789,null,38,3509,null,0,0,0,0,0,79,140,89,77,50,73,89,111,107,101,59,36,88,76,64,68,90,76,92,142,64,128,95,97,116,76,115,64,107,140,92,94,144,103,76,118,80,93,null,null,null,null,null,null,null,null,null,null,null,null,null,null,null,null,null,null,null,null,null,null,null,null,null,null,null,null,null,null,null,null,null,null,null,null,null,null,null,null,null,null,null,null,null,null,null,null,null,null,null,null,null,null,null,null,null,null,null,null,null,null,null,null,null,null,null,null,null,null,null,null,58,60,60,null,1,null,null,null,59,null,60,"(58)"]
["61(60)","Kjell Rydh","Korpen Nybro",90.727272727272734,null,22,1996,null,0,0,0,0,0,115,42,70,85,74,106,34,46,108,97,82,64,83,148,133,94,121,109,105,93,82,105,null,null,null,null,null,null,null,null,null,null,null,null,null,null,null,null,null,null,null,null,null,null,null,null,null,null,null,null,null,null,null,null,null,null,null,null,null,null,null,null,null,null,null,null,null,null,null,null,null,null,null,null,null,null,null,null,null,null,null,null,null,null,null,null,null,null,null,null,null,null,null,null,null,null,null,null,null,null,null,null,null,null,null,null,null,null,null,null,60,61,61,null,1,null,null,null,60,null,61,"(60)"]
["62(63)","Martin Antic","Värends Hsk",89.354838709677423,null,31,2770,null,0,0,0,0,0,101,90,73,65,80,68,56,75,64,82,72,51,128,69,91,92,74,112,65,124,94,135,109,98,111,84,117,64,131,87,108,null,null,null,null,null,null,null,null,null,null,null,null,null,null,null,null,null,null,null,null,null,null,null,null,null,null,null,null,null,null,null,null,null,null,null,null,null,null,null,null,null,null,null,null,null,null,null,null,null,null,null,null,null,null,null,null,null,null,null,null,null,null,null,null,null,null,null,null,null,null,null,null,null,null,null,null,null,null,null,63,62,62,null,1,null,null,null,61,null,62,"(63)"]
["63(67)","Lennart Karlsson","Tingsryd",89.057142857142864,null,35,3117,null,0,0,0,0,0,83,95,53,53,174,146,43,102,41,81,80,70,89,71,117,77,74,108,94,44,73,62,118,71,69,107,43,64,119,75,192,108,142,94,85,null,null,null,null,null,null,null,null,null,null,null,null,null,null,null,null,null,null,null,null,null,null,null,null,null,null,null,null,null,null,null,null,null,null,null,null,null,null,null,null,null,null,null,null,null,null,null,null,null,null,null,null,null,null,null,null,null,null,null,null,null,null,null,null,null,null,null,null,null,null,null,null,null,null,null,67,63,63,null,1,null,null,null,62,null,63,"(67)"]
["64(69)","Clara Larsson","Värends Hsk",88.772727272727266,null,22,1953,null,0,0,0,0,0,75,75,66,102,99,60,122,33,47,34,122,82,48,58,118,151,68,88,100,174,131,100,null,null,null,null,null,null,null,null,null,null,null,null,null,null,null,null,null,null,null,null,null,null,null,null,null,null,null,null,null,null,null,null,null,null,null,null,null,null,null,null,null,null,null,null,null,null,null,null,null,null,null,null,null,null,null,null,null,null,null,null,null,null,null,null,null,null,null,null,null,null,null,null,null,null,null,null,null,null,null,null,null,null,null,null,null,null,null,null,69,64,64,null,1,null,null,null,64,null,64,"(69)"]
[{"$f":"DU69&EE69","v":"65(61)"},"Alf Svensson","Korpen Åseda",{"$f":"IF(F69>0.5,(G69/F69),0)","v":87.071428571428569},null,{"$f":"COUNT(N69:BO69)","v":14},{"$f":"SUM(N69:BO69)","v":1219},null,{"$f":"COUNTIF(BQ69:DR69,2)","v":0},{"$f":"COUNTIF(BQ69:DR69,-2)","v":0},{"$f":"COUNTIF(BQ69:DR69,1)","v":0},{"$f":"COUNTIF(BQ69:DR69,-1)","v":0},{"$f":"IF(F69>0,(I69+K69)/(F69),0)","v":0},131,120,129,135,110,91,38,73,50,40,70,81,77,74,null,null,null,null,null,null,null,null,null,null,null,null,null,null,null,null,null,null,null,null,null,null,null,null,null,null,null,null,null,null,null,null,null,null,null,null,null,null,null,null,null,null,null,null,null,null,null,null,null,null,null,null,null,null,null,null,null,null,null,null,null,null,null,null,null,null,null,null,null,null,null,null,null,null,null,null,null,null,null,null,null,null,null,null,null,null,null,null,null,null,null,null,null,null,null,null,61,65,{"$f":"IF(DX69=1,ROW(65:65),\"-\")","v":65},null,1,null,null,null,65,null,{"$f":"IF(DX69=1,DU69,IF(DX69=\"\",DU69,\"\"))","v":65},{"$f":"IF(DX69=1,\"(\"&DT69&\")\",\"(\"&DV69&\")\")","v":"(61)"}]
["66(64)","Gilbert Pettersson","Lanternan",86.5,null,6,519,null,0,0,0,0,0,68,53,50,137,75,136,null,null,null,null,null,null,null,null,null,null,null,null,null,null,null,null,null,null,null,null,null,null,null,null,null,null,null,null,null,null,null,null,null,null,null,null,null,null,null,null,null,null,null,null,null,null,null,null,null,null,null,null,null,null,null,null,null,null,null,null,null,null,null,null,null,null,null,null,null,null,null,null,null,null,null,null,null,null,null,null,null,null,null,null,null,null,null,null,null,null,null,null,null,null,null,null,null,null,null,null,null,null,null,null,64,66,66,null,1,null,null,null,66,null,66,"(64)"]
["67(62)","Marianne Karlsson","Jämjö Hsc",84.58620689655173,null,29,2453,null,0,0,0,0,0,110,65,66,86,91,118,86,85,119,58,86,100,83,92,99,77,75,86,74,103,103,76,71,89,40,82,51,99,83,null,null,null,null,null,null,null,null,null,null,null,null,null,null,null,null,null,null,null,null,null,null,null,null,null,null,null,null,null,null,null,null,null,null,null,null,null,null,null,null,null,null,null,null,null,null,null,null,null,null,null,null,null,null,null,null,null,null,null,null,null,null,null,null,null,null,null,null,null,null,null,null,null,null,null,null,null,null,null,null,null,62,67,67,null,1,null,null,null,67,null,67,"(62)"]
["68(68)","Kent Vikström","Växjö",83,null,2,166,null,0,0,0,0,0,102,64,null,null,null,null,null,null,null,null,null,null,null,null,null,null,null,null,null,null,null,null,null,null,null,null,null,null,null,null,null,null,null,null,null,null,null,null,null,null,null,null,null,null,null,null,null,null,null,null,null,null,null,null,null,null,null,null,null,null,null,null,null,null,null,null,null,null,null,null,null,null,null,null,null,null,null,null,null,null,null,null,null,null,null,null,null,null,null,null,null,null,null,null,null,null,null,null,null,null,null,null,null,null,null,null,null,null,null,null,68,68,68,null,1,null,null,null,68,null,68,"(68)"]
["69(66)","Lars-Åke Karlsson","Jämjö Hsc",82.965517241379317,null,29,2406,null,0,0,0,0,0,89,70,100,53,49,91,81,59,95,106,60,63,114,125,46,124,92,86,72,64,62,100,118,85,50,86,98,63,105,null,null,null,null,null,null,null,null,null,null,null,null,null,null,null,null,null,null,null,null,null,null,null,null,null,null,null,null,null,null,null,null,null,null,null,null,null,null,null,null,null,null,null,null,null,null,null,null,null,null,null,null,null,null,null,null,null,null,null,null,null,null,null,null,null,null,null,null,null,null,null,null,null,null,null,null,null,null,null,null,null,66,69,69,null,1,null,null,null,69,null,69,"(66)"]
["70(65)","Olle Nilsson","Tingsryd",82.3125,null,32,2634,null,0,0,0,0,0,65,64,95,68,98,118,92,91,72,99,84,89,47,128,105,109,81,44,161,71,82,61,46,68,111,70,91,54,105,64,43,58,null,null,null,null,null,null,null,null,null,null,null,null,null,null,null,null,null,null,null,null,null,null,null,null,null,null,null,null,null,null,null,null,null,null,null,null,null,null,null,null,null,null,null,null,null,null,null,null,null,null,null,null,null,null,null,null,null,null,null,null,null,null,null,null,null,null,null,null,null,null,null,null,null,null,null,null,null,null,65,70,70,null,1,null,null,null,70,null,70,"(65)"]
["71(70)","Tommy Karlsson","Korpen Nybro",81.2,null,5,406,null,0,0,0,0,0,86,85,47,108,80,null,null,null,null,null,null,null,null,null,null,null,null,null,null,null,null,null,null,null,null,null,null,null,null,null,null,null,null,null,null,null,null,null,null,null,null,null,null,null,null,null,null,null,null,null,null,null,null,null,null,null,null,null,null,null,null,null,null,null,null,null,null,null,null,null,null,null,null,null,null,null,null,null,null,null,null,null,null,null,null,null,null,null,null,null,null,null,null,null,null,null,null,null,null,null,null,null,null,null,null,null,null,null,null,null,70,{"$f":"IF(AND(D75=D74,D75=D73,D75=D72,D75=D71),ROW(67:67),IF(AND(D75=D74,D75=D73,D75=D72),ROW(68:68),IF(AND(D75=D74,D75=D73),ROW(69:69),IF(D75=D74,ROW(70:70),IF(D75>1,ROW(71:71),\"-\")))))","v":71},71,null,1,null,null,null,114,null,71,"(70)"]
["72(74)","Maire Johansson","Växjö",78.148148148148152,null,27,2110,null,0,0,0,0,0,44,42,105,116,88,72,66,66,69,91,49,67,36,77,49,125,95,86,89,93,83,71,126,75,57,99,74,null,null,null,null,null,null,null,null,null,null,null,null,null,null,null,null,null,null,null,null,null,null,null,null,null,null,null,null,null,null,null,null,null,null,null,null,null,null,null,null,null,null,null,null,null,null,null,null,null,null,null,null,null,null,null,null,null,null,null,null,null,null,null,null,null,null,null,null,null,null,null,null,null,null,null,null,null,null,null,null,null,null,null,74,72,72,null,1,null,null,null,71,null,72,"(74)"]
["73(72)","Kerstin Petersen","Växjö",77.25,null,4,309,null,0,0,0,0,0,37,93,94,85,null,null,null,null,null,null,null,null,null,null,null,null,null,null,null,null,null,null,null,null,null,null,null,null,null,null,null,null,null,null,null,null,null,null,null,null,null,null,null,null,null,null,null,null,null,null,null,null,null,null,null,null,null,null,null,null,null,null,null,null,null,null,null,null,null,null,null,null,null,null,null,null,null,null,null,null,null,null,null,null,null,null,null,null,null,null,null,null,null,null,null,null,null,null,null,null,null,null,null,null,null,null,null,null,null,null,72,73,73,null,1,null,null,null,111,null,73,"(72)"]
["74(71)","Alf Johansson","Värends Hsk",77,null,28,2156,null,0,0,0,0,0,106,54,74,62,99,79,112,111,110,65,61,74,87,48,67,51,95,97,47,34,47,82,89,99,85,72,76,73,null,null,null,null,null,null,null,null,null,null,null,null,null,null,null,null,null,null,null,null,null,null,null,null,null,null,null,null,null,null,null,null,null,null,null,null,null,null,null,null,null,null,null,null,null,null,null,null,null,null,null,null,null,null,null,null,null,null,null,null,null,null,null,null,null,null,null,null,null,null,null,null,null,null,null,null,null,null,null,null,null,null,71,74,74,null,1,null,null,null,72,null,74,"(71)"]
["75(73)","Ronnie Pettersson","Tingsryd",76.818181818181813,null,11,845,null,0,0,0,0,0,68,50,89,91,44,106,116,77,75,71,58,null,null,null,null,null,null,null,null,null,null,null,null,null,null,null,null,null,null,null,null,null,null,null,null,null,null,null,null,null,null,null,null,null,null,null,null,null,null,null,null,null,null,null,null,null,null,null,null,null,null,null,null,null,null,null,null,null,null,null,null,null,null,null,null,null,null,null,null,null,null,null,null,null,null,null,null,null,null,null,null,null,null,null,null,null,null,null,null,null,null,null,null,null,null,null,null,null,null,null,73,75,75,null,1,null,null,null,73,null,75,"(73)"]
["76(76)","Kerstin Svensson","Växjö",74.071428571428569,null,28,2074,null,0,0,0,0,0,20,88,32,65,107,92,47,100,57,51,56,94,85,120,71,16,50,99,88,81,76,88,74,68,87,74,115,73,null,null,null,null,null,null,null,null,null,null,null,null,null,null,null,null,null,null,null,null,null,null,null,null,null,null,null,null,null,null,null,null,null,null,null,null,null,null,null,null,null,null,null,null,null,null,null,null,null,null,null,null,null,null,null,null,null,null,null,null,null,null,null,null,null,null,null,null,null,null,null,null,null,null,null,null,null,null,null,null,null,null,76,76,76,null,1,null,null,null,74,null,76,"(76)"]
["77(75)","Gunnar Lundbeck","Tingsryd",73.319999999999993,null,25,1833,null,0,0,0,0,0,55,95,82,98,58,74,41,44,113,62,99,104,81,98,75,99,51,55,73,63,92,52,63,51,55,null,null,null,null,null,null,null,null,null,null,null,null,null,null,null,null,null,null,null,null,null,null,null,null,null,null,null,null,null,null,null,null,null,null,null,null,null,null,null,null,null,null,null,null,null,null,null,null,null,null,null,null,null,null,null,null,null,null,null,null,null,null,null,null,null,null,null,null,null,null,null,null,null,null,null,null,null,null,null,null,null,null,null,null,null,75,77,77,null,1,null,null,null,75,null,77,"(75)"]
["78(77)","Madelene Bergendorf","Tingzås",69.466666666666669,null,15,1042,null,0,0,0,0,0,106,97,103,104,24,66,59,37,47,55,63,63,57,88,73,null,null,null,null,null,null,null,null,null,null,null,null,null,null,null,null,null,null,null,null,null,null,null,null,null,null,null,null,null,null,null,null,null,null,null,null,null,null,null,null,null,null,null,null,null,null,null,null,null,null,null,null,null,null,null,null,null,null,null,null,null,null,null,null,null,null,null,null,null,null,null,null,null,null,null,null,null,null,null,null,null,null,null,null,null,null,null,null,null,null,null,null,null,null,null,77,78,78,null,1,null,null,null,76,null,78,"(77)"]
["79(85)","Roland Sjöstrand","Tingzås",68.538461538461533,null,26,1782,null,0,0,0,0,0,59,61,53,112,91,91,66,38,72,79,58,30,43,37,47,73,87,94,56,34,34,72,115,112,111,57,null,null,null,null,null,null,null,null,null,null,null,null,null,null,null,null,null,null,null,null,null,null,null,null,null,null,null,null,null,null,null,null,null,null,null,null,null,null,null,null,null,null,null,null,null,null,null,null,null,null,null,null,null,null,null,null,null,null,null,null,null,null,null,null,null,null,null,null,null,null,null,null,null,null,null,null,null,null,null,null,null,null,null,null,85,79,79,null,1,null,null,null,77,null,79,"(85)"]
["80(78)","Gunnel Karlsson","Tingzås",68.400000000000006,null,15,1026,null,0,0,0,0,0,125,92,109,44,65,72,74,17,13,61,93,40,101,65,55,null,null,null,null,null,null,null,null,null,null,null,null,null,null,null,null,null,null,null,null,null,null,null,null,null,null,null,null,null,null,null,null,null,null,null,null,null,null,null,null,null,null,null,null,null,null,null,null,null,null,null,null,null,null,null,null,null,null,null,null,null,null,null,null,null,null,null,null,null,null,null,null,null,null,null,null,null,null,null,null,null,null,null,null,null,null,null,null,null,null,null,null,null,null,null,78,80,80,null,1,null,null,null,78,null,80,"(78)"]
["81(79)","Maria Andersson","Värends Hsk",66.5,null,4,266,null,0,0,0,0,0,54,76,58,78,null,null,null,null,null,null,null,null,null,null,null,null,null,null,null,null,null,null,null,null,null,null,null,null,null,null,null,null,null,null,null,null,null,null,null,null,null,null,null,null,null,null,null,null,null,null,null,null,null,null,null,null,null,null,null,null,null,null,null,null,null,null,null,null,null,null,null,null,null,null,null,null,null,null,null,null,null,null,null,null,null,null,null,null,null,null,null,null,null,null,null,null,null,null,null,null,null,null,null,null,null,null,null,null,null,null,79,81,81,null,1,null,null,null,79,null,81,"(79)"]
["82(80)","Gunilla Andersson","Tingzås",66.07692307692308,null,13,859,null,0,0,0,0,0,45,80,102,138,85,87,63,41,42,17,44,54,61,null,null,null,null,null,null,null,null,null,null,null,null,null,null,null,null,null,null,null,null,null,null,null,null,null,null,null,null,null,null,null,null,null,null,null,null,null,null,null,null,null,null,null,null,null,null,null,null,null,null,null,null,null,null,null,null,null,null,null,null,null,null,null,null,null,null,null,null,null,null,null,null,null,null,null,null,null,null,null,null,null,null,null,null,null,null,null,null,null,null,null,null,null,null,null,null,null,80,82,82,null,1,null,null,null,80,null,82,"(80)"]
["83(81)","Jonas Klarström","Värends Hsk",65.82352941176471,null,17,1119,null,0,0,0,0,0,85,81,132,80,17,42,92,65,58,81,34,62,30,71,69,58,62,null,null,null,null,null,null,null,null,null,null,null,null,null,null,null,null,null,null,null,null,null,null,null,null,null,null,null,null,null,null,null,null,null,null,null,null,null,null,null,null,null,null,null,null,null,null,null,null,null,null,null,null,null,null,null,null,null,null,null,null,null,null,null,null,null,null,null,null,null,null,null,null,null,null,null,null,null,null,null,null,null,null,null,null,null,null,null,null,null,null,null,null,null,81,83,83,null,1,null,null,null,81,null,83,"(81)"]
["84(83)","Ulrika Rydell","Värends Hsk",64.692307692307693,null,13,841,null,0,0,0,0,0,41,41,71,64,127,51,86,118,34,84,14,62,48,null,null,null,null,null,null,null,null,null,null,null,null,null,null,null,null,null,null,null,null,null,null,null,null,null,null,null,null,null,null,null,null,null,null,null,null,null,null,null,null,null,null,null,null,null,null,null,null,null,null,null,null,null,null,null,null,null,null,null,null,null,null,null,null,null,null,null,null,null,null,null,null,null,null,null,null,null,null,null,null,null,null,null,null,null,null,null,null,null,null,null,null,null,null,null,null,null,83,84,84,null,1,null,null,null,82,null,84,"(83)"]
["85(86)","Michael Karlsson","Tingzås",63.703703703703702,null,27,1720,null,0,0,0,0,0,45,138,82,77,103,54,71,97,55,37,78,51,34,37,54,29,45,36,63,40,40,92,96,78,56,54,78,null,null,null,null,null,null,null,null,null,null,null,null,null,null,null,null,null,null,null,null,null,null,null,null,null,null,null,null,null,null,null,null,null,null,null,null,null,null,null,null,null,null,null,null,null,null,null,null,null,null,null,null,null,null,null,null,null,null,null,null,null,null,null,null,null,null,null,null,null,null,null,null,null,null,null,null,null,null,null,null,null,null,null,86,85,85,null,1,null,null,null,83,null,85,"(86)"]
["86(84)","Lena Johansson","Tingsryd",63.4,null,5,317,null,0,0,0,0,0,46,54,78,41,98,null,null,null,null,null,null,null,null,null,null,null,null,null,null,null,null,null,null,null,null,null,null,null,null,null,null,null,null,null,null,null,null,null,null,null,null,null,null,null,null,null,null,null,null,null,null,null,null,null,null,null,null,null,null,null,null,null,null,null,null,null,null,null,null,null,null,null,null,null,null,null,null,null,null,null,null,null,null,null,null,null,null,null,null,null,null,null,null,null,null,null,null,null,null,null,null,null,null,null,null,null,null,null,null,null,84,86,86,null,1,null,null,null,84,null,86,"(84)"]
["87(82)","Allan Persson","Tingsryd",61.545454545454547,null,11,677,null,0,0,0,0,0,65,74,64,71,34,94,43,78,68,66,20,null,null,null,null,null,null,null,null,null,null,null,null,null,null,null,null,null,null,null,null,null,null,null,null,null,null,null,null,null,null,null,null,null,null,null,null,null,null,null,null,null,null,null,null,null,null,null,null,null,null,null,null,null,null,null,null,null,null,null,null,null,null,null,null,null,null,null,null,null,null,null,null,null,null,null,null,null,null,null,null,null,null,null,null,null,null,null,null,null,null,null,null,null,null,null,null,null,null,null,82,87,87,null,1,null,null,null,85,null,87,"(82)"]
["88(87)","Ingegerd Sjöstrand","Tingzås",55,null,13,715,null,0,0,0,0,0,62,59,69,72,58,85,27,65,48,48,31,43,48,null,null,null,null,null,null,null,null,null,null,null,null,null,null,null,null,null,null,null,null,null,null,null,null,null,null,null,null,null,null,null,null,null,null,null,null,null,null,null,null,null,null,null,null,null,null,null,null,null,null,null,null,null,null,null,null,null,null,null,null,null,null,null,null,null,null,null,null,null,null,null,null,null,null,null,null,null,null,null,null,null,null,null,null,null,null,null,null,null,null,null,null,null,null,null,null,null,87,88,88,null,1,null,null,null,86,null,88,"(87)"]
["89(88)","Nathalie Jonasson","Värends Hsk",50,null,5,250,null,0,0,0,0,0,13,33,92,44,68,null,null,null,null,null,null,null,null,null,null,null,null,null,null,null,null,null,null,null,null,null,null,null,null,null,null,null,null,null,null,null,null,null,null,null,null,null,null,null,null,null,null,null,null,null,null,null,null,null,null,null,null,null,null,null,null,null,null,null,null,null,null,null,null,null,null,null,null,null,null,null,null,null,null,null,null,null,null,null,null,null,null,null,null,null,null,null,null,null,null,null,null,null,null,null,null,null,null,null,null,null,null,null,null,null,88,89,89,null,1,null,null,null,87,null,89,"(88)"]
["89(88)","Lars-Erik Gren","Värends Hsk",50,null,5,250,null,0,0,0,0,0,37,37,75,58,43,null,null,null,null,null,null,null,null,null,null,null,null,null,null,null,null,null,null,null,null,null,null,null,null,null,null,null,null,null,null,null,null,null,null,null,null,null,null,null,null,null,null,null,null,null,null,null,null,null,null,null,null,null,null,null,null,null,null,null,null,null,null,null,null,null,null,null,null,null,null,null,null,null,null,null,null,null,null,null,null,null,null,null,null,null,null,null,null,null,null,null,null,null,null,null,null,null,null,null,null,null,null,null,null,null,88,89,90,null,1,null,null,null,88,null,89,"(88)"]
["91(93)","Anders Karlsson","Värends Hsk",49.6,null,10,496,null,0,0,0,0,0,56,7,20,71,53,22,50,98,65,54,null,null,null,null,null,null,null,null,null,null,null,null,null,null,null,null,null,null,null,null,null,null,null,null,null,null,null,null,null,null,null,null,null,null,null,null,null,null,null,null,null,null,null,null,null,null,null,null,null,null,null,null,null,null,null,null,null,null,null,null,null,null,null,null,null,null,null,null,null,null,null,null,null,null,null,null,null,null,null,null,null,null,null,null,null,null,null,null,null,null,null,null,null,null,null,null,null,null,null,null,93,91,91,null,1,null,null,null,89,null,91,"(93)"]
["92(90)","Susanne Andersson","Värends Hsk",48.2,null,5,241,null,0,0,0,0,0,63,44,50,41,43,null,null,null,null,null,null,null,null,null,null,null,null,null,null,null,null,null,null,null,null,null,null,null,null,null,null,null,null,null,null,null,null,null,null,null,null,null,null,null,null,null,null,null,null,null,null,null,null,null,null,null,null,null,null,null,null,null,null,null,null,null,null,null,null,null,null,null,null,null,null,null,null,null,null,null,null,null,null,null,null,null,null,null,null,null,null,null,null,null,null,null,null,null,null,null,null,null,null,null,null,null,null,null,null,null,90,92,92,null,1,null,null,null,112,null,92,"(90)"]
["93(91)","Solveig Brincner","Värends Hsk",44.833333333333336,null,6,269,null,0,0,0,0,0,67,79,10,28,44,41,null,null,null,null,null,null,null,null,null,null,null,null,null,null,null,null,null,null,null,null,null,null,null,null,null,null,null,null,null,null,null,null,null,null,null,null,null,null,null,null,null,null,null,null,null,null,null,null,null,null,null,null,null,null,null,null,null,null,null,null,null,null,null,null,null,null,null,null,null,null,null,null,null,null,null,null,null,null,null,null,null,null,null,null,null,null,null,null,null,null,null,null,null,null,null,null,null,null,null,null,null,null,null,null,91,93,93,null,1,null,null,null,90,null,93,"(91)"]
["94(92)","Göran Brincner","Värends Hsk",43,null,6,258,null,0,0,0,0,0,68,27,28,56,62,17,null,null,null,null,null,null,null,null,null,null,null,null,null,null,null,null,null,null,null,null,null,null,null,null,null,null,null,null,null,null,null,null,null,null,null,null,null,null,null,null,null,null,null,null,null,null,null,null,null,null,null,null,null,null,null,null,null,null,null,null,null,null,null,null,null,null,null,null,null,null,null,null,null,null,null,null,null,null,null,null,null,null,null,null,null,null,null,null,null,null,null,null,null,null,null,null,null,null,null,null,null,null,null,null,92,94,94,null,1,null,null,null,91,null,94,"(92)"]
["-(-)",null,null,0,null,0,0,null,0,0,0,0,0,null,null,null,null,null,null,null,null,null,null,null,null,null,null,null,null,null,null,null,null,null,null,null,null,null,null,null,null,null,null,null,null,null,null,null,null,null,null,null,null,null,null,null,null,null,null,null,null,null,null,null,null,null,null,null,null,null,null,null,null,null,null,null,null,null,null,null,null,null,null,null,null,null,null,null,null,null,null,null,null,null,null,null,null,null,null,null,null,null,null,null,null,null,null,null,null,null,null,null,null,null,null,null,null,null,null,null,null,null,null,"-","-",95,null,1,null,null,null,92,null,"-","(-)"]
["95(95)",null,null,0,null,0,0,null,0,0,0,0,0,null,null,null,null,null,null,null,null,null,null,null,null,null,null,null,null,null,null,null,null,null,null,null,null,null,null,null,null,null,null,null,null,null,null,null,null,null,null,null,null,null,null,null,null,null,null,null,null,null,null,null,null,null,null,null,null,null,null,null,null,null,null,null,null,null,null,null,null,null,null,null,null,null,null,null,null,null,null,null,null,null,null,null,null,null,null,null,null,null,null,null,null,null,null,null,null,null,null,null,null,null,null,null,null,null,null,null,null,null,null,95,95,96,null,1,null,null,null,63,null,95,"(95)"]
["95(95)",null,null,{"$f":"IF(F101>0.5,(G101/F101),0)","v":0},null,{"$f":"COUNT(N101:BO101)","v":0},{"$f":"SUM(N101:BO101)","v":0},null,{"$f":"COUNTIF(BQ101:DR101,2)","v":0},{"$f":"COUNTIF(BQ101:DR101,-2)","v":0},{"$f":"COUNTIF(BQ101:DR101,1)","v":0},{"$f":"COUNTIF(BQ101:DR101,-1)","v":0},{"$f":"IF(F101>0,(I101+K101)/(F101),0)","v":0},null,null,null,null,null,null,null,null,null,null,null,null,null,null,null,null,null,null,null,null,null,null,null,null,null,null,null,null,null,null,null,null,null,null,null,null,null,null,null,null,null,null,null,null,null,null,null,null,null,null,null,null,null,null,null,null,null,null,null,null,null,null,null,null,null,null,null,null,null,null,null,null,null,null,null,null,null,null,null,null,null,null,null,null,null,null,null,null,null,null,null,null,null,null,null,null,null,null,null,null,null,null,null,null,null,null,null,null,null,null,95,95,{"$f":"IF(DX101=1,ROW(97:97),\"-\")","v":97},null,1,null,null,null,93,null,{"$f":"IF(DX101=1,DU101,IF(DX101=\"\",DU101,\"\"))","v":95},{"$f":"IF(DX101=1,\"(\"&DT101&\")\",\"(\"&DV101&\")\")","v":"(95)"}]
["95(95)",null,null,0,null,0,0,null,0,0,0,0,0,null,null,null,null,null,null,null,null,null,null,null,null,null,null,null,null,null,null,null,null,null,null,null,null,null,null,null,null,null,null,null,null,null,null,null,null,null,null,null,null,null,null,null,null,null,null,null,null,null,null,null,null,null,null,null,null,null,null,null,null,null,null,null,null,null,null,null,null,null,null,null,null,null,null,null,null,null,null,null,null,null,null,null,null,null,null,null,null,null,null,null,null,null,null,null,null,null,null,null,null,null,null,null,null,null,null,null,null,null,null,95,95,98,null,1,null,null,null,94,null,95,"(95)"]
["95(95)",null,null,0,null,0,0,null,0,0,0,0,0,null,null,null,null,null,null,null,null,null,null,null,null,null,null,null,null,null,null,null,null,null,null,null,null,null,null,null,null,null,null,null,null,null,null,null,null,null,null,null,null,null,null,null,null,null,null,null,null,null,null,null,null,null,null,null,null,null,null,null,null,null,null,null,null,null,null,null,null,null,null,null,null,null,null,null,null,null,null,null,null,null,null,null,null,null,null,null,null,null,null,null,null,null,null,null,null,null,null,null,null,null,null,null,null,null,null,null,null,null,null,95,95,99,null,1,null,null,null,95,null,95,"(95)"]
["96(96)",null,null,0,null,0,0,null,0,0,0,0,0,null,null,null,null,null,null,null,null,null,null,null,null,null,null,null,null,null,null,null,null,null,null,null,null,null,null,null,null,null,null,null,null,null,null,null,null,null,null,null,null,null,null,null,null,null,null,null,null,null,null,null,null,null,null,null,null,null,null,null,null,null,null,null,null,null,null,null,null,null,null,null,null,null,null,null,null,null,null,null,null,null,null,null,null,null,null,null,null,null,null,null,null,null,null,null,null,null,null,null,null,null,null,null,null,null,null,null,null,null,null,96,96,100,null,1,null,null,null,96,null,96,"(96)"]
["97(97)",null,null,0,null,0,0,null,0,0,0,0,0,null,null,null,null,null,null,null,null,null,null,null,null,null,null,null,null,null,null,null,null,null,null,null,null,null,null,null,null,null,null,null,null,null,null,null,null,null,null,null,null,null,null,null,null,null,null,null,null,null,null,null,null,null,null,null,null,null,null,null,null,null,null,null,null,null,null,null,null,null,null,null,null,null,null,null,null,null,null,null,null,null,null,null,null,null,null,null,null,null,null,null,null,null,null,null,null,null,null,null,null,null,null,null,null,null,null,null,null,null,null,97,97,101,null,1,null,null,null,97,null,97,"(97)"]
["98(98)",null,null,0,null,0,0,null,0,0,0,0,0,null,null,null,null,null,null,null,null,null,null,null,null,null,null,null,null,null,null,null,null,null,null,null,null,null,null,null,null,null,null,null,null,null,null,null,null,null,null,null,null,null,null,null,null,null,null,null,null,null,null,null,null,null,null,null,null,null,null,null,null,null,null,null,null,null,null,null,null,null,null,null,null,null,null,null,null,null,null,null,null,null,null,null,null,null,null,null,null,null,null,null,null,null,null,null,null,null,null,null,null,null,null,null,null,null,null,null,null,null,null,98,98,102,null,1,null,null,null,98,null,98,"(98)"]
["99(99)",null,null,0,null,0,0,null,0,0,0,0,0,null,null,null,null,null,null,null,null,null,null,null,null,null,null,null,null,null,null,null,null,null,null,null,null,null,null,null,null,null,null,null,null,null,null,null,null,null,null,null,null,null,null,null,null,null,null,null,null,null,null,null,null,null,null,null,null,null,null,null,null,null,null,null,null,null,null,null,null,null,null,null,null,null,null,null,null,null,null,null,null,null,null,null,null,null,null,null,null,null,null,null,null,null,null,null,null,null,null,null,null,null,null,null,null,null,null,null,null,null,null,99,{"$f":"IF(AND(D107=D106,D107=D105,D107=D104,D107=D103),ROW(99:99),IF(AND(D107=D106,D107=D105,D107=D104),ROW(100:100),IF(AND(D107=D106,D107=D105),ROW(101:101),IF(D107=D106,ROW(102:102),IF(D107>1,ROW(103:103),\"-\")))))","v":99},103,null,1,null,null,null,99,null,99,"(99)"]
["100(100)",null,null,0,null,0,0,null,0,0,0,0,0,null,null,null,null,null,null,null,null,null,null,null,null,null,null,null,null,null,null,null,null,null,null,null,null,null,null,null,null,null,null,null,null,null,null,null,null,null,null,null,null,null,null,null,null,null,null,null,null,null,null,null,null,null,null,null,null,null,null,null,null,null,null,null,null,null,null,null,null,null,null,null,null,null,null,null,null,null,null,null,null,null,null,null,null,null,null,null,null,null,null,null,null,null,null,null,null,null,null,null,null,null,null,null,null,null,null,null,null,null,null,100,100,104,null,1,null,null,null,100,null,100,"(100)"]
["101(101)",null,null,0,null,0,0,null,0,0,0,0,0,null,null,null,null,null,null,null,null,null,null,null,null,null,null,null,null,null,null,null,null,null,null,null,null,null,null,null,null,null,null,null,null,null,null,null,null,null,null,null,null,null,null,null,null,null,null,null,null,null,null,null,null,null,null,null,null,null,null,null,null,null,null,null,null,null,null,null,null,null,null,null,null,null,null,null,null,null,null,null,null,null,null,null,null,null,null,null,null,null,null,null,null,null,null,null,null,null,null,null,null,null,null,null,null,null,null,null,null,null,null,101,101,105,null,1,null,null,null,101,null,101,"(101)"]
["102(102)",null,null,0,null,0,0,null,0,0,0,0,0,null,null,null,null,null,null,null,null,null,null,null,null,null,null,null,null,null,null,null,null,null,null,null,null,null,null,null,null,null,null,null,null,null,null,null,null,null,null,null,null,null,null,null,null,null,null,null,null,null,null,null,null,null,null,null,null,null,null,null,null,null,null,null,null,null,null,null,null,null,null,null,null,null,null,null,null,null,null,null,null,null,null,null,null,null,null,null,null,null,null,null,null,null,null,null,null,null,null,null,null,null,null,null,null,null,null,null,null,null,null,102,102,106,null,1,null,null,null,102,null,102,"(102)"]
["103(103)",null,null,0,null,0,0,null,0,0,0,0,0,null,null,null,null,null,null,null,null,null,null,null,null,null,null,null,null,null,null,null,null,null,null,null,null,null,null,null,null,null,null,null,null,null,null,null,null,null,null,null,null,null,null,null,null,null,null,null,null,null,null,null,null,null,null,null,null,null,null,null,null,null,null,null,null,null,null,null,null,null,null,null,null,null,null,null,null,null,null,null,null,null,null,null,null,null,null,null,null,null,null,null,null,null,null,null,null,null,null,null,null,null,null,null,null,null,null,null,null,null,null,103,103,107,null,1,null,null,null,110,null,103,"(103)"]
["104(104)",null,null,0,null,0,0,null,0,0,0,0,0,null,null,null,null,null,null,null,null,null,null,null,null,null,null,null,null,null,null,null,null,null,null,null,null,null,null,null,null,null,null,null,null,null,null,null,null,null,null,null,null,null,null,null,null,null,null,null,null,null,null,null,null,null,null,null,null,null,null,null,null,null,null,null,null,null,null,null,null,null,null,null,null,null,null,null,null,null,null,null,null,null,null,null,null,null,null,null,null,null,null,null,null,null,null,null,null,null,null,null,null,null,null,null,null,null,null,null,null,null,null,104,104,108,null,1,null,null,null,103,null,104,"(104)"]
["105(105)",null,null,0,null,0,0,null,0,0,0,0,0,null,null,null,null,null,null,null,null,null,null,null,null,null,null,null,null,null,null,null,null,null,null,null,null,null,null,null,null,null,null,null,null,null,null,null,null,null,null,null,null,null,null,null,null,null,null,null,null,null,null,null,null,null,null,null,null,null,null,null,null,null,null,null,null,null,null,null,null,null,null,null,null,null,null,null,null,null,null,null,null,null,null,null,null,null,null,null,null,null,null,null,null,null,null,null,null,null,null,null,null,null,null,null,null,null,null,null,null,null,null,105,105,109,null,1,null,null,null,104,null,105,"(105)"]
["106(106)",null,null,0,null,0,0,null,0,0,0,0,0,null,null,null,null,null,null,null,null,null,null,null,null,null,null,null,null,null,null,null,null,null,null,null,null,null,null,null,null,null,null,null,null,null,null,null,null,null,null,null,null,null,null,null,null,null,null,null,null,null,null,null,null,null,null,null,null,null,null,null,null,null,null,null,null,null,null,null,null,null,null,null,null,null,null,null,null,null,null,null,null,null,null,null,null,null,null,null,null,null,null,null,null,null,null,null,null,null,null,null,null,null,null,null,null,null,null,null,null,null,null,106,106,110,null,1,null,null,null,105,null,106,"(106)"]
["107(107)",null,null,0,null,0,0,null,0,0,0,0,0,null,null,null,null,null,null,null,null,null,null,null,null,null,null,null,null,null,null,null,null,null,null,null,null,null,null,null,null,null,null,null,null,null,null,null,null,null,null,null,null,null,null,null,null,null,null,null,null,null,null,null,null,null,null,null,null,null,null,null,null,null,null,null,null,null,null,null,null,null,null,null,null,null,null,null,null,null,null,null,null,null,null,null,null,null,null,null,null,null,null,null,null,null,null,null,null,null,null,null,null,null,null,null,null,null,null,null,null,null,null,107,107,111,null,1,null,null,null,106,null,107,"(107)"]
["108(108)",null,null,0,null,0,0,null,0,0,0,0,0,null,null,null,null,null,null,null,null,null,null,null,null,null,null,null,null,null,null,null,null,null,null,null,null,null,null,null,null,null,null,null,null,null,null,null,null,null,null,null,null,null,null,null,null,null,null,null,null,null,null,null,null,null,null,null,null,null,null,null,null,null,null,null,null,null,null,null,null,null,null,null,null,null,null,null,null,null,null,null,null,null,null,null,null,null,null,null,null,null,null,null,null,null,null,null,null,null,null,null,null,null,null,null,null,null,null,null,null,null,null,108,108,112,null,1,null,null,null,107,null,108,"(108)"]
["109(109)",null,null,0,null,0,0,null,0,0,0,0,0,null,null,null,null,null,null,null,null,null,null,null,null,null,null,null,null,null,null,null,null,null,null,null,null,null,null,null,null,null,null,null,null,null,null,null,null,null,null,null,null,null,null,null,null,null,null,null,null,null,null,null,null,null,null,null,null,null,null,null,null,null,null,null,null,null,null,null,null,null,null,null,null,null,null,null,null,null,null,null,null,null,null,null,null,null,null,null,null,null,null,null,null,null,null,null,null,null,null,null,null,null,null,null,null,null,null,null,null,null,null,109,109,113,null,1,null,null,null,108,null,109,"(109)"]
["110(110)",null,null,0,null,0,0,null,0,0,0,0,0,null,null,null,null,null,null,null,null,null,null,null,null,null,null,null,null,null,null,null,null,null,null,null,null,null,null,null,null,null,null,null,null,null,null,null,null,null,null,null,null,null,null,null,null,null,null,null,null,null,null,null,null,null,null,null,null,null,null,null,null,null,null,null,null,null,null,null,null,null,null,null,null,null,null,null,null,null,null,null,null,null,null,null,null,null,null,null,null,null,null,null,null,null,null,null,null,null,null,null,null,null,null,null,null,null,null,null,null,null,null,110,110,114,null,1,null,null,null,109,null,110,"(110)"]
["111(111)",null,null,0,null,0,0,null,0,0,0,0,0,null,null,null,null,null,null,null,null,null,null,null,null,null,null,null,null,null,null,null,null,null,null,null,null,null,null,null,null,null,null,null,null,null,null,null,null,null,null,null,null,null,null,null,null,null,null,null,null,null,null,null,null,null,null,null,null,null,null,null,null,null,null,null,null,null,null,null,null,null,null,null,null,null,null,null,null,null,null,null,null,null,null,null,null,null,null,null,null,null,null,null,null,null,null,null,null,null,null,null,null,null,null,null,null,null,null,null,null,null,null,111,111,115,null,1,null,null,null,112,null,111,"(111)"]
["112(112)",null,null,0,null,0,0,null,0,0,0,0,0,null,null,null,null,null,null,null,null,null,null,null,null,null,null,null,null,null,null,null,null,null,null,null,null,null,null,null,null,null,null,null,null,null,null,null,null,null,null,null,null,null,null,null,null,null,null,null,null,null,null,null,null,null,null,null,null,null,null,null,null,null,null,null,null,null,null,null,null,null,null,null,null,null,null,null,null,null,null,null,null,null,null,null,null,null,null,null,null,null,null,null,null,null,null,null,null,null,null,null,null,null,null,null,null,null,null,null,null,null,null,112,112,116,null,1,null,null,null,110,null,112,"(112)"]
[{"$f":"DU121&EE121","v":"113(113)"},null,null,0,null,0,0,null,0,0,0,0,0,null,null,null,null,null,null,null,null,null,null,null,null,null,null,null,null,null,null,null,null,null,null,null,null,null,null,null,null,null,null,null,null,null,null,null,null,null,null,null,null,null,null,null,null,null,null,null,null,null,null,null,null,null,null,null,null,null,null,null,null,null,null,null,null,null,null,null,null,null,null,null,null,null,null,null,null,null,null,null,null,null,null,null,null,null,null,null,null,null,null,null,null,null,null,null,null,null,null,null,null,null,null,null,null,null,null,null,null,null,null,113,{"$f":"IF(AND(D121=D120,D121=D119,D121=D118,D121=D117),ROW(113:113),IF(AND(D121=D120,D121=D119,D121=D118),ROW(114:114),IF(AND(D121=D120,D121=D119),ROW(115:115),IF(D121=D120,ROW(116:116),IF(D121>1,ROW(117:117),\"-\")))))","v":113},{"$f":"IF(DX121=1,ROW(117:117),\"-\")","v":117},null,1,null,null,null,111,null,{"$f":"IF(DX121=1,DU121,IF(DX121=\"\",DU121,\"\"))","v":113},{"$f":"IF(DX121=1,\"(\"&DT121&\")\",\"(\"&DV121&\")\")","v":"(113)"}]
[{"$f":"DU122&EE122","v":"114(114)"},null,null,0,null,0,0,null,0,0,0,0,0,null,null,null,null,null,null,null,null,null,null,null,null,null,null,null,null,null,null,null,null,null,null,null,null,null,null,null,null,null,null,null,null,null,null,null,null,null,null,null,null,null,null,null,null,null,null,null,null,null,null,null,null,null,null,null,null,null,null,null,null,null,null,null,null,null,null,null,null,null,null,null,null,null,null,null,null,null,null,null,null,null,null,null,null,null,null,null,null,null,null,null,null,null,null,null,null,null,null,null,null,null,null,null,null,null,null,null,null,null,null,114,{"$f":"IF(AND(D122=D121,D122=D120,D122=D119,D122=D118),ROW(114:114),IF(AND(D122=D121,D122=D120,D122=D119),ROW(115:115),IF(AND(D122=D121,D122=D120),ROW(116:116),IF(D122=D121,ROW(117:117),IF(D122>1,ROW(118:118),\"-\")))))","v":114},{"$f":"IF(DX122=1,ROW(118:118),\"-\")","v":118},null,1,null,null,null,113,null,{"$f":"IF(DX122=1,DU122,IF(DX122=\"\",DU122,\"\"))","v":114},{"$f":"IF(DX122=1,\"(\"&DT122&\")\",\"(\"&DV122&\")\")","v":"(114)"}]
[{"$f":"DU123&EE123","v":"115(115)"},null,null,0,null,0,0,null,0,0,0,0,0,null,null,null,null,null,null,null,null,null,null,null,null,null,null,null,null,null,null,null,null,null,null,null,null,null,null,null,null,null,null,null,null,null,null,null,null,null,null,null,null,null,null,null,null,null,null,null,null,null,null,null,null,null,null,null,null,null,null,null,null,null,null,null,null,null,null,null,null,null,null,null,null,null,null,null,null,null,null,null,null,null,null,null,null,null,null,null,null,null,null,null,null,null,null,null,null,null,null,null,null,null,null,null,null,null,null,null,null,null,null,115,{"$f":"IF(AND(D123=D122,D123=D121,D123=D120,D123=D119),ROW(115:115),IF(AND(D123=D122,D123=D121,D123=D120),ROW(116:116),IF(AND(D123=D122,D123=D121),ROW(117:117),IF(D123=D122,ROW(118:118),IF(D123>1,ROW(119:119),\"-\")))))","v":115},{"$f":"IF(DX123=1,ROW(119:119),\"-\")","v":119},null,1,null,null,null,113,null,{"$f":"IF(DX123=1,DU123,IF(DX123=\"\",DU123,\"\"))","v":115},{"$f":"IF(DX123=1,\"(\"&DT123&\")\",\"(\"&DV123&\")\")","v":"(115)"}]